Date Spend Occurred,Department Incurring Spend,Beneficiary Name,Summary of Purpose of Spend,Gross Amount,Merchant Category,,
01/07/2022,NE UASC NRPF 18+ CRE,Redacted Personnel Data,Third Party Payments-Other Agencies,537.00,Invoicing Plan Req.,,
01/07/2022,NW AGENCY PLACE-ED,ACS Cobham International School,Agency Placement Expenditure,"11,585.00",Schools,,
01/07/2022,LD-AUT CNTR TM CARE,Affinity Trust,Other Community Care,"3,797.67",Dom Care - Adults,,
01/07/2022,LD-AUT CNTR TM CARE,Affinity Trust,Other Community Care,"3,797.67",Dom Care - Adults,,
01/07/2022,EPS & EW CMHRS CARE,Affinity Trust,Other Community Care,"3,797.67",Dom Care - Adults,,
01/07/2022,EPS & EW CMHRS CARE,Affinity Trust,Other Community Care,"3,797.67",Dom Care - Adults,,
01/07/2022,LD-AUT CNTR TM CARE,Alina Homecare Specialist - Surrey,Supported Living,"5,000.40",Residential - OP,,
01/07/2022,LD-AUT CNTR TM CARE,Alina Homecare Specialist - Surrey,Supported Living,660.00,Residential - OP,,
01/07/2022,SPELTHORNE CARE OP,Amazed Care Services,Home Base Care,655.20,Dom Care - Adults,,
01/07/2022,ELMBRIDGE CARE OP,Amily Homecare,Home Base Care,702.64,Dom Care - Adults,,
01/07/2022,ELMBRIDGE CARE OP,Amily Homecare,Home Base Care,356.44,Dom Care - Adults,,
01/07/2022,ELMBRIDGE CARE PD,Amily Homecare,Home Base Care,382.76,Dom Care - Adults,,
01/07/2022,ELMBRIDGE CARE OP,Amily Homecare,Home Base Care,833.76,Dom Care - Adults,,
01/07/2022,ELMBRIDGE CARE OP,Amily Homecare,Home Base Care,422.38,Dom Care - Adults,,
01/07/2022,GUILDFORD CARE OP,Around The Clock Care Agency Ltd,Home Base Care,"1,768.76",Residential - OP,,
01/07/2022,GUILDFORD CARE OP,Around The Clock Care Agency Ltd,Home Base Care,584.88,Residential - OP,,
01/07/2022,GUILDFORD CARE OP,Around The Clock Care Agency Ltd,Home Base Care,"1,826.16",Residential - OP,,
01/07/2022,GUILDFORD CARE OP,Around The Clock Care Agency Ltd,Home Base Care,588.84,Residential - OP,,
01/07/2022,GUILDFORD CARE OP,Around The Clock Care Agency Ltd,Home Base Care,"1,596.00",Residential - OP,,
01/07/2022,SURREY HEATH CARE PD,Around The Clock Care Agency Ltd,Home Base Care,"1,988.00",Residential - OP,,
01/07/2022,GUILDFORD CARE OP,Around The Clock Care Agency Ltd,Home Base Care,662.76,Residential - OP,,
01/07/2022,GUILDFORD CARE OP,Around The Clock Care Agency Ltd,Home Base Care,441.84,Residential - OP,,
01/07/2022,GUILDFORD CARE OP,Around The Clock Care Agency Ltd,Home Base Care,"1,768.76",Residential - OP,,
01/07/2022,SURREY HEATH CARE OP,Around The Clock Care Agency Ltd,Home Base Care,"2,044.00",Residential - OP,,
01/07/2022,WAVERLEY CARE OP,Around The Clock Care Agency Ltd,Home Base Care,"1,768.76",Residential - OP,,
01/07/2022,SURREY HEATH CARE PD,Around The Clock Care Agency Ltd,Home Base Care,"7,253.40",Residential - OP,,
01/07/2022,GUILDFORD CARE OP,Around The Clock Care Agency Ltd,Home Base Care,"1,768.76",Residential - OP,,
01/07/2022,SURREY HEATH CARE OP,Around The Clock Care Agency Ltd,Home Base Care,"1,914.36",Residential - OP,,
01/07/2022,SURREY HEATH CARE OP,Around The Clock Care Agency Ltd,Home Base Care,"1,484.00",Residential - OP,,
01/07/2022,SURREY HEATH CARE OP,Around The Clock Care Agency Ltd,Home Base Care,"1,932.00",Residential - OP,,
01/07/2022,MOLE VALLEY CARE PD,Around The Clock Care Agency Ltd,Home Base Care,"1,768.76",Residential - OP,,
01/07/2022,SURREY HEATH CARE OP,Around The Clock Care Agency Ltd,Home Base Care,252.00,Residential - OP,,
01/07/2022,GUILDFORD CARE OP,Around The Clock Care Agency Ltd,Home Base Care,"1,932.00",Residential - OP,,
01/07/2022,SURREY HEATH CARE OP,Around The Clock Care Agency Ltd,Home Base Care,836.00,Residential - OP,,
01/07/2022,GUILDFORD CARE PD,Around The Clock Care Agency Ltd,Home Base Care,"1,768.76",Residential - OP,,
01/07/2022,GUILDFORD CARE OP,Around The Clock Care Agency Ltd,Home Base Care,"1,767.36",Residential - OP,,
01/07/2022,MOLE VALLEY CARE PD,Around The Clock Care Agency Ltd,Home Base Care,378.54,Residential - OP,,
01/07/2022,LD-AUT CNTR TM CARE,Ashcroft Operations Ltd,Other Community Care,495.75,Residential - OP,,
01/07/2022,LD-AUT CNTR TM CARE,Ashmount House Ltd,Supported Living,"1,110.00",Supp Living - MH,,
01/07/2022,LD-AUT CNTR TM CARE,Ashmount House Ltd,Supported Living,"1,110.00",Supp Living - MH,,
01/07/2022,REIGATE & BD CARE OP,Assist Care Group Ltd,Home Base Care,564.06,Residential - OP,,
01/07/2022,MOLE VALLEY CARE OP,Assist Care Group Ltd,Home Base Care,540.39,Residential - OP,,
01/07/2022,REIGATE & BD CARE PD,Assist Care Group Ltd,Home Base Care,672.46,Residential - OP,,
01/07/2022,REIGATE & BD CARE OP,Assist Care Group Ltd,Home Base Care,416.50,Residential - OP,,
01/07/2022,REIGATE & BD CARE OP,Assist Care Group Ltd,Home Base Care,609.00,Residential - OP,,
01/07/2022,REIGATE & BD CARE OP,Assist Care Group Ltd,Home Base Care,266.20,Residential - OP,,
01/07/2022,MOLE VALLEY CARE OP,Assist Care Group Ltd,Home Base Care,"1,018.26",Residential - OP,,
01/07/2022,REIGATE & BD CARE PD,Assist Care Group Ltd,Home Base Care,434.56,Residential - OP,,
01/07/2022,REIGATE & BD CARE OP,Assist Care Group Ltd,Home Base Care,764.21,Residential - OP,,
01/07/2022,REIGATE & BD CARE OP,Assist Care Group Ltd,Home Base Care,737.10,Residential - OP,,
01/07/2022,MOLE VALLEY CARE OP,Assist Care Group Ltd,Home Base Care,"1,367.48",Residential - OP,,
01/07/2022,MOLE VALLEY CARE OP,Assist Care Group Ltd,Home Base Care,"1,471.64",Residential - OP,,
01/07/2022,REIGATE & BD CARE OP,Assist Care Group Ltd,Home Base Care,463.92,Residential - OP,,
01/07/2022,REIGATE & BD CARE OP,Assist Care Group Ltd,Home Base Care,414.54,Residential - OP,,
01/07/2022,MOLE VALLEY CARE OP,Assist Care Group Ltd,Home Base Care,"1,647.80",Residential - OP,,
01/07/2022,REIGATE & BD CARE OP,Assist Care Group Ltd,Home Base Care,346.08,Residential - OP,,
01/07/2022,REIGATE & BD CARE OP,Assist Care Group Ltd,Home Base Care,"1,474.20",Residential - OP,,
01/07/2022,MOLE VALLEY CARE OP,Assist Care Group Ltd,Home Base Care,414.54,Residential - OP,,
01/07/2022,MOLE VALLEY CARE PD,Assist Care Group Ltd,Home Base Care,437.78,Residential - OP,,
01/07/2022,MOLE VALLEY CARE OP,Assist Care Group Ltd,Home Base Care,558.66,Residential - OP,,
01/07/2022,REIGATE & BD CARE OP,Assist Care Group Ltd,Home Base Care,349.92,Residential - OP,,
01/07/2022,MOLE VALLEY CARE OP,Assist Care Group Ltd,Home Base Care,571.18,Residential - OP,,
01/07/2022,MOLE VALLEY CARE OP,Assist Care Group Ltd,Home Base Care,421.10,Residential - OP,,
01/07/2022,REIGATE & BD CARE OP,Assist Care Group Ltd,Home Base Care,738.80,Residential - OP,,
01/07/2022,REIGATE & BD CARE OP,Assist Care Group Ltd,Home Base Care,495.80,Residential - OP,,
01/07/2022,LD-AUT CNTR TM CARE,Assist Care Group Ltd,Home Base Care,384.48,Residential - OP,,
01/07/2022,MOLE VALLEY CARE OP,Assist Care Group Ltd,Home Base Care,"1,049.46",Residential - OP,,
01/07/2022,REIGATE & BD CARE OP,Assist Care Group Ltd,Home Base Care,372.68,Residential - OP,,
01/07/2022,MOLE VALLEY CARE OP,Assist Care Group Ltd,Home Base Care,749.70,Residential - OP,,
01/07/2022,REIGATE & BD CARE OP,Assist Care Group Ltd,Home Base Care,384.48,Residential - OP,,
01/07/2022,REIGATE & BD CARE OP,Assist Care Group Ltd,Home Base Care,696.92,Residential - OP,,
01/07/2022,MOLE VALLEY CARE OP,Assist Care Group Ltd,Home Base Care,270.24,Residential - OP,,
01/07/2022,MOLE VALLEY CARE OP,Assist Care Group Ltd,Home Base Care,346.08,Residential - OP,,
01/07/2022,NE AGENCY PLACE-ED,Avenue Primary Academy,Local Authorities,"7,558.02",SEN OLA,,
01/07/2022,LD-AUT CNTR TM CARE,Avenues South,Other Community Care,600.52,Residential - MH,,
01/07/2022,LD-AUT CNTR TM CARE,Avenues South,Other Community Care,"1,416.40",Residential - MH,,
01/07/2022,LD-AUT CNTR TM CARE,Avenues South,Other Community Care,"1,180.56",Residential - MH,,
01/07/2022,LD-AUT CNTR TM CARE,Avenues South,Other Community Care,634.16,Residential - MH,,
01/07/2022,LD-AUT CNTR TM CARE,Avenues South,Other Community Care,634.20,Residential - MH,,
01/07/2022,LD-AUT CNTR TM CARE,Avenues South,Other Community Care,634.20,Residential - MH,,
01/07/2022,LD-AUT CNTR TM CARE,Avenues South,Other Community Care,528.17,Residential - MH,,
01/07/2022,LD-AUT CNTR TM CARE,Avenues South,Other Community Care,"1,416.52",Residential - MH,,
01/07/2022,LD-AUT CNTR TM CARE,Birch House,Day Care,"1,689.60",Residential - OP,,
01/07/2022,NE AGENCY PLACE-ED,Blossom House School,Agency Placement Expenditure,"7,897.09",School Support Serv,,
01/07/2022,ARBORICULTURE,Bluesky International Ltd,Treework,"3,397.20",M-D (Property),,
01/07/2022,TANDRIDGE CARE OP,Brambles of Oxted Ltd,Day Care,505.44,Dom Care - Adults,,
01/07/2022,LD-AUT CNTR TM CARE,Brambles of Oxted Ltd,Day Care,252.72,Dom Care - Adults,,
01/07/2022,TANDRIDGE CARE OP,Brambles of Oxted Ltd,Day Care,505.44,Dom Care - Adults,,
01/07/2022,TANDRIDGE CARE PD,Brambles of Oxted Ltd,Day Care,505.44,Dom Care - Adults,,
01/07/2022,LD-AUT CNTR TM CARE,Brambles of Oxted Ltd,Day Care,758.16,Dom Care - Adults,,
01/07/2022,SE AGENCY PLACE-ED,Brantridge School,Local Authorities,"11,459.23",SEND Agncy Placement,,
01/07/2022,LD-AUT CNTR TM CARE,Brighton & Sussex Care Ltd,Supported Living,"8,974.00",Supp Living - MH,,
01/07/2022,TANDRIDGE CARE OP,Britannia Homecare Ltd,Home Base Care,481.32,Dom Care - Adults,,
01/07/2022,REIGATE & BD CARE PD,Britannia Homecare Ltd,Home Base Care,343.61,Dom Care - Adults,,
01/07/2022,TANDRIDGE CARE OP,Britannia Homecare Ltd,Home Base Care,"1,336.16",Dom Care - Adults,,
01/07/2022,REIGATE & BD CARE OP,Britannia Homecare Ltd,Home Base Care,464.94,Dom Care - Adults,,
01/07/2022,TANDRIDGE CARE OP,Britannia Homecare Ltd,Home Base Care,668.08,Dom Care - Adults,,
01/07/2022,REIGATE & BD CARE PD,Britannia Homecare Ltd,Home Base Care,361.62,Dom Care - Adults,,
01/07/2022,TANDRIDGE CARE OP,Britannia Homecare Ltd,Home Base Care,335.44,Dom Care - Adults,,
01/07/2022,TANDRIDGE CARE OP,Britannia Homecare Ltd,Home Base Care,335.44,Dom Care - Adults,,
01/07/2022,TANDRIDGE CARE OP,Britannia Homecare Ltd,Home Base Care,394.80,Dom Care - Adults,,
01/07/2022,TANDRIDGE CARE OP,Britannia Homecare Ltd,Home Base Care,335.44,Dom Care - Adults,,
01/07/2022,TANDRIDGE CARE PD,Britannia Homecare Ltd,Home Base Care,502.03,Dom Care - Adults,,
01/07/2022,REIGATE & BD CARE OP,Britannia Homecare Ltd,Home Base Care,358.12,Dom Care - Adults,,
01/07/2022,REIGATE & BD CARE OP,Britannia Homecare Ltd,Home Base Care,716.24,Dom Care - Adults,,
01/07/2022,REIGATE & BD CARE OP,Britannia Homecare Ltd,Home Base Care,411.36,Dom Care - Adults,,
01/07/2022,REIGATE & BD CARE OP,Britannia Homecare Ltd,Home Base Care,"1,151.28",Dom Care - Adults,,
01/07/2022,REIGATE & BD CARE OP,Britannia Homecare Ltd,Home Base Care,668.08,Dom Care - Adults,,
01/07/2022,REIGATE & BD CARE OP,Britannia Homecare Ltd,Home Base Care,551.04,Dom Care - Adults,,
01/07/2022,REIGATE & BD CARE OP,Britannia Homecare Ltd,Home Base Care,551.04,Dom Care - Adults,,
01/07/2022,REIGATE & BD CARE PD,Britannia Homecare Ltd,Home Base Care,358.12,Dom Care - Adults,,
01/07/2022,TANDRIDGE CARE PD,Britannia Homecare Ltd,Home Base Care,414.46,Dom Care - Adults,,
01/07/2022,TANDRIDGE CARE OP,Britannia Homecare Ltd,Home Base Care,372.22,Dom Care - Adults,,
01/07/2022,REIGATE & BD CARE PD,Britannia Homecare Ltd,Home Base Care,250.04,Dom Care - Adults,,
01/07/2022,TANDRIDGE CARE OP,Britannia Homecare Ltd,Home Base Care,522.80,Dom Care - Adults,,
01/07/2022,TANDRIDGE CARE PD,Britannia Homecare Ltd,Home Base Care,551.04,Dom Care - Adults,,
01/07/2022,REIGATE & BD CARE OP,Britannia Homecare Ltd,Home Base Care,819.90,Dom Care - Adults,,
01/07/2022,REIGATE & BD CARE OP,Britannia Homecare Ltd,Home Base Care,253.56,Dom Care - Adults,,
01/07/2022,TANDRIDGE CARE OP,Britannia Homecare Ltd,Home Base Care,"1,026.20",Dom Care - Adults,,
01/07/2022,TANDRIDGE CARE OP,Britannia Homecare Ltd,Home Base Care,"1,727.56",Dom Care - Adults,,
01/07/2022,TANDRIDGE CARE PD,Britannia Homecare Ltd,Home Base Care,358.12,Dom Care - Adults,,
01/07/2022,REIGATE & BD CARE PD,Britannia Homecare Ltd,Home Base Care,513.10,Dom Care - Adults,,
01/07/2022,TANDRIDGE CARE OP,Britannia Homecare Ltd,Home Base Care,383.32,Dom Care - Adults,,
01/07/2022,REIGATE & BD CARE OP,Britannia Homecare Ltd,Home Base Care,381.47,Dom Care - Adults,,
01/07/2022,TANDRIDGE CARE OP,Britannia Homecare Ltd,Home Base Care,383.32,Dom Care - Adults,,
01/07/2022,TANDRIDGE CARE OP,Britannia Homecare Ltd,Home Base Care,551.04,Dom Care - Adults,,
01/07/2022,TANDRIDGE CARE OP,Britannia Homecare Ltd,Home Base Care,718.76,Dom Care - Adults,,
01/07/2022,TANDRIDGE CARE OP,Britannia Homecare Ltd,Home Base Care,718.76,Dom Care - Adults,,
01/07/2022,REIGATE & BD CARE OP,Britannia Homecare Ltd,Home Base Care,263.56,Dom Care - Adults,,
01/07/2022,REIGATE & BD CARE OP,Britannia Homecare Ltd,Home Base Care,"1,059.78",Dom Care - Adults,,
01/07/2022,REIGATE & BD CARE OP,Britannia Homecare Ltd,Home Base Care,309.96,Dom Care - Adults,,
01/07/2022,REIGATE & BD CARE OP,Britannia Homecare Ltd,Home Base Care,547.00,Dom Care - Adults,,
01/07/2022,LD-AUT CNTR TM CARE,Britannia Homecare Ltd,Home Base Care,431.20,Dom Care - Adults,,
01/07/2022,TANDRIDGE CARE OP,Britannia Homecare Ltd,Home Base Care,335.44,Dom Care - Adults,,
01/07/2022,REIGATE & BD CARE OP,Britannia Homecare Ltd,Home Base Care,486.04,Dom Care - Adults,,
01/07/2022,REIGATE & BD CARE OP,Britannia Homecare Ltd,Home Base Care,435.32,Dom Care - Adults,,
01/07/2022,REIGATE & BD CARE OP,Britannia Homecare Ltd,Home Base Care,483.28,Dom Care - Adults,,
01/07/2022,REIGATE & BD CARE OP,Britannia Homecare Ltd,Home Base Care,"1,102.08",Dom Care - Adults,,
01/07/2022,TANDRIDGE CARE PD,Britannia Homecare Ltd,Home Base Care,395.16,Dom Care - Adults,,
01/07/2022,TANDRIDGE CARE OP,Britannia Homecare Ltd,Home Base Care,256.55,Dom Care - Adults,,
01/07/2022,REIGATE & BD CARE OP,Britannia Homecare Ltd,Home Base Care,285.78,Dom Care - Adults,,
01/07/2022,TANDRIDGE CARE PD,Britannia Homecare Ltd,Home Base Care,455.66,Dom Care - Adults,,
01/07/2022,REIGATE & BD CARE OP,Britannia Homecare Ltd,Home Base Care,551.04,Dom Care - Adults,,
01/07/2022,TANDRIDGE CARE OP,Britannia Homecare Ltd,Home Base Care,892.68,Dom Care - Adults,,
01/07/2022,TANDRIDGE CARE PD,Britannia Homecare Ltd,Home Base Care,"1,257.82",Dom Care - Adults,,
01/07/2022,REIGATE & BD CARE OP,Britannia Homecare Ltd,Home Base Care,513.10,Dom Care - Adults,,
01/07/2022,REIGATE & BD CARE OP,Britannia Homecare Ltd,Home Base Care,309.96,Dom Care - Adults,,
01/07/2022,REIGATE & BD CARE OP,Britannia Homecare Ltd,Home Base Care,265.72,Dom Care - Adults,,
01/07/2022,TANDRIDGE CARE OP,Britannia Homecare Ltd,Home Base Care,464.94,Dom Care - Adults,,
01/07/2022,REIGATE & BD CARE PD,Britannia Homecare Ltd,Home Base Care,399.05,Dom Care - Adults,,
01/07/2022,TANDRIDGE CARE OP,Britannia Homecare Ltd,Home Base Care,"1,252.68",Dom Care - Adults,,
01/07/2022,TANDRIDGE CARE OP,Britannia Homecare Ltd,Home Base Care,619.92,Dom Care - Adults,,
01/07/2022,REIGATE & BD CARE OP,Britannia Homecare Ltd,Home Base Care,"1,102.08",Dom Care - Adults,,
01/07/2022,TANDRIDGE CARE OP,Britannia Homecare Ltd,Home Base Care,"1,336.16",Dom Care - Adults,,
01/07/2022,TANDRIDGE CARE PD,Britannia Homecare Ltd,Home Base Care,446.50,Dom Care - Adults,,
01/07/2022,TANDRIDGE CARE OP,Britannia Homecare Ltd,Home Base Care,668.08,Dom Care - Adults,,
01/07/2022,REIGATE & BD CARE OP,Britannia Homecare Ltd,Home Base Care,898.24,Dom Care - Adults,,
01/07/2022,TANDRIDGE CARE OP,Britannia Homecare Ltd,Home Base Care,503.16,Dom Care - Adults,,
01/07/2022,TANDRIDGE CARE OP,Britannia Homecare Ltd,Home Base Care,335.44,Dom Care - Adults,,
01/07/2022,TANDRIDGE CARE OP,Britannia Homecare Ltd,Home Base Care,430.92,Dom Care - Adults,,
01/07/2022,REIGATE & BD CARE PD,Britannia Homecare Ltd,Home Base Care,"1,396.46",Dom Care - Adults,,
01/07/2022,REIGATE & BD CARE OP,Britannia Homecare Ltd,Home Base Care,467.18,Dom Care - Adults,,
01/07/2022,TANDRIDGE CARE OP,Britannia Homecare Ltd,Home Base Care,"1,341.76",Dom Care - Adults,,
01/07/2022,TANDRIDGE CARE OP,Britannia Homecare Ltd,Home Base Care,503.16,Dom Care - Adults,,
01/07/2022,REIGATE & BD CARE OP,Britannia Homecare Ltd,Home Base Care,670.88,Dom Care - Adults,,
01/07/2022,MOLE VALLEY CARE PD,Britannia Homecare Ltd,Home Base Care,999.74,Dom Care - Adults,,
01/07/2022,REIGATE & BD CARE PD,Britannia Homecare Ltd,Home Base Care,352.52,Dom Care - Adults,,
01/07/2022,REIGATE & BD CARE OP,Britannia Homecare Ltd,Home Base Care,553.38,Dom Care - Adults,,
01/07/2022,MOLE VALLEY CARE OP,Britannia Homecare Ltd,Home Base Care,718.76,Dom Care - Adults,,
01/07/2022,REIGATE & BD CARE OP,Britannia Homecare Ltd,Home Base Care,746.80,Dom Care - Adults,,
01/07/2022,REIGATE & BD CARE OP,Britannia Homecare Ltd,Home Base Care,503.16,Dom Care - Adults,,
01/07/2022,REIGATE & BD CARE OP,Britannia Homecare Ltd,Home Base Care,558.22,Dom Care - Adults,,
01/07/2022,TANDRIDGE CARE OP,Britannia Homecare Ltd,Home Base Care,510.00,Dom Care - Adults,,
01/07/2022,REIGATE & BD CARE OP,Britannia Homecare Ltd,Home Base Care,"1,512.76",Dom Care - Adults,,
01/07/2022,TANDRIDGE CARE OP,Britannia Homecare Ltd,Home Base Care,551.04,Dom Care - Adults,,
01/07/2022,REIGATE & BD CARE OP,Britannia Homecare Ltd,Home Base Care,"1,419.82",Dom Care - Adults,,
01/07/2022,TANDRIDGE CARE OP,Britannia Homecare Ltd,Home Base Care,"1,150.00",Dom Care - Adults,,
01/07/2022,TANDRIDGE CARE OP,Britannia Homecare Ltd,Home Base Care,"1,253.60",Dom Care - Adults,,
01/07/2022,REIGATE & BD CARE PD,Britannia Homecare Ltd,Home Base Care,518.38,Dom Care - Adults,,
01/07/2022,TANDRIDGE CARE OP,Britannia Homecare Ltd,Home Base Care,468.82,Dom Care - Adults,,
01/07/2022,TANDRIDGE CARE PD,Britannia Homecare Ltd,Home Base Care,273.80,Dom Care - Adults,,
01/07/2022,REIGATE & BD CARE OP,Britannia Homecare Ltd,Home Base Care,548.82,Dom Care - Adults,,
01/07/2022,TANDRIDGE CARE PD,Britannia Homecare Ltd,Home Base Care,520.74,Dom Care - Adults,,
01/07/2022,TANDRIDGE CARE PD,Britannia Homecare Ltd,Home Base Care,"1,250.24",Dom Care - Adults,,
01/07/2022,REIGATE & BD CARE PD,Britannia Homecare Ltd,Home Base Care,323.46,Dom Care - Adults,,
01/07/2022,TANDRIDGE CARE OP,Britannia Homecare Ltd,Home Base Care,398.76,Dom Care - Adults,,
01/07/2022,REIGATE & BD CARE OP,Britannia Homecare Ltd,Home Base Care,290.94,Dom Care - Adults,,
01/07/2022,REIGATE & BD CARE OP,Britannia Homecare Ltd,Home Base Care,335.44,Dom Care - Adults,,
01/07/2022,REIGATE & BD CARE OP,Britannia Homecare Ltd,Home Base Care,309.96,Dom Care - Adults,,
01/07/2022,REIGATE & BD CARE PD,Britannia Homecare Ltd,Home Base Care,287.82,Dom Care - Adults,,
01/07/2022,TANDRIDGE CARE OP,Britannia Homecare Ltd,Home Base Care,668.08,Dom Care - Adults,,
01/07/2022,REIGATE & BD CARE OP,Britannia Homecare Ltd,Home Base Care,383.32,Dom Care - Adults,,
01/07/2022,MOLE VALLEY CARE OP,Britannia Homecare Ltd,Home Base Care,692.16,Dom Care - Adults,,
01/07/2022,REIGATE & BD CARE PD,Britannia Homecare Ltd,Home Base Care,309.96,Dom Care - Adults,,
01/07/2022,REIGATE & BD CARE PD,Britannia Homecare Ltd,Home Base Care,493.96,Dom Care - Adults,,
01/07/2022,TANDRIDGE CARE OP,Britannia Homecare Ltd,Home Base Care,316.84,Dom Care - Adults,,
01/07/2022,LD-AUT CNTR TM CARE,Caremark (Guildford & Woking),Home Base Care,582.70,Dom Care - Adults,,
01/07/2022,LD-AUT CNTR TM CARE,Caremark (Guildford & Woking),Home Base Care,634.72,Dom Care - Adults,,
01/07/2022,LD-AUT CNTR TM CARE,Caremark (Guildford & Woking),Home Base Care,624.32,Dom Care - Adults,,
01/07/2022,ELMBRIDGE CMHRS CARE,Caremark Elmbridge,Home Base Care,395.00,Other Care,,
01/07/2022,ELMBRIDGE CARE OP,Caremark Elmbridge,Home Base Care,483.50,Other Care,,
01/07/2022,ELMBRIDGE CARE OP,Caremark Elmbridge,Home Base Care,693.40,Other Care,,
01/07/2022,ELMBRIDGE CMHRS CARE,Caremark Elmbridge,Home Base Care,395.00,Other Care,,
01/07/2022,ELMBRIDGE CARE OP,Caremark Elmbridge,Home Base Care,585.40,Other Care,,
01/07/2022,ELMBRIDGE CARE OP,Caremark Elmbridge,Home Base Care,504.70,Other Care,,
01/07/2022,ELMBRIDGE CMHRS CARE,Caremark Elmbridge,Home Base Care,395.00,Other Care,,
01/07/2022,PLD TRANSITION,Caremark Elmbridge,Home Base Care,316.00,Other Care,,
01/07/2022,ELMBRIDGE CARE OP,Caremark Elmbridge,Home Base Care,582.40,Other Care,,
01/07/2022,EPSOM & EWELL CARE O,Caremark Sutton,Home Base Care,324.20,Dom Care - Adults,,
01/07/2022,EPSOM & EWELL CARE O,Caremark Sutton,Home Base Care,324.20,Dom Care - Adults,,
01/07/2022,ELM FARM GRT,Castle Water Ltd,Water Charges,"2,368.92",Utilities - Water,,
01/07/2022,PERSONAL BUDGET (NE),Redacted Personnel Data,Agency Placement Expenditure,"1,272.86",Individual - NEC,,
01/07/2022,FEASIBILITY FUNDING,CD Surveys Ltd,Fees,"4,794.00",Countryside SWT,,
01/07/2022,HYBRID MAIL,CFH Total Document Management Ltd,Printing,"16,183.30",Printing & Repro,,
01/07/2022,EPSOM & EWELL CARE P,Circle of Care Ltd,Home Base Care,"1,827.84",Respite - OP,,
01/07/2022,EPSOM & EWELL CARE P,Circle of Care Ltd,Home Base Care,"1,827.84",Respite - OP,,
01/07/2022,LD-AUT CNTR TM CARE,Redacted Personnel Data,Non-Staff Related Transport Costs,"1,650.00",Day Care - LD,,
01/07/2022,ELMB - MEMBS ALLOCS,Cobham Community Garden CIC,Grants-Third Sector and Voluntary Orgs/Charities,"1,000.00",Grants-Member Allocs,,
01/07/2022,FMR LONGMEAD AEC,Colours Decorating Ltd,Corporate Planned Maintenance,"13,841.45","Comm, Res & Inv Prop",,
01/07/2022,GUILDFORD CMHRS CARE,Colwend Hygiene Services,Other Community Care,"1,115.00",Cleaning Equipment,,
01/07/2022,LD-AUT CNTR TM CARE,County Care Independent Living Ltd,Other Community Care,905.00,Dom Care - Adults,,
01/07/2022,LD-AUT CNTR TM CARE,County Care Independent Living Ltd,Other Community Care,253.40,Dom Care - Adults,,
01/07/2022,LD-AUT CNTR TM CARE,County Care Independent Living Ltd,Other Community Care,362.00,Dom Care - Adults,,
01/07/2022,LD-AUT CNTR TM CARE,County Care Independent Living Ltd,Other Community Care,325.80,Dom Care - Adults,,
01/07/2022,LD-AUT CNTR TM CARE,County Care Independent Living Ltd,Day Care,401.33,Dom Care - Adults,,
01/07/2022,LD-AUT CNTR TM CARE,County Care Independent Living Ltd,Day Care,401.68,Dom Care - Adults,,
01/07/2022,NW AGENCY PLACE-ED,Derwen College,Agency Placement Expenditure,"11,495.77",Staff Training,,
01/07/2022,LD-AUT CNTR TM CARE,Disability Initiative,Day Care,"1,250.18",Day Care - PSD,,
01/07/2022,LD-AUT CNTR TM CARE,Disability Initiative,Day Care,"1,154.02",Day Care - PSD,,
01/07/2022,SURREY HEATH CARE PD,Disability Initiative,Day Care,865.51,Day Care - PSD,,
01/07/2022,SURREY HEATH CARE PD,Disability Initiative,Day Care,865.51,Day Care - PSD,,
01/07/2022,SURREY HEATH CARE OP,Disability Initiative,Day Care,769.34,Day Care - PSD,,
01/07/2022,WAVERLEY CARE PD,Disability Initiative,Day Care,480.84,Day Care - PSD,,
01/07/2022,SURREY HEATH CARE OP,Disability Initiative,Day Care,769.34,Day Care - PSD,,
01/07/2022,WOKING CARE PD,Disability Initiative,Day Care,711.67,Day Care - PSD,,
01/07/2022,SURREY HEATH CARE PD,Disability Initiative,Day Care,"1,154.02",Day Care - PSD,,
01/07/2022,LD-AUT CNTR TM CARE,Disability Initiative,Day Care,"1,154.02",Day Care - PSD,,
01/07/2022,SURREY HEATH CARE PD,Disability Initiative,Day Care,"2,019.53",Day Care - PSD,,
01/07/2022,SURREY HEATH CARE OP,Disability Initiative,Day Care,769.34,Day Care - PSD,,
01/07/2022,SURREY HEATH CARE OP,Disability Initiative,Day Care,384.67,Day Care - PSD,,
01/07/2022,SURREY HEATH CARE PD,Disability Initiative,Day Care,384.67,Day Care - PSD,,
01/07/2022,SURREY HEATH CARE PD,Disability Initiative,Day Care,"1,250.18",Day Care - PSD,,
01/07/2022,SURREY HEATH CARE PD,Disability Initiative,Day Care,"1,250.18",Day Care - PSD,,
01/07/2022,WOKING CARE PD,Disability Initiative,Day Care,865.51,Day Care - PSD,,
01/07/2022,SURREY HEATH CARE PD,Disability Initiative,Day Care,384.67,Day Care - PSD,,
01/07/2022,LD-AUT CNTR TM CARE,Disability Initiative,Day Care,"1,250.18",Day Care - PSD,,
01/07/2022,SURREY HEATH CARE PD,Disability Initiative,Day Care,"1,250.18",Day Care - PSD,,
01/07/2022,HQ PYMNT OF INS CLMS,DWF Law LLP,Ins Claims Other Insured Paid,"5,286.00",General Support,,
01/07/2022,NE ALTERNATIVE SEN,Edge Disability Consultancy Ltd,Agency Placement Expenditure,583.37,SEN Specialist Supp,,
01/07/2022,"CRTKS HSE, CRANMERE",Elmbridge Borough Council,Rates,432.00,Local Government,,
01/07/2022,RUNNYMEDE CARE OP,Emma's House,Day Care,462.00,Residential - MH,,
01/07/2022,FLT 1A LIB STONELEGH,Epsom & Ewell Borough Council,Rates,380.00,Grants-Member Allocs,,
01/07/2022,FLT 1A LIB STONELEGH,Epsom & Ewell Borough Council,Rates,380.00,Grants-Member Allocs,,
01/07/2022,NE AGENCY PLACE-ED,Fernways School,Agency Placement Expenditure,"9,266.84",SEND Agncy Placement,,
01/07/2022,NE AGENCY PLACE-ED,Fernways School,Agency Placement Expenditure,"12,046.89",SEND Agncy Placement,,
01/07/2022,SW AGENCY PLACE-ED,Fernways School,Agency Placement Expenditure,"18,302.00",SEND Agncy Placement,,
01/07/2022,LD-AUT CNTR TM CARE,Field Lane Foundation,Other Community Care,589.34,Supp Living - MH,,
01/07/2022,LD-AUT CNTR TM CARE,Focus Care Agency Ltd,Supported Living,"10,665.60",Supp Living - MH,,
01/07/2022,SW ALTERNATIVE SEN,GASP Motor Project,Agency Placement Expenditure,"1,100.00",SEN Specialist Supp,,
01/07/2022,WAVERLEY CARE OP,Greenbanks Nursing Home,Respite Residential Dementia,"3,060.00",Residential - LD,,
01/07/2022,WAVERLEY CARE OP,Greenbanks Nursing Home,Respite Residential Dementia,"3,162.00",Residential - LD,,
01/07/2022,WAVERLEY CARE OP,Greenbanks Nursing Home,Respite Residential Dementia,714.00,Residential - LD,,
01/07/2022,HOWFLD PIRBRIGHT LCK,Guildford Borough Council - Council,Rates,313.00,Local Government,,
01/07/2022,LOCK COTT FRIM LOCK,Guildford Borough Council - Council,Rates,336.00,Local Government,,
01/07/2022,GLDFD - MEMBS ALLOCS,Guildford Chiropractic Centre,Grants-For Profit Orgs incl Comm Int & Soc Enterp,750.00,Grants-Member Allocs,,
01/07/2022,NULL,Hampshire County Council,NULL,"3,343.04",Pensions,,
01/07/2022,NULL,Hampshire County Council,NULL,"1,891.38",Pensions,,
01/07/2022,NULL,Hampshire County Council,NULL,560.21,Pensions,,
01/07/2022,NULL,Hampshire County Council,NULL,"1,142.67",Pensions,,
01/07/2022,NULL,Hampshire County Council,NULL,887.71,Pensions,,
01/07/2022,NULL,Hampshire County Council,NULL,"2,167.67",Pensions,,
01/07/2022,NULL,Hampshire County Council,NULL,"2,972.03",Pensions,,
01/07/2022,NULL,Hampshire County Council,NULL,"7,243.18",Pensions,,
01/07/2022,NULL,Hampshire County Council,NULL,"4,618.43",Pensions,,
01/07/2022,NULL,Hampshire County Council,NULL,"2,386.32",Pensions,,
01/07/2022,NULL,Hampshire County Council,NULL,"1,008.76",Pensions,,
01/07/2022,NULL,Hampshire County Council,NULL,"7,556.51",Pensions,,
01/07/2022,NULL,Hampshire County Council,NULL,"4,008.51",Pensions,,
01/07/2022,NULL,Hampshire County Council,NULL,"1,367.91",Pensions,,
01/07/2022,NE ALTERNATIVE SEN,Healing Hearts & Minds With Horses,Agency Placement Expenditure,"9,600.00",SEND Agncy Placement,,
01/07/2022,NE AGENCY PLACE-ED,Heathermount,Agency Placement Expenditure,"32,714.92",School Support Serv,,
01/07/2022,NE AGENCY PLACE-ED,Heathermount,Agency Placement Expenditure,"20,729.34",School Support Serv,,
01/07/2022,LD-AUT CNTR TM CARE,Jigsaw +,Day Care,"4,922.58",Day Care - PSD,,
01/07/2022,NULL,L B of Redbridge Pension Fund,NULL,"24,361.81",Pensions,,
01/07/2022,NULL,L B of Redbridge Pension Fund,NULL,"13,514.33",Pensions,,
01/07/2022,NULL,L B of Redbridge Pension Fund,NULL,"12,694.10",Pensions,,
01/07/2022,NULL,L B of Redbridge Pension Fund,NULL,"9,880.73",Pensions,,
01/07/2022,NULL,L B of Redbridge Pension Fund,NULL,"8,470.46",Pensions,,
01/07/2022,NULL,L B of Redbridge Pension Fund,NULL,"11,190.30",Pensions,,
01/07/2022,NULL,L B of Redbridge Pension Fund,NULL,"2,475.67",Pensions,,
01/07/2022,NULL,L B of Redbridge Pension Fund,NULL,"2,975.29",Pensions,,
01/07/2022,NULL,L B of Redbridge Pension Fund,NULL,"4,421.23",Pensions,,
01/07/2022,NULL,L B of Redbridge Pension Fund,NULL,"3,555.47",Pensions,,
01/07/2022,NULL,L B of Redbridge Pension Fund,NULL,"9,726.22",Pensions,,
01/07/2022,NULL,L B of Redbridge Pension Fund,NULL,"1,421.25",Pensions,,
01/07/2022,NULL,L B of Redbridge Pension Fund,NULL,"15,766.69",Pensions,,
01/07/2022,NULL,L B of Redbridge Pension Fund,NULL,"4,443.95",Pensions,,
01/07/2022,NULL,L B of Redbridge Pension Fund,NULL,"4,146.37",Pensions,,
01/07/2022,NULL,L B of Redbridge Pension Fund,NULL,"1,687.85",Pensions,,
01/07/2022,NULL,L B of Redbridge Pension Fund,NULL,"16,841.68",Pensions,,
01/07/2022,NULL,L B of Redbridge Pension Fund,NULL,"25,675.52",Pensions,,
01/07/2022,NULL,L B of Redbridge Pension Fund,NULL,"1,918.06",Pensions,,
01/07/2022,NULL,L B of Redbridge Pension Fund,NULL,"6,028.00",Pensions,,
01/07/2022,NULL,L B of Redbridge Pension Fund,NULL,"16,930.45",Pensions,,
01/07/2022,NULL,L B of Redbridge Pension Fund,NULL,"4,724.44",Pensions,,
01/07/2022,NULL,L B of Redbridge Pension Fund,NULL,"10,818.77",Pensions,,
01/07/2022,NULL,L B of Redbridge Pension Fund,NULL,"6,814.59",Pensions,,
01/07/2022,NULL,L B of Redbridge Pension Fund,NULL,"6,574.83",Pensions,,
01/07/2022,NULL,L B of Redbridge Pension Fund,NULL,"1,281.27",Pensions,,
01/07/2022,NULL,L B of Redbridge Pension Fund,NULL,"13,587.94",Pensions,,
01/07/2022,NULL,L B of Redbridge Pension Fund,NULL,"7,494.56",Pensions,,
01/07/2022,NULL,L B of Redbridge Pension Fund,NULL,"3,528.13",Pensions,,
01/07/2022,NULL,L B of Redbridge Pension Fund,NULL,"39,152.11",Pensions,,
01/07/2022,NULL,L B of Redbridge Pension Fund,NULL,"25,626.09",Pensions,,
01/07/2022,NULL,L B of Redbridge Pension Fund,NULL,"10,702.24",Pensions,,
01/07/2022,NULL,L B of Redbridge Pension Fund,NULL,"36,704.35",Pensions,,
01/07/2022,NULL,L B of Redbridge Pension Fund,NULL,"2,621.50",Pensions,,
01/07/2022,NULL,L B of Redbridge Pension Fund,NULL,"9,215.05",Pensions,,
01/07/2022,NULL,L B of Redbridge Pension Fund,NULL,"7,480.98",Pensions,,
01/07/2022,NULL,L B of Redbridge Pension Fund,NULL,"14,633.31",Pensions,,
01/07/2022,NULL,L B of Redbridge Pension Fund,NULL,"24,392.11",Pensions,,
01/07/2022,NULL,L B of Redbridge Pension Fund,NULL,"6,660.35",Pensions,,
01/07/2022,NULL,L B of Redbridge Pension Fund,NULL,"21,611.84",Pensions,,
01/07/2022,NULL,L B of Redbridge Pension Fund,NULL,"3,533.30",Pensions,,
01/07/2022,NULL,L B of Redbridge Pension Fund,NULL,"41,207.39",Pensions,,
01/07/2022,NULL,L B of Redbridge Pension Fund,NULL,"3,892.86",Pensions,,
01/07/2022,NULL,L B of Redbridge Pension Fund,NULL,"7,063.18",Pensions,,
01/07/2022,NULL,L B of Redbridge Pension Fund,NULL,"5,290.52",Pensions,,
01/07/2022,NULL,L B of Redbridge Pension Fund,NULL,"2,109.59",Pensions,,
01/07/2022,NULL,L B of Redbridge Pension Fund,NULL,"25,645.19",Pensions,,
01/07/2022,NULL,L B of Redbridge Pension Fund,NULL,"6,999.29",Pensions,,
01/07/2022,NULL,L B of Redbridge Pension Fund,NULL,"6,534.39",Pensions,,
01/07/2022,NULL,L B of Redbridge Pension Fund,NULL,"10,971.39",Pensions,,
01/07/2022,NULL,L B of Redbridge Pension Fund,NULL,"2,197.11",Pensions,,
01/07/2022,NULL,L B of Redbridge Pension Fund,NULL,"2,833.63",Pensions,,
01/07/2022,WAVERLEY CARE OP,Lantern Care Services Ltd,Home Base Care,371.00,Dom Care - Adults,,
01/07/2022,LD-AUT CNTR TM CARE,Linden House,Day Care,775.68,Day Care - PSD,,
01/07/2022,SE AGENCY/SPI P16-ED,Linden Lodge School,Local Authorities,"8,987.34",Play Services,,
01/07/2022,NE AGENCY PLACE-ED,Linden Lodge School,Local Authorities,"8,987.34",Play Services,,
01/07/2022,NULL,London Borough of Croydon,NULL,"3,112.35",Pensions,,
01/07/2022,NULL,London Borough of Croydon,NULL,"13,865.79",Pensions,,
01/07/2022,NULL,London Borough of Croydon,NULL,"16,240.38",Pensions,,
01/07/2022,NULL,London Borough of Croydon,NULL,"9,197.78",Pensions,,
01/07/2022,NULL,London Borough of Croydon,NULL,"4,105.43",Pensions,,
01/07/2022,NULL,London Borough of Croydon,NULL,"4,262.29",Pensions,,
01/07/2022,NULL,London Borough of Croydon,NULL,"11,437.06",Pensions,,
01/07/2022,NULL,London Borough of Croydon,NULL,"5,409.44",Pensions,,
01/07/2022,NULL,London Borough of Hillingdon Pensio,NULL,"4,097.65",Pensions,,
01/07/2022,NULL,London Borough of Hillingdon Pensio,NULL,"17,215.11",Pensions,,
01/07/2022,NULL,London Borough Of Hounslow,NULL,"1,816.93",Local Government,,
01/07/2022,NULL,London Borough Of Hounslow,NULL,"7,179.73",Local Government,,
01/07/2022,NULL,London Borough Wandsworth,NULL,"5,020.01",Pensions,,
01/07/2022,NULL,London Borough Wandsworth,NULL,"14,253.42",Pensions,,
01/07/2022,NULL,London Borough Wandsworth,NULL,"4,279.89",Pensions,,
01/07/2022,NULL,London Borough Wandsworth,NULL,"2,494.44",Pensions,,
01/07/2022,NULL,London Borough Wandsworth,NULL,"1,483.35",Pensions,,
01/07/2022,NULL,London Borough Wandsworth,NULL,680.22,Pensions,,
01/07/2022,WAVERLEY CMHRS CARE,Macadamia Support Ltd,Supported Living,"8,561.55",Residential - MH,,
01/07/2022,TNDRG - MEMBS ALLOCS,Redacted Personnel Data ,Grants-Third Sector and Voluntary Orgs/Charities,250.00,Grants-Member Allocs,,
01/07/2022,PERSONAL BUDGET (NW),Redacted Personnel Data ,Agency Placement Expenditure,"1,200.00",Individual - NEC,,
01/07/2022,LD-AUT CNTR TM CARE,Milford Del Support Agency Ltd,Supported Living,"4,121.12",Supp Living - LD,,
01/07/2022,LD-AUT CNTR TM CARE,Millennium Farm Trust,Day Care,748.93,Residential - LD,,
01/07/2022,NE UASC NRPF 18+ CRE,Redacted Personnel Data ,Third Party Payments-Other Agencies,553.83,Invoicing Plan Req.,,
01/07/2022,SUNYRIDGE KNLL FM LA,Mole Valley District Council - Tax,Rates,"1,447.00",Local Government,,
01/07/2022,SE AGENCY PLACE-ED,Moon Hall School,Agency Placement Expenditure,"2,155.23",Schools,,
01/07/2022,SE AGENCY PLACE-ED,Moon Hall School,Agency Placement Expenditure,"2,155.23",Schools,,
01/07/2022,SE AGENCY PLACE-ED,Moon Hall School,Agency Placement Expenditure,"2,217.91",Schools,,
01/07/2022,SE AGENCY PLACE-ED,Moor House School & College,Agency Placement Expenditure,"3,025.26",School Support Serv,,
01/07/2022,SE AGENCY/SPI P16-ED,Moor House School & College,Agency Placement Expenditure,"3,876.87",School Support Serv,,
01/07/2022,SE AGENCY PLACE-ED,Moor House School & College,Agency Placement Expenditure,"2,578.95",School Support Serv,,
01/07/2022,NW AGENCY PLACE-ED,Moor House School & College,Agency Placement Expenditure,"3,330.97",School Support Serv,,
01/07/2022,SE AGENCY PLACE-ED,Moor House School & College,Agency Placement Expenditure,"3,435.51",School Support Serv,,
01/07/2022,SE AGENCY PLACE-ED,Moor House School & College,Agency Placement Expenditure,"3,039.58",School Support Serv,,
01/07/2022,SE AGENCY/SPI P16-ED,Moor House School & College,Agency Placement Expenditure,"3,876.87",School Support Serv,,
01/07/2022,SE AGENCY PLACE-ED,Moor House School & College,Agency Placement Expenditure,"3,478.22",School Support Serv,,
01/07/2022,SE AGENCY PLACE-ED,Moor House School & College,Agency Placement Expenditure,"3,478.22",School Support Serv,,
01/07/2022,SE AGENCY PLACE-ED,Moor House School & College,Agency Placement Expenditure,"3,649.19",School Support Serv,,
01/07/2022,SE AGENCY PLACE-ED,Moor House School & College,Agency Placement Expenditure,"3,435.51",School Support Serv,,
01/07/2022,SW AGENCY/SPI P16-ED,Moor House School & College,Agency Placement Expenditure,"5,644.21",School Support Serv,,
01/07/2022,SE AGENCY/SPI P16-ED,Moor House School & College,Agency Placement Expenditure,"3,942.95",School Support Serv,,
01/07/2022,NW AGENCY PLACE-ED,Moor House School & College,Agency Placement Expenditure,"4,050.31",School Support Serv,,
01/07/2022,SE AGENCY/SPI P16-ED,Moor House School & College,Agency Placement Expenditure,"4,169.27",School Support Serv,,
01/07/2022,NW AGENCY PLACE-ED,Moor House School & College,Agency Placement Expenditure,"3,223.94",School Support Serv,,
01/07/2022,SE AGENCY PLACE-ED,Moor House School & College,Agency Placement Expenditure,"2,344.96",School Support Serv,,
01/07/2022,NE AGENCY PLACE-ED,Moor House School & College,Agency Placement Expenditure,"3,685.95",School Support Serv,,
01/07/2022,SE AGENCY PLACE-ED,Moor House School & College,Agency Placement Expenditure,"3,945.68",School Support Serv,,
01/07/2022,SE AGENCY/SPI P16-ED,Moor House School & College,Agency Placement Expenditure,"4,239.44",School Support Serv,,
01/07/2022,SE AGENCY PLACE-ED,Moor House School & College,Agency Placement Expenditure,"3,774.71",School Support Serv,,
01/07/2022,NE AGENCY PLACE-ED,Moor House School & College,Agency Placement Expenditure,"3,038.57",School Support Serv,,
01/07/2022,SE AGENCY PLACE-ED,Moor House School & College,Agency Placement Expenditure,"2,654.16",School Support Serv,,
01/07/2022,SE AGENCY PLACE-ED,Moor House School & College,Agency Placement Expenditure,"3,223.94",School Support Serv,,
01/07/2022,SE AGENCY PLACE-ED,Moor House School & College,Agency Placement Expenditure,"3,774.71",School Support Serv,,
01/07/2022,SE AGENCY PLACE-ED,Moor House School & College,Agency Placement Expenditure,"3,389.46",School Support Serv,,
01/07/2022,SE AGENCY/SPI P16-ED,Moor House School & College,Agency Placement Expenditure,"3,876.87",School Support Serv,,
01/07/2022,SW AGENCY PLACE-ED,Moor House School & College,Agency Placement Expenditure,"5,422.57",School Support Serv,,
01/07/2022,SE AGENCY PLACE-ED,Moor House School & College,Agency Placement Expenditure,"2,796.48",School Support Serv,,
01/07/2022,SE AGENCY PLACE-ED,Moor House School & College,Agency Placement Expenditure,"2,939.05",School Support Serv,,
01/07/2022,SE AGENCY PLACE-ED,Moor House School & College,Agency Placement Expenditure,"4,050.31",School Support Serv,,
01/07/2022,SE AGENCY/SPI P16-ED,Moor House School & College,Agency Placement Expenditure,"3,942.95",School Support Serv,,
01/07/2022,NW AGENCY PLACE-ED,Moor House School & College,Agency Placement Expenditure,"2,939.05",School Support Serv,,
01/07/2022,NE AGENCY PLACE-ED,Moor House School & College,Agency Placement Expenditure,"2,885.24",School Support Serv,,
01/07/2022,SE AGENCY PLACE-ED,Moor House School & College,Agency Placement Expenditure,"3,478.22",School Support Serv,,
01/07/2022,NE AGENCY/SPI P16-ED,Moor House School & College,Agency Placement Expenditure,"3,876.87",School Support Serv,,
01/07/2022,SE AGENCY PLACE-ED,Moor House School & College,Agency Placement Expenditure,"4,833.71",School Support Serv,,
01/07/2022,SE AGENCY PLACE-ED,Moor House School & College,Agency Placement Expenditure,"3,038.57",School Support Serv,,
01/07/2022,SW AGENCY/SPI P16-ED,Moor House School & College,Agency Placement Expenditure,"5,644.21",School Support Serv,,
01/07/2022,SW AGENCY/SPI P16-ED,Moor House School & College,Agency Placement Expenditure,"4,512.73",School Support Serv,,
01/07/2022,SE AGENCY PLACE-ED,Moor House School & College,Agency Placement Expenditure,"3,038.99",School Support Serv,,
01/07/2022,SW AGENCY PLACE-ED,Moor House School & College,Agency Placement Expenditure,"4,910.45",School Support Serv,,
01/07/2022,SE AGENCY PLACE-ED,Moor House School & College,Agency Placement Expenditure,"4,050.31",School Support Serv,,
01/07/2022,SE AGENCY PLACE-ED,Moor House School & College,Agency Placement Expenditure,"4,050.31",School Support Serv,,
01/07/2022,SE AGENCY/SPI P16-ED,Moor House School & College,Local Authorities,"4,169.27",School Support Serv,,
01/07/2022,NE AGENCY/SPI P16-ED,Moor House School & College,Agency Placement Expenditure,"3,069.77",School Support Serv,,
01/07/2022,SE AGENCY PLACE-ED,Moor House School & College,Agency Placement Expenditure,"3,038.57",School Support Serv,,
01/07/2022,SE AGENCY PLACE-ED,Moor House School & College,Agency Placement Expenditure,"3,389.46",School Support Serv,,
01/07/2022,NW AGENCY PLACE-ED,Moor House School & College,Agency Placement Expenditure,"3,143.11",School Support Serv,,
01/07/2022,SE AGENCY PLACE-ED,Moor House School & College,Agency Placement Expenditure,"2,939.05",School Support Serv,,
01/07/2022,NE AGENCY PLACE-ED,Moor House School & College,Agency Placement Expenditure,"3,025.26",School Support Serv,,
01/07/2022,SW AGENCY PLACE-ED,Moor House School & College,Agency Placement Expenditure,"5,422.58",School Support Serv,,
01/07/2022,NE AGENCY PLACE-ED,Moor House School & College,Agency Placement Expenditure,"4,050.31",School Support Serv,,
01/07/2022,SW AGENCY PLACE-ED,Moor House School & College,Agency Placement Expenditure,"4,277.55",School Support Serv,,
01/07/2022,SE AGENCY/SPI P16-ED,Moor House School & College,Agency Placement Expenditure,"3,876.87",School Support Serv,,
01/07/2022,NW AGENCY PLACE-ED,Moor House School & College,Agency Placement Expenditure,"2,885.24",School Support Serv,,
01/07/2022,SE AGENCY PLACE-ED,Moor House School & College,Agency Placement Expenditure,"3,435.51",School Support Serv,,
01/07/2022,NW AGENCY/SPI P16-ED,Moor House School & College,Agency Placement Expenditure,"4,461.67",School Support Serv,,
01/07/2022,SE AGENCY PLACE-ED,Moor House School & College,Agency Placement Expenditure,"3,891.28",School Support Serv,,
01/07/2022,SE AGENCY PLACE-ED,Moor House School & College,Agency Placement Expenditure,"3,002.67",School Support Serv,,
01/07/2022,NE AGENCY PLACE-ED,Moor House School & College,Agency Placement Expenditure,"3,435.51",School Support Serv,,
01/07/2022,SW AGENCY PLACE-ED,More House School,Agency Placement Expenditure,"1,502.40",SEN Specialist Supp,,
01/07/2022,SW AGENCY PLACE-ED,More House School,Agency Placement Expenditure,"1,502.40",SEN Specialist Supp,,
01/07/2022,SW AGENCY PLACE-ED,More House School,Agency Placement Expenditure,"1,704.23",SEN Specialist Supp,,
01/07/2022,SE AGENCY PLACE-ED,More House School,Agency Placement Expenditure,"19,986.00",SEN Specialist Supp,,
01/07/2022,SW AGENCY PLACE-ED,More House School,Agency Placement Expenditure,"1,552.02",SEN Specialist Supp,,
01/07/2022,SE AGENCY PLACE-ED,More House School,Agency Placement Expenditure,"2,535.15",SEN Specialist Supp,,
01/07/2022,LD-AUT CNTR TM CARE,National Autistic Society Services,Day Care,382.92,Residential - MH,,
01/07/2022,LD-AUT CNTR TM CARE,National Autistic Society Services,Day Care,"3,205.16",Residential - MH,,
01/07/2022,LD-AUT CNTR TM CARE,National Autistic Society Services,Day Care,"3,578.60",Residential - MH,,
01/07/2022,LD-AUT CNTR TM CARE,National Autistic Society Services,Day Care,451.48,Residential - MH,,
01/07/2022,COVID TCT,Nviro Ltd,Cleaning and Domestic Supplies,"9,024.00",Building Cleaning,,
01/07/2022,LD-AUT CNTR TM CARE,Oakwood Court College,Other Community Care,"3,944.08",School Support Serv,,
01/07/2022,LD-AUT CNTR TM CARE,Oakwood Court College,Other Community Care,"3,944.08",School Support Serv,,
01/07/2022,SE AGENCY/SPI P16-ED,Orchard Hill College,Agency Placement Expenditure,"39,951.99",Supp Living - LD,,
01/07/2022,NULL,Oxfordshire County Council,NULL,"1,701.65",Local Government,,
01/07/2022,NULL,Oxfordshire County Council,NULL,639.58,Local Government,,
01/07/2022,NULL,Oxfordshire County Council,NULL,"3,268.68",Local Government,,
01/07/2022,NULL,Oxfordshire County Council,NULL,"1,962.99",Local Government,,
01/07/2022,NULL,Oxfordshire County Council,NULL,"5,552.54",Local Government,,
01/07/2022,NULL,Oxfordshire County Council,NULL,"1,516.16",Local Government,,
01/07/2022,NULL,Oxfordshire County Council,NULL,"3,514.31",Local Government,,
01/07/2022,NULL,Oxfordshire County Council,NULL,"1,102.41",Local Government,,
01/07/2022,NULL,Oxfordshire County Council,NULL,"4,804.17",Local Government,,
01/07/2022,NULL,Oxfordshire County Council,NULL,"10,086.59",Local Government,,
01/07/2022,NULL,Oxfordshire County Council,NULL,"5,470.34",Local Government,,
01/07/2022,NULL,Oxfordshire County Council,NULL,"4,627.52",Local Government,,
01/07/2022,NULL,Oxfordshire County Council,NULL,"1,455.20",Local Government,,
01/07/2022,NULL,Oxfordshire County Council,NULL,"1,763.26",Local Government,,
01/07/2022,FEASIBILTY FUND -SCH,Perfect Circle JV Ltd,Fees,"2,767.78",Org & Bus Consult,,
01/07/2022,NULL,Perfect Circle JV Ltd,NULL,"1,309.80",Org & Bus Consult,,
01/07/2022,NULL,Perfect Circle JV Ltd,NULL,"1,383.89",Org & Bus Consult,,
01/07/2022,FEASIBILTY FUND -SCH,Perfect Circle JV Ltd,Fees,"2,767.78",Org & Bus Consult,,
01/07/2022,FEASIBILTY FUND -SCH,Perfect Circle JV Ltd,Fees,"1,383.89",Org & Bus Consult,,
01/07/2022,FEASIBILTY FUND -SCH,Perfect Circle JV Ltd,Fees,"4,151.70",Org & Bus Consult,,
01/07/2022,FEASIBILTY FUND -SCH,Perfect Circle JV Ltd,Fees,"1,383.89",Org & Bus Consult,,
01/07/2022,NE ALTERNATIVE SEN,Potential Occupational Therapy,Other Community Care - Priv,837.92,Non Trade,,
01/07/2022,LD-AUT CNTR TM CARE,Primavera House,Supported Living,"4,099.82",Residential - OP,,
01/07/2022,LAC CELEB & BURSARY,Redacted Personal Data,Children Act Sec 24 Payments,300.00,Invoicing Plan Req.,,
01/07/2022,NE ALTERNATIVE SEN,Redacted Personal Data,Agency Placement Expenditure,280.00,Adult direct payment,,
01/07/2022,LD-AUT CNTR TM CARE,Redacted Personal Data,Direct Payments - Independent Sector,"3,000.00",Adult direct payment,,
01/07/2022,RUNNYMEDE CARE OP,Redacted Personal Data,Direct Payments - Independent Sector,325.98,Adult direct payment,,
01/07/2022,SEN TRANSPORT,Redacted Personal Data,Non-Staff Related Transport Costs,280.02,Childrens Indiv Tran,,
01/07/2022,LAC CELEB & BURSARY,Redacted Personal Data,Children Act Sec 24 Payments,250.00,Invoicing Plan Req.,,
01/07/2022,PLD TRANSITION,Redacted Personal Data,Direct Payments - Independent Sector,"11,962.85",Adult direct payment,,
01/07/2022,SW CARE - CARE LVRS,Redacted Personal Data,Furniture,"1,900.00",Invoicing Plan Req.,,
01/07/2022,PERSONAL BUDGET (NE),Redacted Personal Data,Agency Placement Expenditure,"6,923.53",Adult direct payment,,
01/07/2022,SE PERSONAL BUDG P16,Redacted Personal Data,Agency Placement Expenditure,"8,088.00",Adult direct payment,,
01/07/2022,LD-AUT CNTR TM CARE,Redacted Personal Data,Direct Payments - Independent Sector,"3,422.16",Adult direct payment,,
01/07/2022,SE CARE - LAC,Redacted Personal Data,Furniture,"1,308.00",Invoicing Plan Req.,,
01/07/2022,LD-AUT CNTR TM CARE,Redroof Agency,Supported Living,"5,366.60",Supp Living - MH,,
01/07/2022,ELMBRIDGE CARE PD,Redroof Agency,Supported Living,"8,272.28",Supp Living - MH,,
01/07/2022,DANETREE JUN (ACAD),Reigate & Banstead Borough Council,Attachment of Earnings etc.,325.17,Local Government,,
01/07/2022,PARK HALL,Reigate & Banstead Borough Council,Rates,361.00,Local Government,,
01/07/2022,2 OLD SCHOOL HSE CHP,Reigate & Banstead Borough Council,Rates,433.00,Local Government,,
01/07/2022,COLEBROOK DAY CENTRE,Reigate & Banstead Borough Council,Rates,313.00,Local Government,,
01/07/2022,WOKING CARE PD,Rodwell Farm Nursing Home,Extra Care Housing,"1,933.31",Residential - LD,,
01/07/2022,WOKING CARE PD,Rodwell Farm Nursing Home,Extra Care Housing,"3,007.37",Residential - LD,,
01/07/2022,WOKING CARE OP,Rodwell Farm Nursing Home,Extra Care Housing,"1,933.31",Residential - LD,,
01/07/2022,NULL,Royal County of Berkshire Pension F,NULL,"7,386.82",Pensions,,
01/07/2022,NULL,Royal County of Berkshire Pension F,NULL,"2,158.81",Pensions,,
01/07/2022,NULL,Royal County of Berkshire Pension F,NULL,"8,448.04",Pensions,,
01/07/2022,NULL,Royal County of Berkshire Pension F,NULL,"1,935.36",Pensions,,
01/07/2022,NULL,Runnymede Borough Council,NULL,270.63,Local Government,,
01/07/2022,NULL,Runnymede Borough Council,NULL,256.40,Local Government,,
01/07/2022,LIMBERLOST - SURPLUS,Runnymede Borough Council,Rates,257.00,Local Government,,
01/07/2022,BIRCHLANDS,Runnymede Borough Council,Rates,257.00,Local Government,,
01/07/2022,BIRCHLANDS,Runnymede Borough Council,Rates,383.00,Local Government,,
01/07/2022,GLDFD - MEMBS ALLOCS,Seale & Sands Summer Show,Grants-Third Sector and Voluntary Orgs/Charities,500.00,Grants-Member Allocs,,
01/07/2022,SPLTN - MEMBS ALLOCS,Spelthorne Borough Council,Grants-Public Bodies and Statutory Partnerships,"3,120.00",Grants-Member Allocs,,
01/07/2022,WHITE COT 34 KGTN RD,Spelthorne Borough Council,Rates,"1,303.00",Grants-Member Allocs,,
01/07/2022,LD-AUT CNTR TM CARE,Surrey Choices Ltd,Supported Living,"1,951.88",Day Care - PSD,,
01/07/2022,LD-AUT CNTR TM CARE,Surrey Choices Ltd,Supported Living,675.18,Day Care - PSD,,
01/07/2022,LD-AUT CNTR TM CARE,Surrey Choices Ltd,Supported Living,"2,976.62",Day Care - PSD,,
01/07/2022,PINEHURST,Surrey Heath Borough Council - Tax,Rates,529.00,Local Government,,
01/07/2022,WOODLANDS HOUSE,Surrey Heath Borough Council - Tax,Rates,370.00,Local Government,,
01/07/2022,SRY HTH- MEMB ALLOCS,Surrey Heath Neighbourhood Watch Su,Grants-Third Sector and Voluntary Orgs/Charities,"1,000.00",Grants-Member Allocs,,
01/07/2022,GUILDFORD CARE OP,Surrey Homecare Ltd,Home Base Care,640.65,Dom Care - Adults,,
01/07/2022,GUILDFORD CARE PD,Surrey Homecare Ltd,Home Base Care,652.60,Dom Care - Adults,,
01/07/2022,NULL,SWT Ecology Services Ltd,NULL,"3,372.00",M-D (Property),,
01/07/2022,FEASIBILITY FUNDING,SWT Ecology Services Ltd,Fees,"1,800.00",M-D (Property),,
01/07/2022,NULL,SWT Ecology Services Ltd,NULL,600.00,M-D (Property),,
01/07/2022,DORMERS,Tandridge District Council,Rates,"1,304.00",Local Government,,
01/07/2022,ORCHARD,Tandridge District Council,Rates,396.00,Local Government,,
01/07/2022,HOLLAND JUN,Tandridge District Council,Rates,433.00,Local Government,,
01/07/2022,DORMERS,Tandridge District Council,Rates,266.00,Local Government,,
01/07/2022,NULL,Teachers Pensions,NULL,"27,946.55",Pensions,,
01/07/2022,NULL,Teachers Pensions,NULL,"14,569.66",Pensions,,
01/07/2022,NULL,Teachers Pensions,NULL,"1,043.96",Pensions,,
01/07/2022,NULL,Teachers Pensions,NULL,"32,683.90",Pensions,,
01/07/2022,NULL,Teachers Pensions,NULL,"5,280.27",Pensions,,
01/07/2022,NULL,Teachers Pensions,NULL,"6,774.12",Pensions,,
01/07/2022,NULL,Teachers Pensions,NULL,"2,868.90",Pensions,,
01/07/2022,NULL,Teachers Pensions,NULL,"18,029.00",Pensions,,
01/07/2022,NULL,Teachers Pensions,NULL,"15,414.06",Pensions,,
01/07/2022,NULL,Teachers Pensions,NULL,"2,339.92",Pensions,,
01/07/2022,NULL,Teachers Pensions,NULL,"16,122.42",Pensions,,
01/07/2022,NULL,Teachers Pensions,NULL,"18,772.69",Pensions,,
01/07/2022,NULL,Teachers Pensions,NULL,"9,326.74",Pensions,,
01/07/2022,NULL,Teachers Pensions,NULL,"55,124.03",Pensions,,
01/07/2022,NULL,Teachers Pensions,NULL,"16,963.22",Pensions,,
01/07/2022,NULL,Teachers Pensions,NULL,"74,422.86",Pensions,,
01/07/2022,NULL,Teachers Pensions,NULL,"8,039.16",Pensions,,
01/07/2022,NULL,Teachers Pensions,NULL,"18,466.11",Pensions,,
01/07/2022,NULL,Teachers Pensions,NULL,"2,680.76",Pensions,,
01/07/2022,NULL,Teachers Pensions,NULL,"29,006.73",Pensions,,
01/07/2022,NULL,Teachers Pensions,NULL,"7,355.27",Pensions,,
01/07/2022,NULL,Teachers Pensions,NULL,289.80,Pensions,,
01/07/2022,NULL,Teachers Pensions,NULL,"9,410.42",Pensions,,
01/07/2022,NULL,Teachers Pensions,NULL,"4,592.29",Pensions,,
01/07/2022,NULL,Teachers Pensions,NULL,"16,299.88",Pensions,,
01/07/2022,NULL,Teachers Pensions,NULL,"2,799.80",Pensions,,
01/07/2022,NULL,Teachers Pensions,NULL,"9,591.24",Pensions,,
01/07/2022,NULL,Teachers Pensions,NULL,"34,833.90",Pensions,,
01/07/2022,NULL,Teachers Pensions,NULL,"4,163.92",Pensions,,
01/07/2022,NULL,Teachers Pensions,NULL,640.42,Pensions,,
01/07/2022,NULL,Teachers Pensions,NULL,"24,339.42",Pensions,,
01/07/2022,NULL,Teachers Pensions,NULL,"4,912.78",Pensions,,
01/07/2022,NULL,Teachers Pensions,NULL,"97,705.58",Pensions,,
01/07/2022,NULL,Teachers Pensions,NULL,"26,417.56",Pensions,,
01/07/2022,NULL,Teachers Pensions,NULL,282.78,Pensions,,
01/07/2022,NULL,Teachers Pensions,NULL,"9,177.22",Pensions,,
01/07/2022,NULL,Teachers Pensions,NULL,"20,683.14",Pensions,,
01/07/2022,NULL,Teachers Pensions,NULL,"4,188.04",Pensions,,
01/07/2022,NULL,Teachers Pensions,NULL,"2,293.40",Pensions,,
01/07/2022,NULL,Teachers Pensions,NULL,"29,223.94",Pensions,,
01/07/2022,NULL,Teachers Pensions,NULL,"11,186.96",Pensions,,
01/07/2022,NULL,Teachers Pensions,NULL,"7,184.73",Pensions,,
01/07/2022,NULL,Teachers Pensions,NULL,"7,008.45",Pensions,,
01/07/2022,NULL,Teachers Pensions,NULL,255.76,Pensions,,
01/07/2022,NULL,Teachers Pensions,NULL,"35,781.56",Pensions,,
01/07/2022,NULL,Teachers Pensions,NULL,"22,549.88",Pensions,,
01/07/2022,NULL,Teachers Pensions,NULL,276.50,Pensions,,
01/07/2022,NULL,Teachers Pensions,NULL,"79,555.26",Pensions,,
01/07/2022,NULL,Teachers Pensions,NULL,"26,075.67",Pensions,,
01/07/2022,NULL,Teachers Pensions,NULL,"16,250.13",Pensions,,
01/07/2022,NULL,Teachers Pensions,NULL,"5,010.01",Pensions,,
01/07/2022,NULL,Teachers Pensions,NULL,"24,855.18",Pensions,,
01/07/2022,NULL,Teachers Pensions,NULL,"4,940.76",Pensions,,
01/07/2022,NULL,Teachers Pensions,NULL,"5,516.86",Pensions,,
01/07/2022,NULL,Teachers Pensions,NULL,"4,678.72",Pensions,,
01/07/2022,NULL,Teachers Pensions,NULL,"5,330.09",Pensions,,
01/07/2022,NULL,Teachers Pensions,NULL,"3,033.11",Pensions,,
01/07/2022,NULL,Teachers Pensions,NULL,"9,116.30",Pensions,,
01/07/2022,NULL,Teachers Pensions,NULL,"61,971.26",Pensions,,
01/07/2022,NULL,Teachers Pensions,NULL,"81,174.85",Pensions,,
01/07/2022,NULL,Teachers Pensions,NULL,"6,072.08",Pensions,,
01/07/2022,NULL,Teachers Pensions,NULL,"3,405.63",Pensions,,
01/07/2022,NULL,Teachers Pensions,NULL,"2,197.75",Pensions,,
01/07/2022,NULL,Teachers Pensions,NULL,"30,946.21",Pensions,,
01/07/2022,NULL,Teachers Pensions,NULL,"22,918.19",Pensions,,
01/07/2022,NULL,Teachers Pensions,NULL,"3,909.12",Pensions,,
01/07/2022,NULL,Teachers Pensions,NULL,"3,806.43",Pensions,,
01/07/2022,NULL,Teachers Pensions,NULL,"55,426.20",Pensions,,
01/07/2022,NULL,Teachers Pensions,NULL,619.07,Pensions,,
01/07/2022,NULL,Teachers Pensions,NULL,"2,751.78",Pensions,,
01/07/2022,NULL,Teachers Pensions,NULL,"13,301.51",Pensions,,
01/07/2022,NULL,Teachers Pensions,NULL,"6,025.82",Pensions,,
01/07/2022,NULL,Teachers Pensions,NULL,"24,601.20",Pensions,,
01/07/2022,NULL,Teachers Pensions,NULL,"4,783.73",Pensions,,
01/07/2022,NULL,Teachers Pensions,NULL,"4,773.55",Pensions,,
01/07/2022,NULL,Teachers Pensions,NULL,"8,986.33",Pensions,,
01/07/2022,NULL,Teachers Pensions,NULL,"6,954.43",Pensions,,
01/07/2022,NULL,Teachers Pensions,NULL,"11,941.56",Pensions,,
01/07/2022,NULL,Teachers Pensions,NULL,"13,213.86",Pensions,,
01/07/2022,NULL,Teachers Pensions,NULL,"26,299.84",Pensions,,
01/07/2022,NULL,Teachers Pensions,NULL,"14,521.65",Pensions,,
01/07/2022,NULL,Teachers Pensions,NULL,"9,765.08",Pensions,,
01/07/2022,NULL,Teachers Pensions,NULL,"2,528.19",Pensions,,
01/07/2022,NULL,Teachers Pensions,NULL,"14,795.09",Pensions,,
01/07/2022,NULL,Teachers Pensions,NULL,"27,031.15",Pensions,,
01/07/2022,NULL,Teachers Pensions,NULL,"21,055.81",Pensions,,
01/07/2022,NULL,Teachers Pensions,NULL,"5,721.67",Pensions,,
01/07/2022,NULL,Teachers Pensions,NULL,"5,554.23",Pensions,,
01/07/2022,NULL,Teachers Pensions,NULL,"18,696.41",Pensions,,
01/07/2022,NULL,Teachers Pensions,NULL,"22,505.26",Pensions,,
01/07/2022,NULL,Teachers Pensions,NULL,"19,518.38",Pensions,,
01/07/2022,NULL,Teachers Pensions,NULL,"10,551.03",Pensions,,
01/07/2022,NULL,Teachers Pensions,NULL,"64,214.55",Pensions,,
01/07/2022,NULL,Teachers Pensions,NULL,"17,965.74",Pensions,,
01/07/2022,NULL,Teachers Pensions,NULL,"2,557.31",Pensions,,
01/07/2022,NULL,Teachers Pensions,NULL,"1,294.50",Pensions,,
01/07/2022,NULL,Teachers Pensions,NULL,"13,057.05",Pensions,,
01/07/2022,NULL,Teachers Pensions,NULL,"4,522.74",Pensions,,
01/07/2022,NULL,Teachers Pensions,NULL,"6,812.41",Pensions,,
01/07/2022,NULL,Teachers Pensions,NULL,"7,145.27",Pensions,,
01/07/2022,NULL,Teachers Pensions,NULL,"3,752.49",Pensions,,
01/07/2022,NULL,Teachers Pensions,NULL,"3,891.92",Pensions,,
01/07/2022,NULL,Teachers Pensions,NULL,"1,071.30",Pensions,,
01/07/2022,NULL,Teachers Pensions,NULL,"13,340.17",Pensions,,
01/07/2022,NULL,Teachers Pensions,NULL,"49,146.12",Pensions,,
01/07/2022,NULL,Teachers Pensions,NULL,"6,821.21",Pensions,,
01/07/2022,NULL,Teachers Pensions,NULL,"15,909.91",Pensions,,
01/07/2022,NULL,Teachers Pensions,NULL,"17,333.25",Pensions,,
01/07/2022,NULL,Teachers Pensions,NULL,"53,529.65",Pensions,,
01/07/2022,NULL,Teachers Pensions,NULL,"4,275.59",Pensions,,
01/07/2022,NULL,Teachers Pensions,NULL,"9,598.80",Pensions,,
01/07/2022,NULL,Teachers Pensions,NULL,"15,100.28",Pensions,,
01/07/2022,NULL,Teachers Pensions,NULL,"12,184.37",Pensions,,
01/07/2022,NULL,Teachers Pensions,NULL,"30,583.00",Pensions,,
01/07/2022,NULL,Teachers Pensions,NULL,"88,596.99",Pensions,,
01/07/2022,NULL,Teachers Pensions,NULL,327.60,Pensions,,
01/07/2022,NULL,Teachers Pensions,NULL,"7,390.70",Pensions,,
01/07/2022,NULL,Teachers Pensions,NULL,"2,627.05",Pensions,,
01/07/2022,NULL,Teachers Pensions,NULL,"35,286.29",Pensions,,
01/07/2022,NULL,Teachers Pensions,NULL,"14,783.33",Pensions,,
01/07/2022,NULL,Teachers Pensions,NULL,"3,690.99",Pensions,,
01/07/2022,NULL,Teachers Pensions,NULL,"22,827.66",Pensions,,
01/07/2022,NULL,Teachers Pensions,NULL,"11,496.31",Pensions,,
01/07/2022,NULL,Teachers Pensions,NULL,"8,284.42",Pensions,,
01/07/2022,NULL,Teachers Pensions,NULL,"11,216.11",Pensions,,
01/07/2022,NULL,Teachers Pensions,NULL,"3,584.63",Pensions,,
01/07/2022,NULL,Teachers Pensions,NULL,"3,222.85",Pensions,,
01/07/2022,NULL,Teachers Pensions,NULL,"16,008.29",Pensions,,
01/07/2022,NULL,Teachers Pensions,NULL,"17,440.69",Pensions,,
01/07/2022,NULL,Teachers Pensions,NULL,"4,913.17",Pensions,,
01/07/2022,NULL,Teachers Pensions,NULL,"30,421.87",Pensions,,
01/07/2022,NULL,Teachers Pensions,NULL,"13,720.06",Pensions,,
01/07/2022,NULL,Teachers Pensions,NULL,"1,700.49",Pensions,,
01/07/2022,NULL,Teachers Pensions,NULL,"14,369.73",Pensions,,
01/07/2022,NULL,Teachers Pensions,NULL,"5,209.82",Pensions,,
01/07/2022,NULL,Teachers Pensions,NULL,"38,441.94",Pensions,,
01/07/2022,NULL,Teachers Pensions,NULL,"14,214.80",Pensions,,
01/07/2022,NULL,Teachers Pensions,NULL,"3,913.02",Pensions,,
01/07/2022,NULL,Teachers Pensions,NULL,362.57,Pensions,,
01/07/2022,NULL,Teachers Pensions,NULL,"20,739.12",Pensions,,
01/07/2022,NULL,Teachers Pensions,NULL,"5,171.24",Pensions,,
01/07/2022,NULL,Teachers Pensions,NULL,"78,479.81",Pensions,,
01/07/2022,NULL,Teachers Pensions,NULL,"36,925.50",Pensions,,
01/07/2022,NULL,Teachers Pensions,NULL,"59,551.95",Pensions,,
01/07/2022,NULL,Teachers Pensions,NULL,"5,845.85",Pensions,,
01/07/2022,NULL,Teachers Pensions,NULL,"1,725.70",Pensions,,
01/07/2022,NULL,Teachers Pensions,NULL,"13,606.18",Pensions,,
01/07/2022,NULL,Teachers Pensions,NULL,"9,074.00",Pensions,,
01/07/2022,NULL,Teachers Pensions,NULL,"23,329.11",Pensions,,
01/07/2022,NULL,Teachers Pensions,NULL,"22,772.79",Pensions,,
01/07/2022,NULL,Teachers Pensions,NULL,"24,081.57",Pensions,,
01/07/2022,NULL,Teachers Pensions,NULL,"9,999.63",Pensions,,
01/07/2022,NULL,Teachers Pensions,NULL,561.00,Pensions,,
01/07/2022,NULL,Teachers Pensions,NULL,"12,143.54",Pensions,,
01/07/2022,NULL,Teachers Pensions,NULL,"9,638.42",Pensions,,
01/07/2022,NULL,Teachers Pensions,NULL,"77,905.80",Pensions,,
01/07/2022,NULL,Teachers Pensions,NULL,"39,636.99",Pensions,,
01/07/2022,NULL,Teachers Pensions,NULL,"7,192.93",Pensions,,
01/07/2022,NULL,Teachers Pensions,NULL,"22,495.49",Pensions,,
01/07/2022,NULL,Teachers Pensions,NULL,"4,478.97",Pensions,,
01/07/2022,NULL,Teachers Pensions,NULL,"12,786.73",Pensions,,
01/07/2022,NULL,Teachers Pensions,NULL,"10,750.87",Pensions,,
01/07/2022,NULL,Teachers Pensions,NULL,"7,712.06",Pensions,,
01/07/2022,NULL,Teachers Pensions,NULL,"7,858.81",Pensions,,
01/07/2022,NULL,Teachers Pensions,NULL,"13,419.85",Pensions,,
01/07/2022,NULL,Teachers Pensions,NULL,"12,893.54",Pensions,,
01/07/2022,NULL,Teachers Pensions,NULL,"3,516.34",Pensions,,
01/07/2022,NULL,Teachers Pensions,NULL,"7,378.21",Pensions,,
01/07/2022,NULL,Teachers Pensions,NULL,"6,957.51",Pensions,,
01/07/2022,NULL,Teachers Pensions,NULL,"4,827.29",Pensions,,
01/07/2022,NULL,Teachers Pensions,NULL,"19,900.98",Pensions,,
01/07/2022,NULL,Teachers Pensions,NULL,"3,372.76",Pensions,,
01/07/2022,NULL,Teachers Pensions,NULL,279.00,Pensions,,
01/07/2022,NULL,Teachers Pensions,NULL,376.07,Pensions,,
01/07/2022,NULL,Teachers Pensions,NULL,"11,432.28",Pensions,,
01/07/2022,NULL,Teachers Pensions,NULL,"6,826.38",Pensions,,
01/07/2022,NULL,Teachers Pensions,NULL,"14,351.22",Pensions,,
01/07/2022,NULL,Teachers Pensions,NULL,"26,745.88",Pensions,,
01/07/2022,NULL,Teachers Pensions,NULL,"51,139.10",Pensions,,
01/07/2022,NULL,Teachers Pensions,NULL,"88,709.85",Pensions,,
01/07/2022,NULL,Teachers Pensions,NULL,"5,348.55",Pensions,,
01/07/2022,NULL,Teachers Pensions,NULL,"4,228.78",Pensions,,
01/07/2022,NULL,Teachers Pensions,NULL,"3,996.20",Pensions,,
01/07/2022,NULL,Teachers Pensions,NULL,"55,621.41",Pensions,,
01/07/2022,NULL,Teachers Pensions,NULL,"67,077.52",Pensions,,
01/07/2022,NULL,Teachers Pensions,NULL,"27,383.04",Pensions,,
01/07/2022,NULL,Teachers Pensions,NULL,"8,865.29",Pensions,,
01/07/2022,NULL,Teachers Pensions,NULL,"14,458.59",Pensions,,
01/07/2022,NULL,Teachers Pensions,NULL,"3,172.79",Pensions,,
01/07/2022,NULL,Teachers Pensions,NULL,"36,162.57",Pensions,,
01/07/2022,NULL,Teachers Pensions,NULL,"7,504.13",Pensions,,
01/07/2022,NULL,Teachers Pensions,NULL,"8,231.45",Pensions,,
01/07/2022,NULL,Teachers Pensions,NULL,"6,015.20",Pensions,,
01/07/2022,NULL,Teachers Pensions,NULL,"67,228.20",Pensions,,
01/07/2022,NULL,Teachers Pensions,NULL,"99,668.41",Pensions,,
01/07/2022,NULL,Teachers Pensions,NULL,"30,990.98",Pensions,,
01/07/2022,NULL,Teachers Pensions,NULL,"7,480.93",Pensions,,
01/07/2022,NULL,Teachers Pensions,NULL,"2,549.11",Pensions,,
01/07/2022,NULL,Teachers Pensions,NULL,"5,019.85",Pensions,,
01/07/2022,NULL,Teachers Pensions,NULL,"3,267.74",Pensions,,
01/07/2022,NULL,Teachers Pensions,NULL,"3,132.27",Pensions,,
01/07/2022,NULL,Teachers Pensions,NULL,"62,492.12",Pensions,,
01/07/2022,NULL,Teachers Pensions,NULL,"6,279.08",Pensions,,
01/07/2022,NULL,Teachers Pensions,NULL,"9,963.64",Pensions,,
01/07/2022,NULL,Teachers Pensions,NULL,"76,809.50",Pensions,,
01/07/2022,NULL,Teachers Pensions,NULL,"3,641.86",Pensions,,
01/07/2022,NULL,Teachers Pensions,NULL,"6,980.60",Pensions,,
01/07/2022,NULL,Teachers Pensions,NULL,"2,556.34",Pensions,,
01/07/2022,NULL,Teachers Pensions,NULL,"7,007.26",Pensions,,
01/07/2022,NULL,Teachers Pensions,NULL,"7,839.83",Pensions,,
01/07/2022,NULL,Teachers Pensions,NULL,"26,428.17",Pensions,,
01/07/2022,NULL,Teachers Pensions,NULL,"2,749.94",Pensions,,
01/07/2022,NULL,Teachers Pensions,NULL,"2,129.93",Pensions,,
01/07/2022,NULL,Teachers Pensions,NULL,"4,363.93",Pensions,,
01/07/2022,NULL,Teachers Pensions,NULL,"84,421.51",Pensions,,
01/07/2022,NULL,Teachers Pensions,NULL,"8,660.97",Pensions,,
01/07/2022,NULL,Teachers Pensions,NULL,366.61,Pensions,,
01/07/2022,NULL,Teachers Pensions,NULL,"14,380.84",Pensions,,
01/07/2022,NULL,Teachers Pensions,NULL,"1,815.63",Pensions,,
01/07/2022,NULL,Teachers Pensions,NULL,"67,931.79",Pensions,,
01/07/2022,NULL,Teachers Pensions,NULL,"6,733.05",Pensions,,
01/07/2022,NULL,Teachers Pensions,NULL,"2,380.11",Pensions,,
01/07/2022,NULL,Teachers Pensions,NULL,"24,254.72",Pensions,,
01/07/2022,NULL,Teachers Pensions,NULL,"2,260.25",Pensions,,
01/07/2022,NULL,Teachers Pensions,NULL,"11,025.88",Pensions,,
01/07/2022,NULL,Teachers Pensions,NULL,"1,358.71",Pensions,,
01/07/2022,NULL,Teachers Pensions,NULL,"31,907.74",Pensions,,
01/07/2022,NULL,Teachers Pensions,NULL,"8,598.30",Pensions,,
01/07/2022,NULL,Teachers Pensions,NULL,"6,646.92",Pensions,,
01/07/2022,NULL,Teachers Pensions,NULL,"12,992.04",Pensions,,
01/07/2022,NULL,Teachers Pensions,NULL,"85,379.18",Pensions,,
01/07/2022,NULL,Teachers Pensions,NULL,"7,612.65",Pensions,,
01/07/2022,NULL,Teachers Pensions,NULL,"5,259.51",Pensions,,
01/07/2022,NULL,Teachers Pensions,NULL,"12,601.92",Pensions,,
01/07/2022,NULL,Teachers Pensions,NULL,"6,887.67",Pensions,,
01/07/2022,NULL,Teachers Pensions,NULL,"6,691.53",Pensions,,
01/07/2022,NULL,Teachers Pensions,NULL,"27,320.23",Pensions,,
01/07/2022,NULL,Teachers Pensions,NULL,"3,068.54",Pensions,,
01/07/2022,NULL,Teachers Pensions,NULL,"18,904.74",Pensions,,
01/07/2022,NULL,Teachers Pensions,NULL,"32,976.44",Pensions,,
01/07/2022,NULL,Teachers Pensions,NULL,"5,624.63",Pensions,,
01/07/2022,NULL,Teachers Pensions,NULL,"64,592.04",Pensions,,
01/07/2022,NULL,Teachers Pensions,NULL,"15,038.63",Pensions,,
01/07/2022,NULL,Teachers Pensions,NULL,"2,170.96",Pensions,,
01/07/2022,NULL,Teachers Pensions,NULL,"5,953.32",Pensions,,
01/07/2022,NULL,Teachers Pensions,NULL,"2,754.37",Pensions,,
01/07/2022,NULL,Teachers Pensions,NULL,"13,423.29",Pensions,,
01/07/2022,NULL,Teachers Pensions,NULL,"17,205.48",Pensions,,
01/07/2022,NULL,Teachers Pensions,NULL,"10,318.74",Pensions,,
01/07/2022,NULL,Teachers Pensions,NULL,"7,312.20",Pensions,,
01/07/2022,NULL,Teachers Pensions,NULL,"13,511.63",Pensions,,
01/07/2022,NULL,Teachers Pensions,NULL,"6,718.08",Pensions,,
01/07/2022,NULL,Teachers Pensions,NULL,"1,053.92",Pensions,,
01/07/2022,NULL,Teachers Pensions,NULL,"6,320.14",Pensions,,
01/07/2022,NULL,Teachers Pensions,NULL,"20,473.48",Pensions,,
01/07/2022,NULL,Teachers Pensions,NULL,"2,630.94",Pensions,,
01/07/2022,NULL,Teachers Pensions,NULL,"23,322.37",Pensions,,
01/07/2022,NULL,Teachers Pensions,NULL,"2,931.83",Pensions,,
01/07/2022,NULL,Teachers Pensions,NULL,"19,212.99",Pensions,,
01/07/2022,NULL,Teachers Pensions,NULL,"3,457.74",Pensions,,
01/07/2022,NULL,Teachers Pensions,NULL,"50,517.11",Pensions,,
01/07/2022,NULL,Teachers Pensions,NULL,"10,009.16",Pensions,,
01/07/2022,NULL,Teachers Pensions,NULL,"34,293.97",Pensions,,
01/07/2022,NULL,Teachers Pensions,NULL,"53,380.80",Pensions,,
01/07/2022,NULL,Teachers Pensions,NULL,"8,573.94",Pensions,,
01/07/2022,NULL,Teachers Pensions,NULL,"3,099.46",Pensions,,
01/07/2022,NULL,Teachers Pensions,NULL,"44,062.11",Pensions,,
01/07/2022,NULL,Teachers Pensions,NULL,"4,416.24",Pensions,,
01/07/2022,NULL,Teachers Pensions,NULL,"21,388.03",Pensions,,
01/07/2022,NULL,Teachers Pensions,NULL,"3,690.32",Pensions,,
01/07/2022,NULL,Teachers Pensions,NULL,"4,048.95",Pensions,,
01/07/2022,NULL,Teachers Pensions,NULL,"5,105.94",Pensions,,
01/07/2022,NULL,Teachers Pensions,NULL,"18,255.39",Pensions,,
01/07/2022,NULL,Teachers Pensions,NULL,"46,118.77",Pensions,,
01/07/2022,NULL,Teachers Pensions,NULL,"8,817.35",Pensions,,
01/07/2022,NULL,Teachers Pensions,NULL,"3,055.39",Pensions,,
01/07/2022,NULL,Teachers Pensions,NULL,"1,104.40",Pensions,,
01/07/2022,NULL,Teachers Pensions,NULL,"14,128.16",Pensions,,
01/07/2022,NULL,Teachers Pensions,NULL,"114,549.24",Pensions,,
01/07/2022,NULL,Teachers Pensions,NULL,"8,816.13",Pensions,,
01/07/2022,NULL,Teachers Pensions,NULL,"24,997.65",Pensions,,
01/07/2022,NULL,Teachers Pensions,NULL,"7,128.90",Pensions,,
01/07/2022,NULL,Teachers Pensions,NULL,"2,492.37",Pensions,,
01/07/2022,NULL,Teachers Pensions,NULL,"4,357.48",Pensions,,
01/07/2022,NULL,Teachers Pensions,NULL,"27,287.27",Pensions,,
01/07/2022,NULL,Teachers Pensions,NULL,"6,739.80",Pensions,,
01/07/2022,NULL,Teachers Pensions,NULL,"42,417.00",Pensions,,
01/07/2022,NULL,Teachers Pensions,NULL,"5,618.38",Pensions,,
01/07/2022,NULL,Teachers Pensions,NULL,"19,418.06",Pensions,,
01/07/2022,NULL,Teachers Pensions,NULL,270.71,Pensions,,
01/07/2022,NULL,Teachers Pensions,NULL,"7,219.02",Pensions,,
01/07/2022,NULL,Teachers Pensions,NULL,"2,426.09",Pensions,,
01/07/2022,NULL,Teachers Pensions,NULL,"67,004.02",Pensions,,
01/07/2022,NULL,Teachers Pensions,NULL,"3,948.41",Pensions,,
01/07/2022,NULL,Teachers Pensions,NULL,"9,299.27",Pensions,,
01/07/2022,NULL,Teachers Pensions,NULL,"17,547.92",Pensions,,
01/07/2022,NULL,Teachers Pensions,NULL,"5,147.49",Pensions,,
01/07/2022,NULL,Teachers Pensions,NULL,"6,819.09",Pensions,,
01/07/2022,NULL,Teachers Pensions,NULL,"2,545.29",Pensions,,
01/07/2022,NULL,Teachers Pensions,NULL,"24,117.12",Pensions,,
01/07/2022,NULL,Teachers Pensions,NULL,"63,408.89",Pensions,,
01/07/2022,NULL,Teachers Pensions,NULL,"5,234.07",Pensions,,
01/07/2022,NULL,Teachers Pensions,NULL,"5,602.49",Pensions,,
01/07/2022,NULL,Teachers Pensions,NULL,"6,199.25",Pensions,,
01/07/2022,NULL,Teachers Pensions,NULL,"5,784.34",Pensions,,
01/07/2022,NULL,Teachers Pensions,NULL,"5,422.51",Pensions,,
01/07/2022,NULL,Teachers Pensions,NULL,"25,395.51",Pensions,,
01/07/2022,NULL,Teachers Pensions,NULL,"80,427.14",Pensions,,
01/07/2022,NULL,Teachers Pensions,NULL,"25,387.94",Pensions,,
01/07/2022,NULL,Teachers Pensions,NULL,"14,676.65",Pensions,,
01/07/2022,NULL,Teachers Pensions,NULL,"10,751.06",Pensions,,
01/07/2022,NULL,Teachers Pensions,NULL,"7,963.42",Pensions,,
01/07/2022,NULL,Teachers Pensions,NULL,314.13,Pensions,,
01/07/2022,NULL,Teachers Pensions,NULL,"14,405.59",Pensions,,
01/07/2022,NULL,Teachers Pensions,NULL,"16,571.66",Pensions,,
01/07/2022,NULL,Teachers Pensions,NULL,"10,524.38",Pensions,,
01/07/2022,NULL,Teachers Pensions,NULL,"8,388.57",Pensions,,
01/07/2022,NULL,Teachers Pensions,NULL,"2,936.50",Pensions,,
01/07/2022,NULL,Teachers Pensions,NULL,564.10,Pensions,,
01/07/2022,NULL,Teachers Pensions,NULL,"2,549.66",Pensions,,
01/07/2022,NULL,Teachers Pensions,NULL,"36,614.80",Pensions,,
01/07/2022,NULL,Teachers Pensions,NULL,"10,445.88",Pensions,,
01/07/2022,NULL,Teachers Pensions,NULL,"16,523.99",Pensions,,
01/07/2022,NULL,Teachers Pensions,NULL,"1,531.41",Pensions,,
01/07/2022,NULL,Teachers Pensions,NULL,"6,620.27",Pensions,,
01/07/2022,NULL,Teachers Pensions,NULL,"58,304.00",Pensions,,
01/07/2022,NULL,Teachers Pensions,NULL,"14,509.68",Pensions,,
01/07/2022,NULL,Teachers Pensions,NULL,"5,299.56",Pensions,,
01/07/2022,NULL,Teachers Pensions,NULL,"8,946.66",Pensions,,
01/07/2022,NULL,Teachers Pensions,NULL,"12,131.20",Pensions,,
01/07/2022,NULL,Teachers Pensions,NULL,"10,890.50",Pensions,,
01/07/2022,NULL,Teachers Pensions,NULL,"74,287.04",Pensions,,
01/07/2022,NULL,Teachers Pensions,NULL,"11,573.57",Pensions,,
01/07/2022,NULL,Teachers Pensions,NULL,"17,341.85",Pensions,,
01/07/2022,NULL,Teachers Pensions,NULL,"7,892.93",Pensions,,
01/07/2022,NULL,Teachers Pensions,NULL,"5,719.72",Pensions,,
01/07/2022,NULL,Teachers Pensions,NULL,"5,331.45",Pensions,,
01/07/2022,NULL,Teachers Pensions,NULL,"15,557.92",Pensions,,
01/07/2022,NULL,Teachers Pensions,NULL,"5,868.65",Pensions,,
01/07/2022,NULL,Teachers Pensions,NULL,"9,301.01",Pensions,,
01/07/2022,NULL,Teachers Pensions,NULL,"7,180.37",Pensions,,
01/07/2022,NULL,Teachers Pensions,NULL,"9,641.36",Pensions,,
01/07/2022,NULL,Teachers Pensions,NULL,"22,740.59",Pensions,,
01/07/2022,NULL,Teachers Pensions,NULL,"6,436.70",Pensions,,
01/07/2022,NULL,Teachers Pensions,NULL,"10,026.07",Pensions,,
01/07/2022,NULL,Teachers Pensions,NULL,"14,018.69",Pensions,,
01/07/2022,NULL,Teachers Pensions,NULL,257.68,Pensions,,
01/07/2022,NULL,Teachers Pensions,NULL,"6,407.92",Pensions,,
01/07/2022,NULL,Teachers Pensions,NULL,"20,532.48",Pensions,,
01/07/2022,NULL,Teachers Pensions,NULL,"2,745.79",Pensions,,
01/07/2022,NULL,Teachers Pensions,NULL,"2,409.58",Pensions,,
01/07/2022,NULL,Teachers Pensions,NULL,"5,978.48",Pensions,,
01/07/2022,NULL,Teachers Pensions,NULL,866.66,Pensions,,
01/07/2022,NULL,Teachers Pensions,NULL,"26,085.36",Pensions,,
01/07/2022,NULL,Teachers Pensions,NULL,"23,844.60",Pensions,,
01/07/2022,NULL,Teachers Pensions,NULL,"4,249.43",Pensions,,
01/07/2022,NULL,Teachers Pensions,NULL,"2,536.78",Pensions,,
01/07/2022,NULL,Teachers Pensions,NULL,"8,836.69",Pensions,,
01/07/2022,NULL,Teachers Pensions,NULL,"5,041.00",Pensions,,
01/07/2022,NULL,Teachers Pensions,NULL,"13,563.87",Pensions,,
01/07/2022,NULL,Teachers Pensions,NULL,"6,666.29",Pensions,,
01/07/2022,NULL,Teachers Pensions,NULL,"18,321.67",Pensions,,
01/07/2022,NULL,Teachers Pensions,NULL,"5,738.69",Pensions,,
01/07/2022,NULL,Teachers Pensions,NULL,"32,888.34",Pensions,,
01/07/2022,NULL,Teachers Pensions,NULL,"1,874.48",Pensions,,
01/07/2022,NULL,Teachers Pensions,NULL,"62,023.90",Pensions,,
01/07/2022,NULL,Teachers Pensions,NULL,"6,354.96",Pensions,,
01/07/2022,NULL,Teachers Pensions,NULL,946.72,Pensions,,
01/07/2022,NULL,Teachers Pensions,NULL,"8,501.07",Pensions,,
01/07/2022,NULL,Teachers Pensions,NULL,"3,436.35",Pensions,,
01/07/2022,NULL,Teachers Pensions,NULL,"8,627.56",Pensions,,
01/07/2022,NULL,Teachers Pensions,NULL,"9,437.35",Pensions,,
01/07/2022,WAVERLEY CARE OP,The Abbeyfield Wey Valley Society L,Respite Residential,995.71,Residential - LD,,
01/07/2022,WAVERLEY CARE OP,The Abbeyfield Wey Valley Society L,Respite Residential,398.29,Residential - LD,,
01/07/2022,LD-AUT CNTR TM CARE,The Grange Centre,Day Care,999.24,PR & Image,,
01/07/2022,LD-AUT CNTR TM CARE,The Grange Centre,Day Care,666.16,PR & Image,,
01/07/2022,LD-AUT CNTR TM CARE,The Grange Centre,Day Care,556.28,PR & Image,,
01/07/2022,NE AGENCY/SPI P16-ED,The Green Corridor,Agency Placement Expenditure,"2,602.31",SEND Agncy Placement,,
01/07/2022,NE AGENCY/SPI P16-ED,The Green Corridor,Agency Placement Expenditure,"1,768.36",SEND Agncy Placement,,
01/07/2022,NE AGENCY/SPI P16-ED,The Green Corridor,Agency Placement Expenditure,"5,624.71",SEND Agncy Placement,,
01/07/2022,NE AGENCY/SPI P16-ED,The Green Corridor,Agency Placement Expenditure,"3,248.72",SEND Agncy Placement,,
01/07/2022,SW AGENCY PLACE-ED,The Hesley Group Ltd,Agency Placement Expenditure,"23,626.38",Residential - MH,,
01/07/2022,NW AGENCY PLACE-ED,The Loddon Foundation Ltd,Agency Placement Expenditure,"22,458.48",SEND Agncy Placement,,
01/07/2022,NW AGENCY PLACE-ED,The Loddon Foundation Ltd,Agency Placement Expenditure,"1,229.15",SEND Agncy Placement,,
01/07/2022,NE AGENCY PLACE-ED,The Loddon Foundation Ltd,Agency Placement Expenditure,"88,971.29",SEND Agncy Placement,,
01/07/2022,MOLE VALLEY CARE PD,The Millenium Centre,Other Community Care,322.30,Residential - MH,,
01/07/2022,MOLE VALLEY CARE PD,The Millenium Centre,Other Community Care,431.20,Residential - MH,,
01/07/2022,MOLE VALLEY CARE PD,The Millenium Centre,Other Community Care,299.20,Residential - MH,,
01/07/2022,MOLE VALLEY CARE PD,The Millenium Centre,Other Community Care,276.81,Residential - MH,,
01/07/2022,MOLE VALLEY CARE PD,The Millenium Centre,Other Community Care,367.95,Residential - MH,,
01/07/2022,SE AGENCY PLACE-ED,The Redway School,Local Authorities,"2,020.08",Edu Non-SEN Support,,
01/07/2022,SE AGENCY PLACE-ED,Treehouse Educare Ltd,Agency Placement Expenditure,"15,604.40",SEND Agncy Placement,,
01/07/2022,SW AGENCY PLACE-ED,Treehouse Educare Ltd,Agency Placement Expenditure,"4,689.92",SEND Agncy Placement,,
01/07/2022,SE AGENCY PLACE-ED,Treehouse Educare Ltd,Agency Placement Expenditure,"17,053.95",SEND Agncy Placement,,
01/07/2022,NULL,Ufton Associates Ltd,NULL,"1,828.20",Insurance Services,,
01/07/2022,SW AGENCY PLACE-ED,Undershaw School,Agency Placement Expenditure,"4,763.00",SEND Agncy Placement,,
01/07/2022,SW AGENCY PLACE-ED,Undershaw School,Agency Placement Expenditure,"3,707.52",SEND Agncy Placement,,
01/07/2022,SW AGENCY PLACE-ED,Undershaw School,Agency Placement Expenditure,"3,937.49",SEND Agncy Placement,,
01/07/2022,SW AGENCY PLACE-ED,Undershaw School,Agency Placement Expenditure,"2,427.68",SEND Agncy Placement,,
01/07/2022,NW AGENCY PLACE-ED,Undershaw School,Agency Placement Expenditure,"2,476.28",SEND Agncy Placement,,
01/07/2022,SW AGENCY PLACE-ED,Undershaw School,Agency Placement Expenditure,"3,042.14",SEND Agncy Placement,,
01/07/2022,SW AGENCY PLACE-ED,Undershaw School,Agency Placement Expenditure,"2,597.80",SEND Agncy Placement,,
01/07/2022,NW AGENCY PLACE-ED,Undershaw School,Agency Placement Expenditure,"3,660.70",SEND Agncy Placement,,
01/07/2022,SW AGENCY PLACE-ED,Undershaw School,Agency Placement Expenditure,"2,716.49",SEND Agncy Placement,,
01/07/2022,NE AGENCY PLACE-ED,Undershaw School,Agency Placement Expenditure,"2,832.89",SEND Agncy Placement,,
01/07/2022,NW AGENCY PLACE-ED,Undershaw School,Agency Placement Expenditure,"4,714.40",SEND Agncy Placement,,
01/07/2022,SW AGENCY PLACE-ED,Undershaw School,Agency Placement Expenditure,"2,638.47",SEND Agncy Placement,,
01/07/2022,SW AGENCY PLACE-ED,Undershaw School,Agency Placement Expenditure,"2,832.63",SEND Agncy Placement,,
01/07/2022,SW AGENCY PLACE-ED,Undershaw School,Agency Placement Expenditure,"3,949.51",SEND Agncy Placement,,
01/07/2022,NE AGENCY PLACE-ED,Undershaw School,Agency Placement Expenditure,"3,275.19",SEND Agncy Placement,,
01/07/2022,SW AGENCY PLACE-ED,Undershaw School,Agency Placement Expenditure,"3,398.49",SEND Agncy Placement,,
01/07/2022,SW AGENCY PLACE-ED,Undershaw School,Agency Placement Expenditure,"2,670.70",SEND Agncy Placement,,
01/07/2022,SW AGENCY PLACE-ED,Undershaw School,Agency Placement Expenditure,"2,895.30",SEND Agncy Placement,,
01/07/2022,SW AGENCY PLACE-ED,Undershaw School,Agency Placement Expenditure,"2,832.63",SEND Agncy Placement,,
01/07/2022,SW AGENCY PLACE-ED,Undershaw School,Agency Placement Expenditure,"2,524.89",SEND Agncy Placement,,
01/07/2022,SW AGENCY PLACE-ED,Undershaw School,Agency Placement Expenditure,"2,325.61",SEND Agncy Placement,,
01/07/2022,SW AGENCY PLACE-ED,Undershaw School,Agency Placement Expenditure,"2,448.91",SEND Agncy Placement,,
01/07/2022,SW AGENCY/SPI P16-ED,Undershaw School,Agency Placement Expenditure,"3,446.07",SEND Agncy Placement,,
01/07/2022,NE AGENCY PLACE-ED,Undershaw School,Agency Placement Expenditure,"2,476.28",SEND Agncy Placement,,
01/07/2022,SW AGENCY/SPI P16-ED,Undershaw School,Agency Placement Expenditure,"2,465.03",SEND Agncy Placement,,
01/07/2022,NE AGENCY PLACE-ED,Undershaw School,Agency Placement Expenditure,"2,816.52",SEND Agncy Placement,,
01/07/2022,NW AGENCY PLACE-ED,Undershaw School,Agency Placement Expenditure,"2,295.17",SEND Agncy Placement,,
01/07/2022,NW AGENCY PLACE-ED,Undershaw School,Agency Placement Expenditure,"3,148.56",SEND Agncy Placement,,
01/07/2022,SW AGENCY PLACE-ED,Undershaw School,Agency Placement Expenditure,"3,618.49",SEND Agncy Placement,,
01/07/2022,SW AGENCY PLACE-ED,Undershaw School,Agency Placement Expenditure,"2,330.47",SEND Agncy Placement,,
01/07/2022,SW AGENCY PLACE-ED,Undershaw School,Agency Placement Expenditure,"5,017.29",SEND Agncy Placement,,
01/07/2022,SW AGENCY PLACE-ED,Undershaw School,Agency Placement Expenditure,"3,148.82",SEND Agncy Placement,,
01/07/2022,NW AGENCY PLACE-ED,Undershaw School,Agency Placement Expenditure,"3,398.49",SEND Agncy Placement,,
01/07/2022,SW AGENCY PLACE-ED,Undershaw School,Agency Placement Expenditure,"2,500.59",SEND Agncy Placement,,
01/07/2022,SW AGENCY PLACE-ED,Undershaw School,Agency Placement Expenditure,"2,637.19",SEND Agncy Placement,,
01/07/2022,SW AGENCY PLACE-ED,Undershaw School,Agency Placement Expenditure,"2,880.21",SEND Agncy Placement,,
01/07/2022,SW AGENCY PLACE-ED,Undershaw School,Agency Placement Expenditure,"3,186.93",SEND Agncy Placement,,
01/07/2022,SW AGENCY PLACE-ED,Undershaw School,Agency Placement Expenditure,"2,687.07",SEND Agncy Placement,,
01/07/2022,SW AGENCY PLACE-ED,Undershaw School,Agency Placement Expenditure,"2,427.68",SEND Agncy Placement,,
01/07/2022,SW AGENCY PLACE-ED,Undershaw School,Agency Placement Expenditure,"3,074.63",SEND Agncy Placement,,
01/07/2022,SW AGENCY PLACE-ED,Undershaw School,Agency Placement Expenditure,"2,173.40",SEND Agncy Placement,,
01/07/2022,SW AGENCY PLACE-ED,Undershaw School,Agency Placement Expenditure,"2,316.66",SEND Agncy Placement,,
01/07/2022,SW AGENCY/SPI P16-ED,Undershaw School,Agency Placement Expenditure,"2,319.21",SEND Agncy Placement,,
01/07/2022,SW AGENCY/SPI P16-ED,Undershaw School,Agency Placement Expenditure,"4,347.82",SEND Agncy Placement,,
01/07/2022,SW AGENCY PLACE-ED,Undershaw School,Agency Placement Expenditure,"3,026.03",SEND Agncy Placement,,
01/07/2022,SW AGENCY/SPI P16-ED,Unsted Park School,Agency Placement Expenditure,"5,628.59",SEN Specialist Supp,,
01/07/2022,SW AGENCY PLACE-ED,Unsted Park School,Agency Placement Expenditure,"4,568.80",SEN Specialist Supp,,
01/07/2022,PLD TRANSITION,Voyage Ltd,Day Care,"2,484.72",Residential - MH,,
01/07/2022,LINDEN FARM,Waverley Borough Council,Rates,313.00,Grants-Member Allocs,,
01/07/2022,LONGFIELD,Waverley Borough Council,Rates,"1,316.00",Grants-Member Allocs,,
01/07/2022,LINDEN FARM,Waverley Borough Council,Rates,527.52,Grants-Member Allocs,,
01/07/2022,NE AGENCY PLACE-ED,Wemms Maths Unlimited,Agency Placement Expenditure,"8,438.82",SEND Agncy Placement,,
01/07/2022,SW AGENCY PLACE-ED,West Heath 2000 Ltd,Agency Placement Expenditure,"9,563.95",School Support Serv,,
01/07/2022,NULL,West Sussex County Council,NULL,"1,186.34",Pensions,,
01/07/2022,NULL,West Sussex County Council,NULL,"1,186.09",Pensions,,
01/07/2022,NULL,West Sussex County Council,NULL,"7,766.77",Pensions,,
01/07/2022,NULL,West Sussex County Council,NULL,"6,488.47",Pensions,,
01/07/2022,NULL,West Sussex County Council,NULL,"1,997.33",Pensions,,
01/07/2022,NULL,West Sussex County Council,NULL,"4,458.79",Pensions,,
01/07/2022,NULL,West Sussex County Council,NULL,"1,646.61",Pensions,,
01/07/2022,NULL,West Sussex County Council,NULL,"4,560.34",Pensions,,
01/07/2022,ST LAWRENCE CE E MOL,Wilks Head & Eve,Rates,939.00,Individual - NEC,,
01/07/2022,PERM SURPLUS NON-RES,Wilks Head & Eve,Rates,440.00,Individual - NEC,,
01/07/2022,CAMBERLEY FIRE STN,Wilks Head & Eve,Rates,"3,861.00",Individual - NEC,,
01/07/2022,FARNHAM LIB,Wilks Head & Eve,Rates,"2,539.00",Individual - NEC,,
01/07/2022,ASHTEAD LIB,Wilks Head & Eve,Rates,624.00,Individual - NEC,,
01/07/2022,THORPE LEA PRY,Wilks Head & Eve,Rates,"1,934.00",Individual - NEC,,
01/07/2022,ORCHARD SCHOOL,Wilks Head & Eve,Rates,457.00,Individual - NEC,,
01/07/2022,DRILL HALL DORKING,Wilks Head & Eve,Rates,"1,798.00",Individual - NEC,,
01/07/2022,REIGATE PARISH CHUR,Wilks Head & Eve,Rates,484.00,Individual - NEC,,
01/07/2022,FRIMLEY GRN LIB,Wilks Head & Eve,Rates,728.00,Individual - NEC,,
01/07/2022,ASHFORD LIB,Wilks Head & Eve,Rates,"1,487.00",Individual - NEC,,
01/07/2022,LANGSHOTT PRIMARY,Wilks Head & Eve,Rates,"4,259.00",Individual - NEC,,
01/07/2022,ST BEDES SCHOOL,Wilks Head & Eve,Rates,"4,934.00",Individual - NEC,,
01/07/2022,OXTED FIRE STATION,Wilks Head & Eve,Rates,"1,164.00",Individual - NEC,,
01/07/2022,MANORFIELD P&N SCH,Wilks Head & Eve,Rates,"2,956.00",Individual - NEC,,
01/07/2022,FELBRIDGE PRY,Wilks Head & Eve,Rates,"2,517.00",Individual - NEC,,
01/07/2022,NORTH DOWNS PRY,Wilks Head & Eve,Rates,530.00,Individual - NEC,,
01/07/2022,RANGER HOUSE,Wilks Head & Eve,Rates,"13,830.00",Individual - NEC,,
01/07/2022,ASHFORD PARK PRY,Wilks Head & Eve,Rates,"4,864.00",Individual - NEC,,
01/07/2022,61 STAINES HIGH ST,Wilks Head & Eve,Rates,843.00,Individual - NEC,,
01/07/2022,CONSORT HOUSE,Wilks Head & Eve,Rates,728.00,Individual - NEC,,
01/07/2022,ASH SSC ASH LIBRARY,Wilks Head & Eve,Rates,"1,591.00",Individual - NEC,,
01/07/2022,LINGFIELD PRY,Wilks Head & Eve,Rates,"3,712.00",Individual - NEC,,
01/07/2022,BEAUCLERC CHENNESTON,Wilks Head & Eve,Rates,"2,475.00",Individual - NEC,,
01/07/2022,ST IGNATIUS RCP,Wilks Head & Eve,Rates,636.00,Individual - NEC,,
01/07/2022,GUILDFORD CHILDS CTR,Wilks Head & Eve,Rates,"3,584.00",Individual - NEC,,
01/07/2022,ST DUNSTANS CATH PRY,Wilks Head & Eve,Rates,751.00,Individual - NEC,,
01/07/2022,GRANGE CI,Wilks Head & Eve,Rates,"1,871.00",Individual - NEC,,
01/07/2022,GREVILLE PRY,Wilks Head & Eve,Rates,"5,632.00",Individual - NEC,,
01/07/2022,MERROW CEI,Wilks Head & Eve,Rates,"1,362.00",Individual - NEC,,
01/07/2022,FRANCE HILL HOUSE,Wilks Head & Eve,Rates,"2,389.00",Individual - NEC,,
01/07/2022,WEST ASHTEAD PRY,Wilks Head & Eve,Rates,"3,264.00",Individual - NEC,,
01/07/2022,NORTH DOWNS PRY,Wilks Head & Eve,Rates,"2,261.00",Individual - NEC,,
01/07/2022,ESHER LIB,Wilks Head & Eve,Rates,"1,476.00",Individual - NEC,,
01/07/2022,GODSTONE DEPOT,Wilks Head & Eve,Rates,"5,120.00",Individual - NEC,,
01/07/2022,14 THE PINES,Wilks Head & Eve,Rates,"3,413.00",Individual - NEC,,
01/07/2022,BARNETT WOOD INF,Wilks Head & Eve,Rates,"1,102.00",Individual - NEC,,
01/07/2022,BAGSHOT DEPOT,Wilks Head & Eve,Rates,383.00,Individual - NEC,,
01/07/2022,BUSBRIDGE CEJ,Wilks Head & Eve,Rates,390.00,Individual - NEC,,
01/07/2022,CATERHAM VALLEY LBRY,Wilks Head & Eve,Rates,"1,726.00",Individual - NEC,,
01/07/2022,HORSELL CEJ,Wilks Head & Eve,Rates,640.00,Individual - NEC,,
01/07/2022,GROVELANDS PRI&NUR,Wilks Head & Eve,Rates,"3,029.00",Individual - NEC,,
01/07/2022,PRIMARY DATA CENTRE,Wilks Head & Eve,Rates,"1,216.00",Individual - NEC,,
01/07/2022,HURST GREEN SCHOOL,Wilks Head & Eve,Rates,"1,331.00",Individual - NEC,,
01/07/2022,POLESDEN LACEY INF,Wilks Head & Eve,Rates,884.00,Individual - NEC,,
01/07/2022,ST JOSEPHS CTH PRY G,Wilks Head & Eve,Rates,"1,749.00",Individual - NEC,,
01/07/2022,DAKOTA,Wilks Head & Eve,Rates,"1,871.00",Individual - NEC,,
01/07/2022,HASLEMERE FIRE STN,Wilks Head & Eve,Rates,"1,819.00",Individual - NEC,,
01/07/2022,KINGFISHER HOUSE,Wilks Head & Eve,Rates,"1,589.00",Individual - NEC,,
01/07/2022,ST JOSEPHS CTH PRY R,Wilks Head & Eve,Rates,833.00,Individual - NEC,,
01/07/2022,DR DATA CTR UNIT 10,Wilks Head & Eve,Rates,"2,603.00",Individual - NEC,,
01/07/2022,ST CLEMENTS CATH PRY,Wilks Head & Eve,Rates,439.00,Individual - NEC,,
01/07/2022,PARK HOUSE SHALFORD,Wilks Head & Eve,Rates,"2,197.00",Individual - NEC,,
01/07/2022,ESHER LOCAL OFFICE,Wilks Head & Eve,Rates,"8,277.00",Individual - NEC,,
01/07/2022,SHOTTERMILL JUN,Wilks Head & Eve,Rates,"2,731.00",Individual - NEC,,
01/07/2022,OUR LADY ROSARY RCP,Wilks Head & Eve,Rates,538.00,Individual - NEC,,
01/07/2022,ST PETERS CEP WRECC,Wilks Head & Eve,Rates,879.00,Individual - NEC,,
01/07/2022,REIGATE PRIORY SCH,Wilks Head & Eve,Rates,"4,329.00",Individual - NEC,,
01/07/2022,HENLEY FORT OEC,Wilks Head & Eve,Rates,582.00,Individual - NEC,,
01/07/2022,HYTHE SCHOOL,Wilks Head & Eve,Rates,"4,096.00",Individual - NEC,,
01/07/2022,CAMBERLEY LIB,Wilks Head & Eve,Rates,"2,176.00",Individual - NEC,,
01/07/2022,MALTHOUSE YC D'KING,Wilks Head & Eve,Rates,416.00,Individual - NEC,,
01/07/2022,WOOD STREET INF,Wilks Head & Eve,Rates,998.00,Individual - NEC,,
01/07/2022,GOMSHALL FIRE STN,Wilks Head & Eve,Rates,769.00,Individual - NEC,,
01/07/2022,BAGSHOT LIB,Wilks Head & Eve,Rates,254.00,Individual - NEC,,
01/07/2022,THE MANSION L'HEAD,Wilks Head & Eve,Rates,"3,285.00",Individual - NEC,,
01/07/2022,MAYFORD CENTRE-BUS,Wilks Head & Eve,Rates,509.00,Individual - NEC,,
01/07/2022,BEACON HILL COMM,Wilks Head & Eve,Rates,"2,240.00",Individual - NEC,,
01/07/2022,BANSTEAD LIB,Wilks Head & Eve,Rates,"2,901.00",Individual - NEC,,
01/07/2022,FURZEFIELD  CP,Wilks Head & Eve,Rates,"4,608.00",Individual - NEC,,
01/07/2022,BEACON HILL COMM,Wilks Head & Eve,Rates,304.00,Individual - NEC,,
01/07/2022,ST PETERS CATH PRY L,Wilks Head & Eve,Rates,390.00,Individual - NEC,,
01/07/2022,KNAPHILL LIBRARY-NEW,Wilks Head & Eve,Rates,"2,058.00",Individual - NEC,,
01/07/2022,PRIMARY DATA CENTRE,Wilks Head & Eve,Rates,"1,289.00",Individual - NEC,,
01/07/2022,BYFLEET LIB,Wilks Head & Eve,Rates,686.00,Individual - NEC,,
01/07/2022,SUNBURY-ON-T LIB,Wilks Head & Eve,Rates,"1,455.00",Individual - NEC,,
01/07/2022,GUILDFORD AEI,Wilks Head & Eve,Rates,"2,539.00",Individual - NEC,,
01/07/2022,ONSLOW INF,Wilks Head & Eve,Rates,"1,549.00",Individual - NEC,,
01/07/2022,ST JAMES CEP WEYB,Wilks Head & Eve,Rates,"2,576.00",Individual - NEC,,
01/07/2022,STAINES LIB,Wilks Head & Eve,Rates,266.00,Individual - NEC,,
01/07/2022,ST ANNS HEATH JUN,Wilks Head & Eve,Rates,"2,517.00",Individual - NEC,,
01/07/2022,REDHILL FAMILY CTR,Wilks Head & Eve,Rates,468.00,Individual - NEC,,
01/07/2022,ST JAMES CEP ELSTEAD,Wilks Head & Eve,Rates,448.00,Individual - NEC,,
01/07/2022,ADDLESTONE LIB (NEW),Wilks Head & Eve,Rates,"1,424.00",Individual - NEC,,
01/07/2022,KNWL GRN STAINES LOC,Wilks Head & Eve,Rates,"2,027.00",Individual - NEC,,
01/07/2022,MOLE VALLEY FAM CNTR,Wilks Head & Eve,Rates,"1,216.00",Individual - NEC,,
01/07/2022,DAKOTA,Wilks Head & Eve,Rates,"1,474.00",Individual - NEC,,
01/07/2022,GODALMING JUN,Wilks Head & Eve,Rates,252.00,Individual - NEC,,
01/07/2022,LALEHAM CEP,Wilks Head & Eve,Rates,533.00,Individual - NEC,,
01/07/2022,WORPLESDON PRY,Wilks Head & Eve,Rates,"4,736.00",Individual - NEC,,
01/07/2022,SOUTHFIELD PARK,Wilks Head & Eve,Rates,"3,179.00",Individual - NEC,,
01/07/2022,ARTINGTON HOUSE,Wilks Head & Eve,Rates,"1,819.00",Individual - NEC,,
01/07/2022,LONG D ST MARYS CEJ,Wilks Head & Eve,Rates,277.80,Individual - NEC,,
01/07/2022,ST JOSEPHS CTH PRY E,Wilks Head & Eve,Rates,768.00,Individual - NEC,,
01/07/2022,VIRGINIA WATER LIB,Wilks Head & Eve,Rates,399.00,Individual - NEC,,
01/07/2022,SHAWFIELD PRY,Wilks Head & Eve,Rates,"1,747.00",Individual - NEC,,
01/07/2022,SW SURREY FANILY CTR,Wilks Head & Eve,Rates,"2,731.00",Individual - NEC,,
01/07/2022,BUCKLAND PRIMARY SCH,Wilks Head & Eve,Rates,"3,264.00",Individual - NEC,,
01/07/2022,KINGSWOOD PRY,Wilks Head & Eve,Rates,"1,610.00",Individual - NEC,,
01/07/2022,WEST PARK FARMHOUSE,Wilks Head & Eve,Rates,509.00,Individual - NEC,,
01/07/2022,CHANDLER CEJ,Wilks Head & Eve,Rates,619.00,Individual - NEC,,
01/07/2022,WEST HOUSE COMPLEX,Wilks Head & Eve,Rates,"9,515.00",Individual - NEC,,
01/07/2022,AUDLEY PRY,Wilks Head & Eve,Rates,"1,591.00",Individual - NEC,,
01/07/2022,ASHLEY PARK HOUSE,Wilks Head & Eve,Rates,"4,949.00",Individual - NEC,,
01/07/2022,HURST PARK PRY,Wilks Head & Eve,Rates,"5,760.00",Individual - NEC,,
01/07/2022,THE AVENUE SUNBURY,Wilks Head & Eve,Rates,"1,424.00",Individual - NEC,,
01/07/2022,TOWN FARM PRY,Wilks Head & Eve,Rates,764.00,Individual - NEC,,
01/07/2022,CHERTSEY LIB,Wilks Head & Eve,Rates,852.00,Individual - NEC,,
01/07/2022,ST PAULS CEI TONG,Wilks Head & Eve,Rates,"1,060.00",Individual - NEC,,
01/07/2022,CATERHAM YOUTH CTRE,Wilks Head & Eve,Rates,390.00,Individual - NEC,,
01/07/2022,BURHILL PRIMARY SCH,Wilks Head & Eve,Rates,981.00,Individual - NEC,,
01/07/2022,HENRIETTA PARKER CTR,Wilks Head & Eve,Rates,"3,072.00",Individual - NEC,,
01/07/2022,STONELEIGH LIB,Wilks Head & Eve,Rates,977.00,Individual - NEC,,
01/07/2022,GRAYSWOOD CE PRIMARY,Wilks Head & Eve,Rates,439.00,Individual - NEC,,
01/07/2022,LEATHERHEAD FIRE STN,Wilks Head & Eve,Rates,"2,816.00",Individual - NEC,,
01/07/2022,61 STAINES HIGH ST,Wilks Head & Eve,Rates,397.00,Individual - NEC,,
01/07/2022,WOKING LIB,Wilks Head & Eve,Rates,"7,381.00",Individual - NEC,,
01/07/2022,STANWELL YOUTH CTRE,Wilks Head & Eve,Rates,287.00,Individual - NEC,,
01/07/2022,PUBLIC LIB OFFS WEYB,Wilks Head & Eve,Rates,749.00,Individual - NEC,,
01/07/2022,CLARENDON PRY,Wilks Head & Eve,Rates,"2,017.00",Individual - NEC,,
01/07/2022,CLAYGATE PRY,Wilks Head & Eve,Rates,772.00,Individual - NEC,,
01/07/2022,DORMANSLAND PRY,Wilks Head & Eve,Rates,"2,100.00",Individual - NEC,,
01/07/2022,ST JOHNS CEJ CATERHM,Wilks Head & Eve,Rates,841.00,Individual - NEC,,
01/07/2022,STAINES LIB,Wilks Head & Eve,Rates,"2,923.00",Individual - NEC,,
01/07/2022,GODALMING SSC,Wilks Head & Eve,Rates,954.00,Individual - NEC,,
01/07/2022,ONGAR PLACE PRIMARY,Wilks Head & Eve,Rates,"2,069.00",Individual - NEC,,
01/07/2022,ROYAL KENT CEP,Wilks Head & Eve,Rates,"2,257.00",Individual - NEC,,
01/07/2022,POWELL-CORDEROY PRY,Wilks Head & Eve,Rates,"1,224.75",Individual - NEC,,
01/07/2022,THAMES YG MARINERS,Wilks Head & Eve,Rates,"1,591.00",Individual - NEC,,
01/07/2022,THORPE CE PRIMARY,Wilks Head & Eve,Rates,444.00,Individual - NEC,,
01/07/2022,CHARLWOOD VILL INF,Wilks Head & Eve,Rates,530.00,Individual - NEC,,
01/07/2022,"GEN OFFICE,CRANLEIGH",Wilks Head & Eve,Rates,597.00,Individual - NEC,,
01/07/2022,EARLSWOOD INF&JUN,Wilks Head & Eve,Rates,"2,956.00",Individual - NEC,,
01/07/2022,ST PAULS CEP DORK,Wilks Head & Eve,Rates,713.00,Individual - NEC,,
01/07/2022,WARLINGHAM LIB,Wilks Head & Eve,Rates,358.00,Individual - NEC,,
01/07/2022,REIGATE LIB,Wilks Head & Eve,Rates,"1,383.00",Individual - NEC,,
01/07/2022,ST MARYS CEI SHACKFD,Wilks Head & Eve,Rates,416.00,Individual - NEC,,
01/07/2022,PRIOR HEATH CI,Wilks Head & Eve,Rates,"1,663.00",Individual - NEC,,
01/07/2022,ESHER FIRE STATION,Wilks Head & Eve,Rates,"2,555.00",Individual - NEC,,
01/07/2022,NE SHORT STAY SCH,Wilks Head & Eve,Rates,"1,060.00",Individual - NEC,,
01/07/2022,SHEPPERTON LIB,Wilks Head & Eve,Rates,447.00,Individual - NEC,,
01/07/2022,OXTED LIB,Wilks Head & Eve,Rates,"2,219.00",Individual - NEC,,
01/07/2022,EPSOM DOWNS PRY,Wilks Head & Eve,Rates,"3,561.00",Individual - NEC,,
01/07/2022,FARNHAM FIRE STATION,Wilks Head & Eve,Rates,"3,733.00",Individual - NEC,,
01/07/2022,WONERSH&SHAM GN CEP,Wilks Head & Eve,Rates,262.00,Individual - NEC,,
01/07/2022,NUTFIELD CHURCH CEP,Wilks Head & Eve,Rates,369.00,Individual - NEC,,
01/07/2022,DAWNAY SCHOOL,Wilks Head & Eve,Rates,"2,219.00",Individual - NEC,,
01/07/2022,CATERHAM LIB,Wilks Head & Eve,Rates,645.00,Individual - NEC,,
01/07/2022,CONSORT HOUSE,Wilks Head & Eve,Rates,"24,533.00",Individual - NEC,,
01/07/2022,BANSTEAD JUN,Wilks Head & Eve,Rates,"2,793.00",Individual - NEC,,
01/07/2022,BAGSHOT DEPOT,Wilks Head & Eve,Rates,"2,731.00",Individual - NEC,,
01/07/2022,PERM SURPLUS NON-RES,Wilks Head & Eve,Rates,"2,304.00",Individual - NEC,,
01/07/2022,REIGATE LIB,Wilks Head & Eve,Rates,447.00,Individual - NEC,,
01/07/2022,61 STAINES HIGH ST,Wilks Head & Eve,Rates,619.00,Individual - NEC,,
01/07/2022,EPSOM FIRE STATION,Wilks Head & Eve,Rates,"3,221.00",Individual - NEC,,
01/07/2022,BRIDGEHEAD HOUSE,Wilks Head & Eve,Rates,"3,610.00",Individual - NEC,,
01/07/2022,CRANLEIGH CE VC PRIM,Wilks Head & Eve,Rates,361.00,Individual - NEC,,
01/07/2022,MOLESEY LIB,Wilks Head & Eve,Rates,821.00,Individual - NEC,,
01/07/2022,HEATHER RIDGE INF,Wilks Head & Eve,Rates,"1,923.00",Individual - NEC,,
01/07/2022,ST ANNES CATH PRY BA,Wilks Head & Eve,Rates,908.00,Individual - NEC,,
01/07/2022,FMR FIRE ELM GROVE,Wilks Head & Eve,Rates,414.00,Individual - NEC,,
01/07/2022,FMR HORLEY LIBRARY,Wilks Head & Eve,Rates,664.00,Individual - NEC,,
01/07/2022,ASH SSC ASH LIBRARY,Wilks Head & Eve,Rates,624.00,Individual - NEC,,
01/07/2022,LINGFIELD FIRE STN,Wilks Head & Eve,Rates,717.00,Individual - NEC,,
01/07/2022,OAKFIELD JUN,Wilks Head & Eve,Rates,"2,475.00",Individual - NEC,,
01/07/2022,HORLEY INF,Wilks Head & Eve,Rates,"2,444.00",Individual - NEC,,
01/07/2022,ST JUDE'S CE INFANT,Wilks Head & Eve,Rates,311.00,Individual - NEC,,
01/07/2022,GATWICK DIAMOND PH 1,Wilks Head & Eve,Rates,"11,627.00",Individual - NEC,,
01/07/2022,MEADOWCROFT CI,Wilks Head & Eve,Rates,852.00,Individual - NEC,,
01/07/2022,"FMR SAWMILL, NORBURY",Wilks Head & Eve,Rates,949.00,Individual - NEC,,
01/07/2022,CRANMERE PRY ESHER,Wilks Head & Eve,Rates,"6,101.00",Individual - NEC,,
01/07/2022,QUADRANT CT WOKING,Wilks Head & Eve,Rates,"36,949.00",Individual - NEC,,
01/07/2022,DITTONS LIB,Wilks Head & Eve,Rates,759.00,Individual - NEC,,
01/07/2022,ST PAULS CATH PRY TD,Wilks Head & Eve,Rates,751.00,Individual - NEC,,
01/07/2022,WOKING CORONER CT,Wilks Head & Eve,Rates,925.00,Individual - NEC,,
01/07/2022,VALLEY END CEI,Wilks Head & Eve,Rates,"1,611.00",Individual - NEC,,
01/07/2022,ST CUTHBERTS CATH PR,Wilks Head & Eve,Rates,412.00,Individual - NEC,,
01/07/2022,MOSS LANE SCHOOL,Wilks Head & Eve,Rates,894.00,Individual - NEC,,
01/07/2022,MEATH GREEN JUN,Wilks Head & Eve,Rates,"3,351.00",Individual - NEC,,
01/07/2022,STAMFORD GREEN PRY,Wilks Head & Eve,Rates,"4,437.00",Individual - NEC,,
01/07/2022,WEST BYFLEET LIB-NEW,Wilks Head & Eve,Rates,894.00,Individual - NEC,,
01/07/2022,MILFORD SCHOOL,Wilks Head & Eve,Rates,288.00,Individual - NEC,,
01/07/2022,MEATH GREEN INF,Wilks Head & Eve,Rates,"1,690.00",Individual - NEC,,
01/07/2022,TRINITY OAKS CE PRIM,Wilks Head & Eve,Rates,435.00,Individual - NEC,,
01/07/2022,BAGSHOT INF,Wilks Head & Eve,Rates,"1,767.00",Individual - NEC,,
01/07/2022,WOKING FIRE STATION,Wilks Head & Eve,Rates,"6,485.00",Individual - NEC,,
01/07/2022,PAINSHILL FIRE STN,Wilks Head & Eve,Rates,"1,601.00",Individual - NEC,,
01/07/2022,MERSTHAM HUB,Wilks Head & Eve,Rates,"1,882.00",Individual - NEC,,
01/07/2022,ROYAL ALEX & ALBERT,Wilks Head & Eve,Rates,"2,113.00",Individual - NEC,,
01/07/2022,BADSHOT LEA VILL INF,Wilks Head & Eve,Rates,"1,424.00",Individual - NEC,,
01/07/2022,OAKWOOD  HORLEY,Wilks Head & Eve,Rates,"15,476.00",Individual - NEC,,
01/07/2022,MEAD INF,Wilks Head & Eve,Rates,"2,901.00",Individual - NEC,,
01/07/2022,FETCHAM VILLAGE INF,Wilks Head & Eve,Rates,"1,170.00",Individual - NEC,,
01/07/2022,BOOKHAM LIB (NEW),Wilks Head & Eve,Rates,457.00,Individual - NEC,,
01/07/2022,TILLINGBOURNE JUN,Wilks Head & Eve,Rates,"2,944.00",Individual - NEC,,
01/07/2022,WEST BYFLEET JUN,Wilks Head & Eve,Rates,"2,783.89",Individual - NEC,,
01/07/2022,ST MARYS CEP BYF,Wilks Head & Eve,Rates,"3,136.00",Individual - NEC,,
01/07/2022,DORKING FIRE STATION,Wilks Head & Eve,Rates,"1,965.00",Individual - NEC,,
01/07/2022,GUILDFORD FIRE STN,Wilks Head & Eve,Rates,"11,947.00",Individual - NEC,,
01/07/2022,WALTON-ON-T LIB(NEW),Wilks Head & Eve,Rates,"4,181.00",Individual - NEC,,
01/07/2022,STANWELL LIB (NEW),Wilks Head & Eve,Rates,541.00,Individual - NEC,,
01/07/2022,BEAUCLERC CHENNESTON,Wilks Head & Eve,Rates,"1,185.00",Individual - NEC,,
01/07/2022,OXTED LIB,Wilks Head & Eve,Rates,"1,081.00",Individual - NEC,,
01/07/2022,WOODHATCH,Wilks Head & Eve,Rates,"74,667.00",Individual - NEC,,
01/07/2022,LYNE & LONG CROSS CE,Wilks Head & Eve,Rates,542.00,Individual - NEC,,
01/07/2022,STEPGATES COMM SCH,Wilks Head & Eve,Rates,"1,715.00",Individual - NEC,,
01/07/2022,GODALMING SSC,Wilks Head & Eve,Rates,"1,507.00",Individual - NEC,,
01/07/2022,SUNBURY & SHEP SS,Wilks Head & Eve,Rates,"1,760.00",Individual - NEC,,
01/07/2022,FAIRWAYS,Wilks Head & Eve,Rates,"3,115.00",Individual - NEC,,
01/07/2022,ST ANDREWS CATH LHD,Wilks Head & Eve,Rates,"1,536.00",Individual - NEC,,
01/07/2022,SHBC OFFICE ACCOMM,Wilks Head & Eve,Rates,"2,100.00",Individual - NEC,,
01/07/2022,DORKING NURSERY,Wilks Head & Eve,Rates,"4,651.00",Individual - NEC,,
01/07/2022,BRAMLEY LIB,Wilks Head & Eve,Rates,863.00,Individual - NEC,,
01/07/2022,RIVERVIEW CEP,Wilks Head & Eve,Rates,384.00,Individual - NEC,,
01/07/2022,GODALMING FIRE STN,Wilks Head & Eve,Rates,686.00,Individual - NEC,,
01/07/2022,ST FRANCIS CTH PRY C,Wilks Head & Eve,Rates,474.00,Individual - NEC,,
01/07/2022,WALTON ON HILL PRY,Wilks Head & Eve,Rates,"1,576.00",Individual - NEC,,
01/07/2022,MANORCROFT PRY,Wilks Head & Eve,Rates,"3,072.00",Individual - NEC,,
01/07/2022,HIGH ASHURST OEC,Wilks Head & Eve,Rates,"2,389.00",Individual - NEC,,
01/07/2022,HORSLEY LIB,Wilks Head & Eve,Rates,811.00,Individual - NEC,,
01/07/2022,RYLSTON WEYBRIDGE,Wilks Head & Eve,Rates,"2,688.00",Individual - NEC,,
01/07/2022,STAINES YTH SPTS CTR,Wilks Head & Eve,Rates,634.00,Individual - NEC,,
01/07/2022,DAKOTA,Wilks Head & Eve,Rates,"21,760.00",Individual - NEC,,
01/07/2022,EBBISHAM - EPSOM LIB,Wilks Head & Eve,Rates,"5,205.00",Individual - NEC,,
01/07/2022,BISLEY CEP,Wilks Head & Eve,Rates,435.00,Individual - NEC,,
01/07/2022,CHANDLERS FIELD PRY,Wilks Head & Eve,Rates,"1,118.00",Individual - NEC,,
01/07/2022,THE MANSION L'HEAD,Wilks Head & Eve,Rates,"1,788.00",Individual - NEC,,
01/07/2022,ST BARTHOLOMEWS CEP,Wilks Head & Eve,Rates,713.00,Individual - NEC,,
01/07/2022,LIMPSFIELD CEI,Wilks Head & Eve,Rates,294.00,Individual - NEC,,
01/07/2022,MERSTHAM HUB,Wilks Head & Eve,Rates,"1,372.00",Individual - NEC,,
01/07/2022,ST MARTINS CEP DORK,Wilks Head & Eve,Rates,"2,100.00",Individual - NEC,,
01/07/2022,ST JUDES JUN CE SCH,Wilks Head & Eve,Rates,546.00,Individual - NEC,,
01/07/2022,RENTWOOD,Wilks Head & Eve,Rates,"1,037.00",Individual - NEC,,
01/07/2022,FAIRMOUNT HOUSE,Wilks Head & Eve,Rates,"22,400.00",Individual - NEC,,
01/07/2022,FMR BOOKHAM YC,Wilks Head & Eve,Rates,367.00,Individual - NEC,,
01/07/2022,GODSTONE FIRE STN,Wilks Head & Eve,Rates,"2,389.00",Individual - NEC,,
01/07/2022,THAMES DITTON INF,Wilks Head & Eve,Rates,414.00,Individual - NEC,,
01/07/2022,BELL FARM -PRIMARY,Wilks Head & Eve,Rates,"3,477.00",Individual - NEC,,
01/07/2022,OATLANDS SCHOOL,Wilks Head & Eve,Rates,"2,496.00",Individual - NEC,,
01/07/2022,NORTH DOWNS PRY,Wilks Head & Eve,Rates,489.00,Individual - NEC,,
01/07/2022,61 STAINES HIGH ST,Wilks Head & Eve,Rates,"6,191.00",Individual - NEC,,
01/07/2022,CHERTSEY NURSERY,Wilks Head & Eve,Rates,"3,925.00",Individual - NEC,,
01/07/2022,PERM SURPLUS NON-RES,Wilks Head & Eve,Rates,"1,303.00",Individual - NEC,,
01/07/2022,WHARF NURSERY,Wilks Head & Eve,Rates,"4,864.00",Individual - NEC,,
01/07/2022,WOKING CORONER CT,Wilks Head & Eve,Rates,"10,069.00",Individual - NEC,,
01/07/2022,LAKERS YC WOKING,Wilks Head & Eve,Rates,403.00,Individual - NEC,,
01/07/2022,GLEBELANDS,Wilks Head & Eve,Rates,"8,619.00",Individual - NEC,,
01/07/2022,WITLEY CEI,Wilks Head & Eve,Rates,728.00,Individual - NEC,,
01/07/2022,MANBY LODGE INF,Wilks Head & Eve,Rates,"3,221.00",Individual - NEC,,
01/07/2022,LONG DITTON INF,Wilks Head & Eve,Rates,279.00,Individual - NEC,,
01/07/2022,PRIORY CE SCHOOL,Wilks Head & Eve,Rates,"2,539.00",Individual - NEC,,
01/07/2022,NW SURREY SSS,Wilks Head & Eve,Rates,308.00,Individual - NEC,,
01/07/2022,PERM SURP LAND,Wilks Head & Eve,Rates,457.00,Individual - NEC,,
01/07/2022,SHOTTERMILL INF,Wilks Head & Eve,Rates,"1,653.00",Individual - NEC,,
01/07/2022,ASHLEY PARK HOUSE,Wilks Head & Eve,Rates,"1,611.00",Individual - NEC,,
01/07/2022,KINGFISHER HOUSE,Wilks Head & Eve,Rates,"2,155.00",Individual - NEC,,
01/07/2022,FMR HORLEY LIBRARY,Wilks Head & Eve,Rates,"1,028.00",Individual - NEC,,
01/07/2022,TRUMPS GREEN INF,Wilks Head & Eve,Rates,"1,653.00",Individual - NEC,,
01/07/2022,WILLIAM COBBETT JUN,Wilks Head & Eve,Rates,"5,376.00",Individual - NEC,,
01/07/2022,SHAW FC,Wilks Head & Eve,Rates,250.00,Individual - NEC,,
01/07/2022,STAINES FIRE STATION,Wilks Head & Eve,Rates,"2,411.00",Individual - NEC,,
01/07/2022,TATTENHAM LIB,Wilks Head & Eve,Rates,520.00,Individual - NEC,,
01/07/2022,CHOBHAM RETAINED STN,Wilks Head & Eve,Rates,707.00,Individual - NEC,,
01/07/2022,REDHILL LIB (NEW),Wilks Head & Eve,Rates,"4,693.00",Individual - NEC,,
01/07/2022,ST GILES CEI ASHTD,Wilks Head & Eve,Rates,269.00,Individual - NEC,,
01/07/2022,WEST HOUSE COMPLEX,Wilks Head & Eve,Rates,"1,019.00",Individual - NEC,,
01/07/2022,HERSHAM LIB,Wilks Head & Eve,Rates,572.00,Individual - NEC,,
01/07/2022,REIGATE FIRE STATION,Wilks Head & Eve,Rates,"19,733.00",Individual - NEC,,
01/07/2022,SHEPPERTON YOUTH CTR,Wilks Head & Eve,Rates,337.00,Individual - NEC,,
01/07/2022,WALSH MEMORIAL CEI,Wilks Head & Eve,Rates,"1,216.00",Individual - NEC,,
01/07/2022,FORDBRIDGE FIRE STN,Wilks Head & Eve,Rates,"6,656.00",Individual - NEC,,
01/07/2022,WITLEY DEPOT,Wilks Head & Eve,Rates,"2,688.00",Individual - NEC,,
01/07/2022,ASHLEY PARK HOUSE,Wilks Head & Eve,Rates,"2,944.00",Individual - NEC,,
01/07/2022,ST MICHAEL RCP ASHFD,Wilks Head & Eve,Rates,649.00,Individual - NEC,,
01/07/2022,DORKING LIB (NEW),Wilks Head & Eve,Rates,"3,627.00",Individual - NEC,,
01/07/2022,ST FAITHS FC,Wilks Head & Eve,Rates,"1,674.00",Individual - NEC,,
01/07/2022,EWELL GROVE PRIMARY,Wilks Head & Eve,Rates,"1,611.00",Individual - NEC,,
01/07/2022,WEST BYFLEET CI,Wilks Head & Eve,Rates,"1,909.11",Individual - NEC,,
01/07/2022,ST NICHOLAS CEP SHEP,Wilks Head & Eve,Rates,772.00,Individual - NEC,,
01/07/2022,OLD DEAN YC CAMBERLE,Wilks Head & Eve,Rates,308.00,Individual - NEC,,
01/07/2022,UNIT 4 LEATHERHEAD,Wilks Head & Eve,Rates,"3,776.00",Individual - NEC,,
01/07/2022,EGHAM FIRE STATION,Wilks Head & Eve,Rates,"3,072.00",Individual - NEC,,
01/07/2022,EGHAM LIB,Wilks Head & Eve,Rates,"1,019.00",Individual - NEC,,
01/07/2022,CHERTSEY FIRE STN,Wilks Head & Eve,Rates,"2,961.00",Individual - NEC,,
01/07/2022,PUBLIC LIB OFFS WEYB,Wilks Head & Eve,Rates,274.00,Individual - NEC,,
01/07/2022,WEST HOUSE COMPLEX,Wilks Head & Eve,Rates,"6,571.00",Individual - NEC,,
01/07/2022,NE SHORT STAY SCH,Wilks Head & Eve,Rates,725.00,Individual - NEC,,
01/07/2022,THE DORKING CENTRE,Wilks Head & Eve,Rates,341.00,Individual - NEC,,
01/07/2022,ST LAWRENCE CEJ CHOB,Wilks Head & Eve,Rates,529.00,Individual - NEC,,
01/07/2022,HAYES BRIDGE BC-BUS,Wilks Head & Eve,Rates,316.72,Individual - NEC,,
01/07/2022,FRIMLEY GREEN YC,Wilks Head & Eve,Rates,426.00,Individual - NEC,,
01/07/2022,WALTON FIRE STATION,Wilks Head & Eve,Rates,"3,243.00",Individual - NEC,,
01/07/2022,ESHER GREEN ESHER,Wilks Head & Eve,Rates,956.00,Individual - NEC,,
01/07/2022,CRANLEIGH LIB,Wilks Head & Eve,Rates,"1,008.00",Individual - NEC,,
01/07/2022,GUILDFORD LIB,Wilks Head & Eve,Rates,"4,693.00",Individual - NEC,,
01/07/2022,FMR HORLEY LIBRARY,Wilks Head & Eve,Rates,"1,549.00",Individual - NEC,,
01/07/2022,ASHFORD CEP,Wilks Head & Eve,Rates,572.00,Individual - NEC,,
01/07/2022,THAMES DITTON JUN,Wilks Head & Eve,Rates,905.00,Individual - NEC,,
01/07/2022,ASH MANOR SCHOOL,Wilks Head & Eve,Rates,"10,773.00",Individual - NEC,,
01/07/2022,CRANLEIGH FIRE STN,Wilks Head & Eve,Rates,800.00,Individual - NEC,,
01/07/2022,RENTWOOD,Wilks Head & Eve,Rates,314.00,Individual - NEC,,
01/07/2022,PUBLIC LIB OFFS WEYB,Wilks Head & Eve,Rates,603.00,Individual - NEC,,
01/07/2022,EPSOM PRY,Wilks Head & Eve,Rates,"3,349.00",Individual - NEC,,
01/07/2022,FARNCOMBE CEI,Wilks Head & Eve,Rates,"1,092.00",Individual - NEC,,
01/07/2022,EWELL COURT LIB,Wilks Head & Eve,Rates,509.00,Individual - NEC,,
01/07/2022,GUILDFORD CHILDS CTR,Wilks Head & Eve,Rates,"1,757.00",Individual - NEC,,
01/07/2022,THE MANSION L'HEAD,Wilks Head & Eve,Rates,"1,154.00",Individual - NEC,,
01/07/2022,CRANLEIGH CE VC PRIM,Wilks Head & Eve,Rates,"1,071.00",Individual - NEC,,
01/07/2022,SALFORDS FIRE STATIO,Wilks Head & Eve,Rates,"5,547.00",Individual - NEC,,
01/07/2022,HASLEMERE LIB,Wilks Head & Eve,Rates,769.00,Individual - NEC,,
01/07/2022,EARLSWOOD INF&JUN,Wilks Head & Eve,Rates,"2,064.00",Individual - NEC,,
01/07/2022,PRIMARY DATA CENTRE,Wilks Head & Eve,Rates,"1,248.00",Individual - NEC,,
01/07/2022,PUBLIC LIB OFFS WEYB,Wilks Head & Eve,Rates,"1,944.00",Individual - NEC,,
01/07/2022,SURREY HISTORY CTR,Wilks Head & Eve,Rates,"21,333.00",Individual - NEC,,
01/07/2022,DUNSFOLD FIRE STN,Wilks Head & Eve,Rates,509.00,Individual - NEC,,
01/07/2022,ST JOSEPHS CTH PRY D,Wilks Head & Eve,Rates,256.00,Individual - NEC,,
01/07/2022,FARNHAM AEI WEST ST,Wilks Head & Eve,Rates,"1,601.00",Individual - NEC,,
01/07/2022,GATWICK DIAMOND PH 1,Wilks Head & Eve,Rates,"7,936.00",Individual - NEC,,
01/07/2022,OAKLANDS BALFOUR AVE,Woking Borough Council,Rates,266.00,Grants-Member Allocs,,
01/07/2022,WOKING CARE PD,Woodleigh Healthcare Ltd,Home Base Care,250.32,Fostering IFA,,
01/07/2022,LD-AUT CNTR TM CARE,Woodleigh Healthcare Ltd,Home Base Care,323.96,Fostering IFA,,
01/07/2022,REIGATE & BD CARE PD,Your Life Your Home,Supported Living,"7,316.40",Sup Living Children,,
01/07/2022,REIGATE & BD CARE PD,Your Life Your Home,Supported Living,386.40,Sup Living Children,,
04/07/2022,TANDRIDGE CARE OP,Able Trust Care Ltd,Home Base Care,357.62,Occupational Therapy,,
04/07/2022,TANDRIDGE CARE OP,Able Trust Care Ltd,Home Base Care,813.40,Occupational Therapy,,
04/07/2022,TANDRIDGE CARE OP,Able Trust Care Ltd,Home Base Care,530.28,Occupational Therapy,,
04/07/2022,TANDRIDGE CARE OP,Able Trust Care Ltd,Home Base Care,357.62,Occupational Therapy,,
04/07/2022,TANDRIDGE CARE OP,Able Trust Care Ltd,Home Base Care,357.62,Occupational Therapy,,
04/07/2022,TANDRIDGE CARE OP,Able Trust Care Ltd,Home Base Care,813.40,Occupational Therapy,,
04/07/2022,WAVERLEY CARE OP,Agincare Live In Care South East Lt,Home Base Care,"1,753.22",Dom Care - Adults,,
04/07/2022,AREA CARE VOUCHERS,Allpay Ltd,Third Party Payments-Private Individuals,"5,774.10",Misc One-off,,
04/07/2022,SPELTHORNE CARE PD,Amber Home Carers Ltd,Home Base Care,"1,751.40",Residential - OP,,
04/07/2022,ELMBRIDGE CARE OP,Amber Home Carers Ltd,Home Base Care,485.80,Residential - OP,,
04/07/2022,ELMBRIDGE CARE OP,Amber Home Carers Ltd,Home Base Care,485.80,Residential - OP,,
04/07/2022,SURREY HEATH CARE OP,Amber Home Carers Ltd,Home Base Care,"5,654.88",Residential - OP,,
04/07/2022,ELMBRIDGE CARE OP,Amber Home Carers Ltd,Home Base Care,"1,767.22",Residential - OP,,
04/07/2022,ELMBRIDGE CARE OP,Amber Home Carers Ltd,Home Base Care,"1,767.22",Residential - OP,,
04/07/2022,SURREY HEATH CARE OP,Amber Home Carers Ltd,Home Base Care,"5,654.88",Residential - OP,,
04/07/2022,SPELTHORNE CARE PD,Amber Home Carers Ltd,Home Base Care,"1,751.40",Residential - OP,,
04/07/2022,ELMBRIDGE CARE PD,Amily Homecare,Home Base Care,749.27,Dom Care - Adults,,
04/07/2022,SW UASC NRPF 18+ CRE,Redacted Personnel Data,Furniture,"1,998.50",CYP Indiv Carers,,
04/07/2022,SW UASC NRPF 18+ CRE,Redacted Personnel Data,Third Party Payments-Other Agencies,552.50,CYP Indiv Carers,,
04/07/2022,LD-AUT CNTR TM CARE,Angel Cars Woking,Hire of Vehicles,720.00,Taxi Hire (SEN Only),,
04/07/2022,NULL,Arnold Clark Finance Ltd,NULL,300.00,Staff Benefits,,
04/07/2022,NULL,Atkins Ltd (Transport Contracts Onl,NULL,"9,360.00",Multi-purpose Veh,,
04/07/2022,LD-AUT CNTR TM CARE,Avenues South,Other Community Care,"1,118.04",Residential - MH,,
04/07/2022,SURREY HEATH CARE OP,Beeaktive Care Ltd,Home Base Care,840.00,Other Care,,
04/07/2022,ELMBRIDGE CARE OP,Beeaktive Care Ltd,Home Base Care,784.00,Other Care,,
04/07/2022,GUILDFORD CARE PD,Beeaktive Care Ltd,Home Base Care,496.00,Other Care,,
04/07/2022,ELMBRIDGE CARE OP,Beeaktive Care Ltd,Home Base Care,"1,638.00",Other Care,,
04/07/2022,SURREY HEATH CARE OP,Beeaktive Care Ltd,Home Base Care,518.00,Other Care,,
04/07/2022,SURREY HEATH CARE OP,Beeaktive Care Ltd,Home Base Care,476.00,Other Care,,
04/07/2022,SURREY HEATH CARE OP,Beeaktive Care Ltd,Home Base Care,"1,764.00",Other Care,,
04/07/2022,GUILDFORD CARE OP,Beeaktive Care Ltd,Home Base Care,351.00,Other Care,,
04/07/2022,SURREY HEATH CARE PD,Beeaktive Care Ltd,Home Base Care,686.00,Other Care,,
04/07/2022,SURREY HEATH CARE OP,Beeaktive Care Ltd,Home Base Care,728.00,Other Care,,
04/07/2022,ELMBRIDGE CARE PD,Beeaktive Care Ltd,Home Base Care,327.00,Other Care,,
04/07/2022,SURREY HEATH CARE OP,Beeaktive Care Ltd,Home Base Care,420.00,Other Care,,
04/07/2022,GUILDFORD CARE OP,Beeaktive Care Ltd,Home Base Care,462.00,Other Care,,
04/07/2022,SURREY HEATH CARE OP,Beeaktive Care Ltd,Home Base Care,420.00,Other Care,,
04/07/2022,ELMBRIDGE CARE OP,Beeaktive Care Ltd,Home Base Care,468.00,Other Care,,
04/07/2022,SURREY HEATH CARE OP,Beeaktive Care Ltd,Home Base Care,252.00,Other Care,,
04/07/2022,SURREY HEATH CARE OP,Beeaktive Care Ltd,Home Base Care,304.00,Other Care,,
04/07/2022,SURREY HEATH CARE OP,Beeaktive Care Ltd,Home Base Care,"1,134.00",Other Care,,
04/07/2022,SURREY HEATH CARE OP,Beeaktive Care Ltd,Home Base Care,939.00,Other Care,,
04/07/2022,SURREY HEATH CARE PD,Beeaktive Care Ltd,Home Base Care,"1,792.00",Other Care,,
04/07/2022,ELMBRIDGE CARE OP,Beeaktive Care Ltd,Home Base Care,588.00,Other Care,,
04/07/2022,LD-AUT CNTR TM CARE,Beechwood Court,Extra Care Housing,521.89,Extra Care,,
04/07/2022,SPELTHORNE CARE OP,Beechwood Court,Extra Care Housing,"2,935.29",Extra Care,,
04/07/2022,SPELTHORNE CARE OP,Beechwood Court,Extra Care Housing,694.34,Extra Care,,
04/07/2022,SPELTHORNE CARE OP,Beechwood Court,Extra Care Housing,"1,099.50",Extra Care,,
04/07/2022,SPELTHORNE CARE OP,Beechwood Court,Extra Care Housing,"1,132.10",Extra Care,,
04/07/2022,SPELTHORNE CARE OP,Beechwood Court,Extra Care Housing,"1,327.57",Extra Care,,
04/07/2022,PUPIL PREMIUM LAC,Bexleyheath Academy,Local Authorities,825.00,Edu Non-SEN Support,,
04/07/2022,LD-AUT CNTR TM CARE,Caprani Care Ltd,Supported Living,"15,100.96",Sup Living Children,,
04/07/2022,LD-AUT CNTR TM CARE,Caprani Care Ltd,Supported Living,"9,238.04",Sup Living Children,,
04/07/2022,EPSOM & EWELL CARE O,Care More Ltd,Home Base Care,"1,620.80",Residential - OP,,
04/07/2022,EPSOM & EWELL CARE O,Care More Ltd,Home Base Care,530.04,Residential - OP,,
04/07/2022,EPSOM & EWELL CARE O,Care More Ltd,Home Base Care,590.80,Residential - OP,,
04/07/2022,EPSOM & EWELL CARE O,Care More Ltd,Home Base Care,574.28,Residential - OP,,
04/07/2022,EPSOM & EWELL CARE O,Care More Ltd,Home Base Care,353.36,Residential - OP,,
04/07/2022,EPSOM & EWELL CARE O,Care More Ltd,Home Base Care,587.40,Residential - OP,,
04/07/2022,EPSOM & EWELL CARE O,Care More Ltd,Home Base Care,392.70,Residential - OP,,
04/07/2022,EPSOM & EWELL CARE O,Care More Ltd,Home Base Care,340.80,Residential - OP,,
04/07/2022,EPSOM & EWELL CARE O,Care More Ltd,Home Base Care,427.35,Residential - OP,,
04/07/2022,EPSOM & EWELL CARE O,Care More Ltd,Home Base Care,809.76,Residential - OP,,
04/07/2022,EPSOM & EWELL CARE O,Care More Ltd,Home Base Care,750.96,Residential - OP,,
04/07/2022,EPSOM & EWELL CARE O,Care More Ltd,Home Base Care,695.80,Residential - OP,,
04/07/2022,EPSOM & EWELL CARE O,Care More Ltd,Home Base Care,641.56,Residential - OP,,
04/07/2022,EPSOM & EWELL CARE O,Care More Ltd,Home Base Care,256.90,Residential - OP,,
04/07/2022,EPSOM & EWELL CARE O,Care More Ltd,Home Base Care,"1,391.60",Residential - OP,,
04/07/2022,EPSOM & EWELL CARE O,Care More Ltd,Home Base Care,324.70,Residential - OP,,
04/07/2022,SURREY HEATH CARE OP,Carers With Care Ltd,Home Base Care,352.00,Dom Care - Adults,,
04/07/2022,SPELTHORNE CARE PD,Chestnut Court,Extra Care Housing,260.96,Residential - LD,,
04/07/2022,SPELTHORNE CARE OP,Chestnut Court,Extra Care Housing,521.64,Residential - LD,,
04/07/2022,SPELTHORNE CARE PD,Chestnut Court,Extra Care Housing,521.92,Residential - LD,,
04/07/2022,LD-AUT CNTR TM CARE,Chestnut Court,Extra Care Housing,"2,842.04",Residential - LD,,
04/07/2022,SPELTHORNE CARE OP,Chestnut Court,Extra Care Housing,652.12,Residential - LD,,
04/07/2022,SPELTHORNE CARE OP,Chestnut Court,Extra Care Housing,475.18,Residential - LD,,
04/07/2022,SPELTHORNE CARE OP,Chestnut Court,Extra Care Housing,521.92,Residential - LD,,
04/07/2022,SPELTHORNE CARE OP,Chestnut Court,Extra Care Housing,335.48,Residential - LD,,
04/07/2022,SPELTHORNE CARE PD,Chestnut Court,Extra Care Housing,838.63,Residential - LD,,
04/07/2022,SPELTHORNE CARE OP,Chestnut Court,Extra Care Housing,745.32,Residential - LD,,
04/07/2022,SPELTHORNE CARE PD,Chestnut Court,Extra Care Housing,"1,882.04",Residential - LD,,
04/07/2022,SPELTHORNE CARE OP,Chestnut Court,Extra Care Housing,"3,129.28",Residential - LD,,
04/07/2022,SPELTHORNE CARE OP,Chestnut Court,Extra Care Housing,"1,435.00",Residential - LD,,
04/07/2022,SPELTHORNE CARE OP,Chestnut Court,Extra Care Housing,"2,738.68",Residential - LD,,
04/07/2022,SPELTHORNE CARE PD,Chestnut Court,Extra Care Housing,"3,391.64",Residential - LD,,
04/07/2022,SPELTHORNE CARE OP,Chestnut Court,Extra Care Housing,521.92,Residential - LD,,
04/07/2022,SPELTHORNE CARE PD,Chestnut Court,Extra Care Housing,876.08,Residential - LD,,
04/07/2022,SPELTHORNE CARE PD,Chestnut Court,Extra Care Housing,801.44,Residential - LD,,
04/07/2022,SPELTHORNE CARE PD,Chestnut Court,Extra Care Housing,"2,464.68",Residential - LD,,
04/07/2022,SPELTHORNE CARE OP,Chestnut Court,Extra Care Housing,"1,211.30",Residential - LD,,
04/07/2022,SPELTHORNE CARE PD,Chestnut Court,Extra Care Housing,"1,057.82",Residential - LD,,
04/07/2022,SPELTHORNE CARE OP,Chestnut Court,Extra Care Housing,"1,378.80",Residential - LD,,
04/07/2022,SPELTHORNE CARE OP,Chestnut Court,Extra Care Housing,"1,183.36",Residential - LD,,
04/07/2022,SPELTHORNE CARE PD,Chestnut Court,Extra Care Housing,"1,267.19",Residential - LD,,
04/07/2022,SPELTHORNE CARE OP,Chestnut Court,Extra Care Housing,652.12,Residential - LD,,
04/07/2022,HQ PYMNT OF INS CLMS,Claims Management - OTV BACS,Ins Claims Other Insured Paid,511.94,NULL,,
04/07/2022,WOODHATCH,Computacenter (UK) Ltd,Equipment,"6,648.00",Hardware - Sys,,
04/07/2022,NULL,Computacenter (UK) Ltd,NULL,"1,440.00",Hardware - Sys,,
04/07/2022,CHENNESTONE CP SCH,Creed-Miles & Co Ltd,Buyback Works Responsive,"1,936.80",General Build Maint,,
04/07/2022,2 ST JAMES AVE FRNHM,Creed-Miles & Co Ltd,Buyback Works Responsive,"1,584.00",General Build Maint,,
04/07/2022,EPSOM & EWELL CARE P,Crystal Care,Home Base Care,352.26,Dom Care - Adults,,
04/07/2022,MOLE VALLEY CARE OP,Crystal Care,Home Base Care,311.36,Dom Care - Adults,,
04/07/2022,REIGATE & BD CARE PD,Crystal Care,Home Base Care,378.36,Dom Care - Adults,,
04/07/2022,EPSOM & EWELL CARE O,Crystal Care,Home Base Care,368.20,Dom Care - Adults,,
04/07/2022,REIGATE & BD CARE OP,Crystal Care,Home Base Care,467.04,Dom Care - Adults,,
04/07/2022,REIGATE & BD CARE OP,Crystal Care,Home Base Care,405.30,Dom Care - Adults,,
04/07/2022,MOLE VALLEY CARE OP,Crystal Care,Home Base Care,620.44,Dom Care - Adults,,
04/07/2022,MOLE VALLEY CARE OP,Crystal Care,Home Base Care,278.00,Dom Care - Adults,,
04/07/2022,EPSOM & EWELL CARE O,Crystal Care,Home Base Care,589.36,Dom Care - Adults,,
04/07/2022,MOLE VALLEY CARE OP,Crystal Care,Home Base Care,562.46,Dom Care - Adults,,
04/07/2022,REIGATE & BD CARE OP,Crystal Care,Home Base Care,294.28,Dom Care - Adults,,
04/07/2022,EPSOM & EWELL CARE O,Crystal Care,Home Base Care,273.26,Dom Care - Adults,,
04/07/2022,REIGATE & BD CARE OP,Crystal Care,Home Base Care,882.84,Dom Care - Adults,,
04/07/2022,MOLE VALLEY CARE OP,Crystal Care,Home Base Care,588.56,Dom Care - Adults,,
04/07/2022,EPSOM & EWELL CARE O,Crystal Care,Home Base Care,622.72,Dom Care - Adults,,
04/07/2022,EPSOM & EWELL CARE O,Crystal Care,Home Base Care,311.36,Dom Care - Adults,,
04/07/2022,MOLE VALLEY CARE OP,Crystal Care,Home Base Care,331.24,Dom Care - Adults,,
04/07/2022,EPSOM & EWELL CARE O,Crystal Care,Home Base Care,331.24,Dom Care - Adults,,
04/07/2022,EPSOM & EWELL CARE O,Crystal Care,Home Base Care,"1,177.12",Dom Care - Adults,,
04/07/2022,REIGATE & BD CARE OP,Crystal Care,Home Base Care,622.72,Dom Care - Adults,,
04/07/2022,MOLE VALLEY CARE OP,Crystal Care,Home Base Care,514.18,Dom Care - Adults,,
04/07/2022,EPSOM & EWELL CARE O,Crystal Care,Home Base Care,415.32,Dom Care - Adults,,
04/07/2022,EPSOM & EWELL CARE O,Crystal Care,Home Base Care,"1,177.12",Dom Care - Adults,,
04/07/2022,MOLE VALLEY CARE OP,Crystal Care,Home Base Care,"1,177.12",Dom Care - Adults,,
04/07/2022,MOLE VALLEY CARE OP,Crystal Care,Home Base Care,294.28,Dom Care - Adults,,
04/07/2022,EPSOM & EWELL CARE O,Crystal Care,Home Base Care,678.09,Dom Care - Adults,,
04/07/2022,MOLE VALLEY CARE OP,Crystal Care,Home Base Care,506.38,Dom Care - Adults,,
04/07/2022,EPSOM & EWELL CARE O,Crystal Care,Home Base Care,294.28,Dom Care - Adults,,
04/07/2022,REIGATE & BD CARE OP,Crystal Care,Home Base Care,588.56,Dom Care - Adults,,
04/07/2022,MOLE VALLEY CARE OP,Crystal Care,Home Base Care,467.04,Dom Care - Adults,,
04/07/2022,MOLE VALLEY CARE PD,Crystal Care,Home Base Care,810.60,Dom Care - Adults,,
04/07/2022,MOLE VALLEY CARE OP,Crystal Care,Home Base Care,322.60,Dom Care - Adults,,
04/07/2022,MOLE VALLEY CARE OP,Crystal Care,Home Base Care,622.72,Dom Care - Adults,,
04/07/2022,NULL,Davitt Jones Bould - (Solicitor),NULL,"1,300.00",General Support,,
04/07/2022,SW CARE - CARE LVRS,Redacted Personnel Data,Third Party Payments-Other Agencies,"1,884.82",Invoicing Plan Req.,,
04/07/2022,NULL,Elmbridge Community Link,NULL,"3,162.50",Grants-Member Allocs,,
04/07/2022,WAVERLEY CMHRS CARE,Farm Place,Supported Living,"1,256.00",Staff Training,,
04/07/2022,MH COUNTRYWIDE CARER,Field Lane Foundation,Other Community Care,566.30,Supp Living - MH,,
04/07/2022,LD-AUT CNTR TM CARE,FitzRoy,Day Care,"1,060.68",Residential - MH,,
04/07/2022,SEN TRANSPORT,Five Sixes Taxis,Hire of Vehicles,"1,368.00",Multi-purpose Veh,,
04/07/2022,NW ALT PROV TRANS,Five Sixes Taxis,Hire of Vehicles,"1,737.06",Multi-purpose Veh,,
04/07/2022,SEN TRANSPORT,Five Sixes Taxis,Hire of Vehicles,"1,596.00",Multi-purpose Veh,,
04/07/2022,TRANSPT M/STRM-PRIM,Five Sixes Taxis,Hire of Vehicles,720.00,Multi-purpose Veh,,
04/07/2022,SEN TRANSPORT,Five Sixes Taxis,Hire of Vehicles,"1,960.80",Multi-purpose Veh,,
04/07/2022,SEN TRANSPORT,Five Sixes Taxis,Hire of Vehicles,840.00,Multi-purpose Veh,,
04/07/2022,TRANSPT M/STRM-PRIM,Five Sixes Taxis,Hire of Vehicles,"1,296.00",Multi-purpose Veh,,
04/07/2022,TRANSPT M/STRM-SEC,Five Sixes Taxis,Hire of Vehicles,"1,550.40",Multi-purpose Veh,,
04/07/2022,SEN TRANSPORT,Five Sixes Taxis,Hire of Vehicles,"1,135.20",Multi-purpose Veh,,
04/07/2022,TRANSPT M/STRM-SEC,Five Sixes Taxis,Hire of Vehicles,816.00,Multi-purpose Veh,,
04/07/2022,TRANSPT M/STRM-PRIM,Five Sixes Taxis,Hire of Vehicles,"1,094.40",Multi-purpose Veh,,
04/07/2022,NW ALT PROV TRANS,Five Sixes Taxis,Hire of Vehicles,822.82,Multi-purpose Veh,,
04/07/2022,TRANSPT M/STRM-PRIM,Five Sixes Taxis,Hire of Vehicles,518.40,Multi-purpose Veh,,
04/07/2022,SEN TRANSPORT,Five Sixes Taxis,Hire of Vehicles,720.00,Multi-purpose Veh,,
04/07/2022,SEN TRANSPORT,Five Sixes Taxis,Hire of Vehicles,818.78,Multi-purpose Veh,,
04/07/2022,SEN TRANSPORT,Five Sixes Taxis,Hire of Vehicles,"1,728.54",Multi-purpose Veh,,
04/07/2022,SEN TRANSPORT,Five Sixes Taxis,Hire of Vehicles,806.40,Multi-purpose Veh,,
04/07/2022,SEN TRANSPORT,Five Sixes Taxis,Hire of Vehicles,"1,728.00",Multi-purpose Veh,,
04/07/2022,LD-AUT CNTR TM CARE,Geneva Road Ltd,Day Care,776.77,Day Care - PSD,,
04/07/2022,LD-AUT CNTR TM CARE,Grassroots Project,Day Care,322.20,Day Care - PSD,,
04/07/2022,LD-AUT CNTR TM CARE,Grassroots Project,Day Care,257.76,Day Care - PSD,,
04/07/2022,SPELTHORNE CARE PD,Grassroots Project,Day Care,257.76,Day Care - PSD,,
04/07/2022,LD-AUT CNTR TM CARE,Grassroots Project,Day Care,322.20,Day Care - PSD,,
04/07/2022,PUPIL PREMIUM LAC,Holmwood House Preparatory School L,Local Authorities,600.00,Edu Non-SEN Support,,
04/07/2022,PUPIL PREMIUM LAC,Holmwood House Preparatory School L,Local Authorities,600.00,Edu Non-SEN Support,,
04/07/2022,PLD TRANSITION,Jigsaw +,Day Care,"2,204.01",Day Care - PSD,,
04/07/2022,LD-AUT CNTR TM CARE,LinkAble Woking Ltd,Day Care,512.00,Day Care - PSD,,
04/07/2022,WAVERLEY CMHRS CARE,London Care Ltd,Home Base Care,300.96,Residential - PSD,,
04/07/2022,WAVERLEY CMHRS CARE,London Care Ltd,Home Base Care,279.45,Residential - PSD,,
04/07/2022,WAVERLEY CMHRS CARE,London Care Ltd,Home Base Care,260.64,Residential - PSD,,
04/07/2022,LD-AUT CNTR TM CARE,National Autistic Society Services,Day Care,824.96,Residential - MH,,
04/07/2022,REDHILL LIB (NEW),New Concept General Cleaning Co Ltd,Cleaning and Domestic Supplies,396.00,Building Cleaning,,
04/07/2022,WRAY PARK COMPLEX,New Concept General Cleaning Co Ltd,Cleaning and Domestic Supplies,"1,416.00",Building Cleaning,,
04/07/2022,NULL,Pelling LLP,NULL,"4,250.40",M-D (Property),,
04/07/2022,TANDRIDGE CARE OP,Phoenix Care Services Ltd,Home Base Care,854.56,Dom Care - Adults,,
04/07/2022,TANDRIDGE CARE OP,Phoenix Care Services Ltd,Home Base Care,714.00,Dom Care - Adults,,
04/07/2022,TANDRIDGE CARE OP,Phoenix Care Services Ltd,Home Base Care,854.56,Dom Care - Adults,,
04/07/2022,SE CWD NON-LAC CARE,Redacted Personal Data,Direct Payments - Carers of Disabled Children,"1,957.97",CYP Indiv CWD Carers,,
04/07/2022,NE CARE - LAC,Redacted Personal Data,Third Party Payments-Other Agencies,271.94,Invoicing Plan Req.,,
04/07/2022,NW FOSTERING CARE,Redacted Personal Data,Payments to F&F Foster Carers,581.78,CYP Indiv Foster Car,,
04/07/2022,NE FOSTERING CARE,Redacted Personal Data,Payments to F&F Foster Carers,"1,057.78",CYP Indiv Foster Car,,
04/07/2022,SW CWD NON-LAC CARE,Redacted Personal Data,Direct Payments - Carers of Disabled Children,"1,300.76",Invoicing Plan Req.,,
04/07/2022,WOKING CMHRS CARE,Redacted Personal Data,Direct Payments - Independent Sector,670.29,CYP Indiv Carers,,
04/07/2022,SW CWD LAC CARE,Redacted Personal Data,Direct Payments - Carers of Disabled Children,"2,243.50",Invoicing Plan Req.,,
04/07/2022,SW CWD NON-LAC CARE,Redacted Personal Data,Direct Payments - Carers of Disabled Children,"20,323.13",Individual - NEC,,
04/07/2022,NE CWD NON-LAC CARE,Redacted Personal Data,Direct Payments - Carers of Disabled Children,432.18,Adult direct payment,,
04/07/2022,SEN TRANSPORT,Redacted Personal Data,Non-Staff Related Transport Costs,391.68,Invoicing Plan Req.,,
04/07/2022,MOLE VALLEY CARE OP,Redacted Personal Data,Direct Payments - Independent Sector,559.42,Central Government,,
04/07/2022,NW FOSTERING CARE,Redacted Personal Data,Payments to F&F Foster Carers,581.78,CYP Indiv Foster Car,,
04/07/2022,NW CWD NON-LAC CARE,Redacted Personal Data,Direct Payments - Carers of Disabled Children,"1,684.56",CYP Indiv CWD Carers,,
04/07/2022,NE CWD NON-LAC CARE,Redacted Personal Data,Direct Payments - Carers of Disabled Children,892.31,Adult direct payment,,
04/07/2022,RUNNYMEDE CARE OP,Redacted Personal Data,Direct Payments - Independent Sector,"1,579.67",Individual - NEC,,
04/07/2022,SW CWD NON-LAC CARE,Redacted Personal Data,Direct Payments - Carers of Disabled Children,327.39,Individual - NEC,,
04/07/2022,NE CARE - CPCRT NONL,Redacted Personal Data,Children Act Sec 24 Payments,299.00,Invoicing Plan Req.,,
04/07/2022,SE CWD NON-LAC CARE,Redacted Personal Data,Direct Payments - Carers of Disabled Children,"2,394.70",Individual - NEC,,
04/07/2022,NE FOSTERING CARE,Redacted Personal Data,Children Act Sec 24 Payments,430.76,CYP Indiv Foster Car,,
04/07/2022,SW UASC NRPF 18+ CRE,Redacted Personal Data,Furniture,499.00,Invoicing Plan Req.,,
04/07/2022,NE CWD NON-LAC CARE,Redacted Personal Data,Direct Payments - Carers of Disabled Children,827.41,Adult direct payment,,
04/07/2022,NE CWD NON-LAC CARE,Redacted Personal Data,Direct Payments - Carers of Disabled Children,779.20,Adult direct payment,,
04/07/2022,SW CWD LAC CARE,Redacted Personal Data,Direct Payments - Carers of Disabled Children,513.54,Adult direct payment,,
04/07/2022,NE CWD NON-LAC CARE,Redacted Personal Data,Direct Payments - Carers of Disabled Children,"2,121.25",Individual - NEC,,
04/07/2022,PARK HALL,Secure Site UK Ltd,Security Alarm Maintenance,744.00,Security Equipment,,
04/07/2022,MOLE VALLEY CARE PD,Seeability - Royal School For The B,Other Community Care,887.52,Residential - MH,,
04/07/2022,Schools Projects Rev,Sitech Surveying Services Ltd,Consultants,"1,620.00",Edu Establishments,,
04/07/2022,LD-AUT CNTR TM CARE,Surrey Choices Ltd,Supported Living,"2,210.31",Day Care - PSD,,
04/07/2022,LD-AUT CNTR TM CARE,Surrey Choices Ltd,Supported Living,"2,210.31",Day Care - PSD,,
04/07/2022,REIGATE & BD CARE OP,Surrey Social Care Professionals Lt,Home Base Care,496.46,Dom Care - Adults,,
04/07/2022,REIGATE & BD CARE OP,Surrey Social Care Professionals Lt,Home Base Care,357.42,Dom Care - Adults,,
04/07/2022,LD-AUT CNTR TM CARE,Surrey Social Care Professionals Lt,Home Base Care,323.84,Dom Care - Adults,,
04/07/2022,REIGATE & BD CARE OP,Surrey Social Care Professionals Lt,Home Base Care,"1,469.18",Dom Care - Adults,,
04/07/2022,REIGATE & BD CARE PD,Surrey Social Care Professionals Lt,Home Base Care,293.48,Dom Care - Adults,,
04/07/2022,REIGATE & BD CARE OP,Surrey Social Care Professionals Lt,Home Base Care,486.50,Dom Care - Adults,,
04/07/2022,TANDRIDGE CARE OP,Surrey Social Care Professionals Lt,Home Base Care,565.90,Dom Care - Adults,,
04/07/2022,REIGATE & BD CARE OP,Surrey Social Care Professionals Lt,Home Base Care,354.20,Dom Care - Adults,,
04/07/2022,REIGATE & BD CARE OP,Surrey Social Care Professionals Lt,Home Base Care,"1,133.44",Dom Care - Adults,,
04/07/2022,TANDRIDGE CARE OP,Surrey Social Care Professionals Lt,Home Base Care,"1,275.12",Dom Care - Adults,,
04/07/2022,TANDRIDGE CARE OP,Surrey Social Care Professionals Lt,Home Base Care,"1,275.12",Dom Care - Adults,,
04/07/2022,TANDRIDGE CARE OP,Surrey Social Care Professionals Lt,Home Base Care,"1,275.12",Dom Care - Adults,,
04/07/2022,REIGATE & BD CARE OP,Surrey Social Care Professionals Lt,Home Base Care,850.08,Dom Care - Adults,,
04/07/2022,REIGATE & BD CARE PD,Surrey Social Care Professionals Lt,Home Base Care,354.20,Dom Care - Adults,,
04/07/2022,REIGATE & BD CARE OP,Surrey Social Care Professionals Lt,Home Base Care,476.54,Dom Care - Adults,,
04/07/2022,REIGATE & BD CARE OP,Surrey Social Care Professionals Lt,Home Base Care,485.76,Dom Care - Adults,,
04/07/2022,REIGATE & BD CARE OP,Surrey Social Care Professionals Lt,Home Base Care,354.20,Dom Care - Adults,,
04/07/2022,TANDRIDGE CARE OP,Surrey Social Care Professionals Lt,Home Base Care,354.20,Dom Care - Adults,,
04/07/2022,TANDRIDGE CARE OP,Surrey Social Care Professionals Lt,Home Base Care,625.38,Dom Care - Adults,,
04/07/2022,TANDRIDGE CARE OP,Surrey Social Care Professionals Lt,Home Base Care,"1,133.44",Dom Care - Adults,,
04/07/2022,TANDRIDGE CARE OP,Surrey Social Care Professionals Lt,Home Base Care,486.50,Dom Care - Adults,,
04/07/2022,TANDRIDGE CARE OP,Surrey Social Care Professionals Lt,Home Base Care,425.04,Dom Care - Adults,,
04/07/2022,REIGATE & BD CARE OP,Surrey Social Care Professionals Lt,Home Base Care,347.48,Dom Care - Adults,,
04/07/2022,REIGATE & BD CARE OP,Surrey Social Care Professionals Lt,Home Base Care,973.00,Dom Care - Adults,,
04/07/2022,REIGATE & BD CARE OP,Surrey Social Care Professionals Lt,Home Base Care,"1,133.44",Dom Care - Adults,,
04/07/2022,TANDRIDGE CARE PD,Surrey Social Care Professionals Lt,Home Base Care,655.19,Dom Care - Adults,,
04/07/2022,TANDRIDGE CARE OP,Surrey Social Care Professionals Lt,Home Base Care,754.52,Dom Care - Adults,,
04/07/2022,REIGATE & BD CARE OP,Surrey Social Care Professionals Lt,Home Base Care,406.88,Dom Care - Adults,,
04/07/2022,REIGATE & BD CARE OP,Surrey Social Care Professionals Lt,Home Base Care,313.72,Dom Care - Adults,,
04/07/2022,REIGATE & BD CARE PD,Surrey Social Care Professionals Lt,Home Base Care,333.96,Dom Care - Adults,,
04/07/2022,REIGATE & BD CARE OP,Surrey Social Care Professionals Lt,Home Base Care,283.36,Dom Care - Adults,,
04/07/2022,REIGATE & BD CARE OP,Surrey Social Care Professionals Lt,Home Base Care,556.08,Dom Care - Adults,,
04/07/2022,REIGATE & BD CARE OP,Surrey Social Care Professionals Lt,Home Base Care,556.60,Dom Care - Adults,,
04/07/2022,REIGATE & BD CARE PD,Surrey Social Care Professionals Lt,Home Base Care,495.88,Dom Care - Adults,,
04/07/2022,TANDRIDGE CARE OP,Surrey Social Care Professionals Lt,Home Base Care,466.67,Dom Care - Adults,,
04/07/2022,TANDRIDGE CARE OP,Surrey Social Care Professionals Lt,Home Base Care,327.56,Dom Care - Adults,,
04/07/2022,FEASIBILITY FUNDING,SWT Ecology Services Ltd,Fees,"2,400.00",M-D (Property),,
04/07/2022,NULL,Teachers Pensions,NULL,"36,837.26",Pensions,,
04/07/2022,NULL,Teachers Pensions,NULL,"25,805.25",Pensions,,
04/07/2022,NULL,Teachers Pensions,NULL,294.00,Pensions,,
04/07/2022,NULL,Teachers Pensions,NULL,"2,953.24",Pensions,,
04/07/2022,NULL,Teachers Pensions,NULL,"5,975.82",Pensions,,
04/07/2022,NULL,Teachers Pensions,NULL,"14,769.08",Pensions,,
04/07/2022,NULL,Teachers Pensions,NULL,"1,991,167.38",Pensions,,
04/07/2022,NULL,Teachers Pensions,NULL,"28,281.32",Pensions,,
04/07/2022,NULL,Teachers Pensions,NULL,"24,594.43",Pensions,,
04/07/2022,NULL,Teachers Pensions,NULL,"63,867.42",Pensions,,
04/07/2022,NULL,Teachers Pensions,NULL,"10,285.11",Pensions,,
04/07/2022,NULL,Teachers Pensions,NULL,985.60,Pensions,,
04/07/2022,NULL,Teachers Pensions,NULL,"770,549.62",Pensions,,
04/07/2022,NULL,Teachers Pensions,NULL,"15,862.22",Pensions,,
04/07/2022,NULL,Teachers Pensions,NULL,"5,863.00",Pensions,,
04/07/2022,NULL,Teachers Pensions,NULL,"62,022.73",Pensions,,
04/07/2022,NULL,Teachers Pensions,NULL,"14,665.01",Pensions,,
04/07/2022,NULL,Teachers Pensions,NULL,"92,921.05",Pensions,,
04/07/2022,NULL,Teachers Pensions,NULL,"151,950.08",Pensions,,
04/07/2022,NULL,Teachers Pensions,NULL,"6,440.23",Pensions,,
04/07/2022,NULL,Teachers Pensions,NULL,"29,395.79",Pensions,,
04/07/2022,NULL,Teachers Pensions,NULL,"15,016.40",Pensions,,
04/07/2022,NULL,Teachers Pensions,NULL,"79,046.82",Pensions,,
04/07/2022,NULL,Teachers Pensions,NULL,"73,705.58",Pensions,,
04/07/2022,NULL,Teachers Pensions,NULL,"15,437.53",Pensions,,
04/07/2022,NULL,Teachers Pensions,NULL,"37,207.01",Pensions,,
04/07/2022,NULL,Teachers Pensions,NULL,"3,543.56",Pensions,,
04/07/2022,NULL,Teachers Pensions,NULL,"5,744.12",Pensions,,
04/07/2022,NULL,Teachers Pensions,NULL,"19,362.36",Pensions,,
04/07/2022,NULL,Teachers Pensions,NULL,"71,257.80",Pensions,,
04/07/2022,NULL,Teachers Pensions,NULL,"9,532.53",Pensions,,
04/07/2022,NULL,Teachers Pensions,NULL,"9,881.52",Pensions,,
04/07/2022,NULL,Teachers Pensions,NULL,"15,232.06",Pensions,,
04/07/2022,NULL,Teachers Pensions,NULL,"8,444.98",Pensions,,
04/07/2022,NULL,Teachers Pensions,NULL,"3,945.25",Pensions,,
04/07/2022,NULL,Teachers Pensions,NULL,"9,106.51",Pensions,,
04/07/2022,NULL,Teachers Pensions,NULL,"5,693.76",Pensions,,
04/07/2022,NULL,Teachers Pensions,NULL,"54,212.81",Pensions,,
04/07/2022,NULL,Teachers Pensions,NULL,"31,260.36",Pensions,,
04/07/2022,NULL,Teachers Pensions,NULL,350.64,Pensions,,
04/07/2022,NULL,Teachers Pensions,NULL,"1,202.16",Pensions,,
04/07/2022,NULL,Teachers Pensions,NULL,"7,327.61",Pensions,,
04/07/2022,NULL,Teachers Pensions,NULL,"13,676.59",Pensions,,
04/07/2022,NULL,Teachers Pensions,NULL,"5,648.95",Pensions,,
04/07/2022,NULL,Teachers Pensions,NULL,"5,117.96",Pensions,,
04/07/2022,NULL,Teachers Pensions,NULL,"4,117.37",Pensions,,
04/07/2022,NULL,Teachers Pensions,NULL,"1,075.20",Pensions,,
04/07/2022,NULL,Teachers Pensions,NULL,"3,945.86",Pensions,,
04/07/2022,NULL,Teachers Pensions,NULL,"16,536.93",Pensions,,
04/07/2022,NULL,Teachers Pensions,NULL,"25,060.89",Pensions,,
04/07/2022,LD-AUT CNTR TM CARE,The Emily Jordan Foundation,Day Care,750.00,Residential - OP,,
04/07/2022,LD-AUT CNTR TM CARE,The Grange Centre,Day Care,"1,332.32",PR & Image,,
04/07/2022,MOLE VALLEY CARE PD,The Grange Centre,Day Care,999.24,PR & Image,,
04/07/2022,LD-AUT CNTR TM CARE,The Grange Centre,Day Care,"1,460.76",PR & Image,,
04/07/2022,LD-AUT CNTR TM CARE,The Grange Centre,Day Care,"1,498.88",PR & Image,,
04/07/2022,LD-AUT CNTR TM CARE,The Grange Centre,Day Care,666.16,PR & Image,,
04/07/2022,SPELTHORNE CARE PD,The Peaches Healthcare Ltd,Home Base Care,"3,394.16",Dom Care - Adults,,
04/07/2022,SPELTHORNE CARE PD,The Peaches Healthcare Ltd,Home Base Care,"3,394.16",Dom Care - Adults,,
04/07/2022,SPELTHORNE CARE OP,The Peaches Healthcare Ltd,Home Base Care,728.84,Dom Care - Adults,,
04/07/2022,SPELTHORNE CARE OP,The Peaches Healthcare Ltd,Home Base Care,728.84,Dom Care - Adults,,
04/07/2022,LD-AUT CNTR TM CARE,The Whitemore Centre,Day Care,"1,224.00",Day Care - OP,,
04/07/2022,PLD TRANSITION,The Whitemore Centre,Day Care,"2,227.94",Day Care - OP,,
04/07/2022,LD-AUT CNTR TM CARE,The Whitemore Centre,Day Care,777.10,Day Care - OP,,
04/07/2022,LD-AUT CNTR TM CARE,The Whitemore Centre,Day Care,841.50,Day Care - OP,,
04/07/2022,LD-AUT CNTR TM CARE,The Whitemore Centre,Day Care,535.50,Day Care - OP,,
04/07/2022,REIGATE & BD CARE OP,Westvale Home Care Ltd,Home Base Care,"1,696.80",Non-Staff Expenses,,
04/07/2022,REIGATE & BD CARE OP,Westvale Home Care Ltd,Home Base Care,"1,696.80",Non-Staff Expenses,,
04/07/2022,TANDRIDGE CARE OP,Westvale Home Care Ltd,Home Base Care,455.80,Non-Staff Expenses,,
04/07/2022,TANDRIDGE CARE OP,Westvale Home Care Ltd,Home Base Care,455.80,Non-Staff Expenses,,
04/07/2022,TANDRIDGE CARE OP,Westvale Home Care Ltd,Home Base Care,455.80,Non-Staff Expenses,,
04/07/2022,TANDRIDGE CARE OP,Westvale Home Care Ltd,Home Base Care,455.80,Non-Staff Expenses,,
04/07/2022,REIGATE & BD CARE OP,Westvale Home Care Ltd,Home Base Care,"1,696.80",Non-Staff Expenses,,
04/07/2022,TANDRIDGE CARE OP,Westvale Home Care Ltd,Home Base Care,455.80,Non-Staff Expenses,,
04/07/2022,REIGATE & BD CARE OP,Westvale Home Care Ltd,Home Base Care,"1,696.80",Non-Staff Expenses,,
04/07/2022,REIGATE & BD CARE OP,Westvale Home Care Ltd,Home Base Care,"1,696.80",Non-Staff Expenses,,
04/07/2022,WAVERLEY CARE OP,Woodleigh Healthcare Ltd,Home Base Care,"1,988.00",Fostering IFA,,
04/07/2022,WAVERLEY CARE OP,Woodleigh Healthcare Ltd,Home Base Care,500.64,Fostering IFA,,
05/07/2022,SPELTHORNE CARE OP,Adelaide House Care Home,Nursing Respite,"1,530.00",Residential - OP,,
05/07/2022,NULL,Aecom Ltd,NULL,"31,556.40",M-D (Property),,
05/07/2022,LD-AUT CNTR TM CARE,Alabare Christian Care & Support,Supported Living,616.00,Supp Living - MH,,
05/07/2022,LD-AUT CNTR TM CARE,Alabare Christian Care & Support,Supported Living,"2,376.00",Supp Living - MH,,
05/07/2022,FEASIBILTY FUND -SCH,Albury SI Ltd,Fees,"6,582.00",Edu Establishments,,
05/07/2022,ELMBRIDGE CARE PD,Amazed Care Services,Home Base Care,765.60,Dom Care - Adults,,
05/07/2022,NULL,Ameresco  Ltd,NULL,"28,218.42",Env Consultancy,,
05/07/2022,LD-AUT CNTR TM CARE,Angel Cars Woking,Hire of Vehicles,720.00,Taxi Hire (SEN Only),,
05/07/2022,WOODHATCH,Aquajoy Water Gardens Ltd,Term Contract Inspections,597.00,Specialist Treatment,,
05/07/2022,SPELTHORNE CARE OP,Beechwood Court,Extra Care Housing,"1,038.93",Extra Care,,
05/07/2022,BARNFIELD,Bilfinger Europa Facility,Premises Insurance Property Works,"3,539.75",Edu Establishments,,
05/07/2022,NULL,Bilfinger Europa Facility,NULL,"26,933.21",Edu Establishments,,
05/07/2022,WRAY PARK COMPLEX,Bilfinger Europa Facility,Corporate Responsive Maintenance,893.06,Edu Establishments,,
05/07/2022,HEATHSIDE,Bilfinger Europa Facility,Corporate Responsive Maintenance,"1,215.13",Edu Establishments,,
05/07/2022,GUILDFORD FIRE STN,Bilfinger Europa Facility,Term Contract Inspections,264.60,Edu Establishments,,
05/07/2022,GUILDFORD AEI,Bilfinger Europa Facility,Term Contract Inspections,260.40,Edu Establishments,,
05/07/2022,ST NICOLAS CE(A) JUN,Bilfinger Europa Facility,Buyback Works Responsive,469.46,Edu Establishments,,
05/07/2022,GUILDFORD FIRE STN,Bilfinger Europa Facility,Corporate Responsive Maintenance,309.71,Edu Establishments,,
05/07/2022,Smallholdings Gen,Bilfinger Europa Facility,Corporate Responsive Maintenance,"1,269.55",Edu Establishments,,
05/07/2022,GOSDEN HOUSE SCH,Bilfinger Europa Facility,Buyback Works Responsive,722.52,Edu Establishments,,
05/07/2022,NULL,Bilfinger Europa Facility,NULL,268.42,Edu Establishments,,
05/07/2022,ST JAMES CEP SCH WEY,Bilfinger Europa Facility,Buyback Works Responsive,348.42,Edu Establishments,,
05/07/2022,NULL,Bilfinger Europa Facility,NULL,"5,748.00",Edu Establishments,,
05/07/2022,GODALMING SSC,Bilfinger Europa Facility,Corporate Responsive Maintenance,"2,723.74",Edu Establishments,,
05/07/2022,DORKING NURSERY SCH,Bilfinger Europa Facility,Buyback Works Responsive,"4,417.22",Edu Establishments,,
05/07/2022,HORLEY LIBRARY,Bilfinger Europa Facility,Corporate Responsive Maintenance,304.37,Edu Establishments,,
05/07/2022,WOODLANDS HOUSE,Bilfinger Europa Facility,Corporate Responsive Maintenance,905.32,Edu Establishments,,
05/07/2022,CHENNESTONE CP SCH,Bilfinger Europa Facility,Buyback Works Responsive,"1,440.94",Edu Establishments,,
05/07/2022,FMR HORLEY LIBRARY,Bilfinger Europa Facility,Corporate Responsive Maintenance,"2,047.98",Edu Establishments,,
05/07/2022,ONSLOW INF,Bilfinger Europa Facility,Buyback Works Term,"1,759.76",Edu Establishments,,
05/07/2022,WOKING FIRE STN NEW,Bilfinger Europa Facility,Corporate Responsive Maintenance,"1,652.68",Edu Establishments,,
05/07/2022,KINGSWOOD PRY SCH,Bilfinger Europa Facility,Buyback Works Responsive,705.84,Edu Establishments,,
05/07/2022,BURBANK - THE OAKS,Bilfinger Europa Facility,Corporate Responsive Maintenance,455.05,Edu Establishments,,
05/07/2022,HIGH ASHURST OEC,Bilfinger Europa Facility,Corporate Responsive Maintenance,364.69,Edu Establishments,,
05/07/2022,REIGATE LIB,Bilfinger Europa Facility,Term Contract Works,"1,777.87",Edu Establishments,,
05/07/2022,ABBEYWOOD,Bilfinger Europa Facility,Term Contract Inspections,331.80,Edu Establishments,,
05/07/2022,REIGATE FIRE STATION,Bilfinger Europa Facility,Term Contract Works,"2,052.00",Edu Establishments,,
05/07/2022,WORPLESDON PRY SCH,Bilfinger Europa Facility,Buyback Works Responsive,"3,063.40",Edu Establishments,,
05/07/2022,CHENNESTONE CP SCH,Bilfinger Europa Facility,Buyback Works Responsive,348.42,Edu Establishments,,
05/07/2022,HEATHSIDE,Bilfinger Europa Facility,Corporate Responsive Maintenance,261.74,Edu Establishments,,
05/07/2022,ST NICOLAS CE(A) JUN,Bilfinger Europa Facility,Buyback Works Responsive,869.53,Edu Establishments,,
05/07/2022,ST NICOLAS CE(A) JUN,Bilfinger Europa Facility,Buyback Works Responsive,401.24,Edu Establishments,,
05/07/2022,WOODHATCH,Bilfinger Europa Facility,Corporate Responsive Maintenance,"2,904.55",Edu Establishments,,
05/07/2022,THAMES YG MARINERS,Bilfinger Europa Facility,Corporate Responsive Maintenance,581.03,Edu Establishments,,
05/07/2022,PHILIP SOUTHCOTE SCH,Bilfinger Europa Facility,Buyback Works Responsive,565.94,Edu Establishments,,
05/07/2022,THE MANSION L'HEAD,Bilfinger Europa Facility,Corporate Responsive Maintenance,262.86,Edu Establishments,,
05/07/2022,BIRCHLANDS,Bilfinger Europa Facility,Term Contract Inspections,365.40,Edu Establishments,,
05/07/2022,ASH MANOR SCHOOL,Bilfinger Europa Facility,Buyback Inspections,571.20,Edu Establishments,,
05/07/2022,NE UASC NRPF 18+ CRE,Redacted Personnel Data,Furniture,"1,737.71",Invoicing Plan Req.,,
05/07/2022,WOKING CARE OP,Brockhill,Extra Care Housing,"1,695.68",Residential - OP,,
05/07/2022,WOKING CARE OP,Brockhill,Extra Care Housing,"2,254.88",Residential - OP,,
05/07/2022,WOKING CARE OP,Brockhill,Extra Care Housing,"1,174.04",Residential - OP,,
05/07/2022,WOKING CARE OP,Brockhill,Extra Care Housing,"2,357.40",Residential - OP,,
05/07/2022,WOKING CARE OP,Brockhill,Extra Care Housing,410.08,Residential - OP,,
05/07/2022,WOKING CARE OP,Brockhill,Extra Care Housing,"1,425.49",Residential - OP,,
05/07/2022,WOKING CARE OP,Brockhill,Extra Care Housing,251.64,Residential - OP,,
05/07/2022,WOKING CARE OP,Brockhill,Extra Care Housing,876.08,Residential - OP,,
05/07/2022,WOKING CARE PD,Brockhill,Extra Care Housing,652.12,Residential - OP,,
05/07/2022,WOKING CARE OP,Brockhill,Extra Care Housing,815.31,Residential - OP,,
05/07/2022,WOKING CARE OP,Brockhill,Extra Care Housing,335.48,Residential - OP,,
05/07/2022,29D OMEGA MR LN WSTF,Castle Water Ltd,Water Charges,895.02,Utilities - Water,,
05/07/2022,LD-AUT CNTR TM CARE,Caterham Domiciliary Care Agency,Supported Living,"2,251.56",Dom Care - Adults,,
05/07/2022,TANDRIDGE CMHRS CARE,Caterham Domiciliary Care Agency,Supported Living,"3,617.50",Dom Care - Adults,,
05/07/2022,HYBRID MAIL,CFH Total Document Management Ltd,Printing,508.79,Printing & Repro,,
05/07/2022,HR - ADULT SOCIAL CA,CHD Living,Third Party Payments-Other Agencies,"2,091.32",Residential - LD,,
05/07/2022,NULL,Colours Decorating Ltd,NULL,"60,099.38","Comm, Res & Inv Prop",,
05/07/2022,ELMBRIDGE CMHRS CARE,County Care Independent Living Ltd,Home Base Care,708.27,Dom Care - Adults,,
05/07/2022,LD-AUT CNTR TM CARE,Dayspace,Day Care,403.80,Day Care - PSD,,
05/07/2022,LD-AUT CNTR TM CARE,Dayspace,Day Care,283.52,Day Care - PSD,,
05/07/2022,WAVERLEY CARE OP,DBAM Solutions Ltd,Home Base Care,964.60,Other Care,,
05/07/2022,WAVERLEY CARE OP,DBAM Solutions Ltd,Home Base Care,"1,089.70",Other Care,,
05/07/2022,GUILDFORD CARE PD,DBAM Solutions Ltd,Home Base Care,603.40,Other Care,,
05/07/2022,WAVERLEY CARE OP,DBAM Solutions Ltd,Home Base Care,"1,490.30",Other Care,,
05/07/2022,WAVERLEY CARE OP,DBAM Solutions Ltd,Home Base Care,"1,951.60",Other Care,,
05/07/2022,WAVERLEY CARE OP,DBAM Solutions Ltd,Home Base Care,"1,407.00",Other Care,,
05/07/2022,WAVERLEY CARE OP,DBAM Solutions Ltd,Home Base Care,564.90,Other Care,,
05/07/2022,GUILDFORD CARE OP,DBAM Solutions Ltd,Home Base Care,821.80,Other Care,,
05/07/2022,GUILDFORD CARE PD,DBAM Solutions Ltd,Home Base Care,534.80,Other Care,,
05/07/2022,WAVERLEY CARE OP,DBAM Solutions Ltd,Home Base Care,"1,391.60",Other Care,,
05/07/2022,WAVERLEY CARE OP,DBAM Solutions Ltd,Home Base Care,695.80,Other Care,,
05/07/2022,WAVERLEY CARE OP,DBAM Solutions Ltd,Home Base Care,"1,822.80",Other Care,,
05/07/2022,WAVERLEY CARE OP,DBAM Solutions Ltd,Home Base Care,390.60,Other Care,,
05/07/2022,WAVERLEY CARE OP,DBAM Solutions Ltd,Home Base Care,429.10,Other Care,,
05/07/2022,WAVERLEY CARE OP,DBAM Solutions Ltd,Home Base Care,"1,604.80",Other Care,,
05/07/2022,WAVERLEY CARE PD,DBAM Solutions Ltd,Home Base Care,735.00,Other Care,,
05/07/2022,WAVERLEY CARE OP,DBAM Solutions Ltd,Home Base Care,670.60,Other Care,,
05/07/2022,LD-AUT CNTR TM CARE,Diana Francis House,Supported Living,550.08,Grants - Community,,
05/07/2022,NULL,E W Beard Ltd,NULL,"455,563.90",General Build Maint,,
05/07/2022,LD-AUT CNTR TM CARE,Enham Trust,Supported Living,"1,723.75",Residential - MH,,
05/07/2022,HR - ADULT SOCIAL CA,Everycare (Central Surrey) Ltd,Third Party Payments-Other Agencies,"2,000.00",Nurseries,,
05/07/2022,MH COUNTRYWIDE CARER,Field Lane Foundation,Other Community Care,647.20,Supp Living - MH,,
05/07/2022,LD-AUT CNTR TM CARE,Field Lane Foundation,Other Community Care,873.24,Supp Living - MH,,
05/07/2022,LD-AUT CNTR TM CARE,Field Lane Foundation,Other Community Care,750.68,Supp Living - MH,,
05/07/2022,MOLE VALLEY CARE PD,Geneva Road Ltd,Day Care,344.83,Day Care - PSD,,
05/07/2022,EPSOM & EWELL CARE P,Geneva Road Ltd,Day Care,816.44,Day Care - PSD,,
05/07/2022,NULL,Geometric Results International,NULL,"25,797.94",Soc Care OM Cover,,
05/07/2022,ARBORICULTURE,Glendale Countryside Ltd,Upkeep of Grounds,459.38,Green Works,,
05/07/2022,ARBORICULTURE,Glendale Countryside Ltd,Treework,"3,908.70",Green Works,,
05/07/2022,ARBORICULTURE,Glendale Countryside Ltd,Treework,840.20,Green Works,,
05/07/2022,ARBORICULTURE,Glendale Countryside Ltd,Treework,888.29,Green Works,,
05/07/2022,LD-AUT CNTR TM CARE,Goodluck Care Ltd,Home Base Care,"4,392.96",Dom Care - Adults,,
05/07/2022,BUSINESS IMPROVEMNTS,Harrow Green Ltd,Removal Expenses,"6,509.47",Premise Removal Serv,,
05/07/2022,PROPERTY MOVES,Harrow Green Ltd,Removal Expenses,"2,776.33",Premise Removal Serv,,
05/07/2022,RUNNYMEDE CARE OP,Hartwig Care Ltd,Home Base Care,291.00,Sup Living Children,,
05/07/2022,RUNNYMEDE CARE OP,Hartwig Care Ltd,Home Base Care,446.32,Sup Living Children,,
05/07/2022,RUNNYMEDE CARE OP,Hartwig Care Ltd,Home Base Care,"1,144.08",Sup Living Children,,
05/07/2022,ELMBRIDGE CARE PD,Hartwig Care Ltd,Home Base Care,"1,169.42",Sup Living Children,,
05/07/2022,RUNNYMEDE CARE OP,Hartwig Care Ltd,Home Base Care,"1,562.61",Sup Living Children,,
05/07/2022,ELMBRIDGE CARE PD,Hartwig Care Ltd,Home Base Care,260.68,Sup Living Children,,
05/07/2022,RUNNYMEDE CARE PD,Hartwig Care Ltd,Home Base Care,694.28,Sup Living Children,,
05/07/2022,RUNNYMEDE CARE OP,Hartwig Care Ltd,Home Base Care,563.56,Sup Living Children,,
05/07/2022,ELMBRIDGE CARE OP,Hartwig Care Ltd,Home Base Care,879.34,Sup Living Children,,
05/07/2022,RUNNYMEDE CARE PD,Hartwig Care Ltd,Home Base Care,820.68,Sup Living Children,,
05/07/2022,RUNNYMEDE CARE OP,Hartwig Care Ltd,Home Base Care,428.96,Sup Living Children,,
05/07/2022,LD-AUT CNTR TM CARE,Hartwig Care Ltd,Home Base Care,"1,107.68",Sup Living Children,,
05/07/2022,ELMBRIDGE CARE OP,Hartwig Care Ltd,Home Base Care,434.28,Sup Living Children,,
05/07/2022,SPELTHORNE CARE PD,Hartwig Care Ltd,Home Base Care,447.12,Sup Living Children,,
05/07/2022,ELMBRIDGE CARE OP,Hartwig Care Ltd,Home Base Care,"1,806.62",Sup Living Children,,
05/07/2022,ELMBRIDGE CARE OP,Hartwig Care Ltd,Home Base Care,437.36,Sup Living Children,,
05/07/2022,BRAMBLEDWN PARK GRT,Hawkins Services Ltd,Corporate Responsive Maintenance,"2,490.48",Individual - NEC,,
05/07/2022,FRIMLEY GREEN YC,Hawkins Services Ltd,Corporate Responsive Maintenance,456.00,Individual - NEC,,
05/07/2022,ASH YOUTH CENTRE,Hawkins Services Ltd,Corporate Responsive Maintenance,420.00,Individual - NEC,,
05/07/2022,UNIT 4 LEATHERHEAD,Hunter Communication Services South,Security Alarm Maintenance,"2,064.00",Access Control Serv,,
05/07/2022,WALTON-ON-T LIB(NEW),Hunter Communication Services South,Security Alarm Maintenance,"1,896.00",Access Control Serv,,
05/07/2022,ESHER LOCAL OFFICE,Hunter Communication Services South,Security Alarm Maintenance,"1,896.00",Access Control Serv,,
05/07/2022,PLD TRANSITION,Independence Homes Ltd,Supported Living,"3,920.00",Residential - MH,,
05/07/2022,PLD TRANSITION,Independence Homes Ltd,Supported Living,"6,156.00",Residential - MH,,
05/07/2022,PLD TRANSITION,Independence Homes Ltd,Supported Living,"5,600.00",Residential - MH,,
05/07/2022,WOKING CMHRS CARE,Islad Ltd,Supported Living,"2,508.00",Extra Care,,
05/07/2022,WOKING CMHRS CARE,Islad Ltd,Supported Living,"2,574.00",Extra Care,,
05/07/2022,DOLS,Redacted Personnel Data ,New GR/IR Account,256.30,Non-Staff Expenses,,
05/07/2022,DOLS,Redacted Personnel Data ,New GR/IR Account,255.85,Non-Staff Expenses,,
05/07/2022,DOLS,Redacted Personnel Data ,New GR/IR Account,268.45,Non-Staff Expenses,,
05/07/2022,DOLS,Redacted Personnel Data ,New GR/IR Account,253.42,Non-Staff Expenses,,
05/07/2022,WAVERLEY CARE OP,Jaysh Care Services,Home Base Care,"1,736.00",Dom Care - Adults,,
05/07/2022,WAVERLEY CARE OP,Jaysh Care Services,Home Base Care,"1,736.00",Dom Care - Adults,,
05/07/2022,WAVERLEY CARE OP,Jaysh Care Services,Home Base Care,"1,638.72",Dom Care - Adults,,
05/07/2022,WAVERLEY CARE OP,Jaysh Care Services,Home Base Care,"1,736.00",Dom Care - Adults,,
05/07/2022,WAVERLEY CARE OP,Jaysh Care Services,Home Base Care,"1,736.00",Dom Care - Adults,,
05/07/2022,WAVERLEY CARE OP,Jaysh Care Services,Home Base Care,"1,736.00",Dom Care - Adults,,
05/07/2022,WAVERLEY CARE OP,Jaysh Care Services,Home Base Care,"1,736.00",Dom Care - Adults,,
05/07/2022,PLD TRANSITION,Jigsaw +,Day Care,"3,658.46",Day Care - PSD,,
05/07/2022,PLD TRANSITION,Jigsaw +,Day Care,"4,921.92",Day Care - PSD,,
05/07/2022,PLD TRANSITION,Jigsaw +,Day Care,"2,667.13",Day Care - PSD,,
05/07/2022,PLD TRANSITION,Jigsaw +,Day Care,"3,383.43",Day Care - PSD,,
05/07/2022,PLD TRANSITION,Jigsaw +,Day Care,"3,383.56",Day Care - PSD,,
05/07/2022,PLD TRANSITION,Jigsaw +,Day Care,"3,383.56",Day Care - PSD,,
05/07/2022,PLD TRANSITION,Jigsaw +,Day Care,"2,484.87",Day Care - PSD,,
05/07/2022,PLD TRANSITION,Jigsaw +,Day Care,"3,437.21",Day Care - PSD,,
05/07/2022,PLD TRANSITION,Jigsaw +,Day Care,"4,921.92",Day Care - PSD,,
05/07/2022,DR DATA CTR UNIT 10,Keysource Ltd,Corporate Responsive Maintenance,"1,693.50",Residential - OP,,
05/07/2022,PRIMARY DATA CENTRE,Keysource Ltd,Corporate Responsive Maintenance,"1,981.50",Residential - OP,,
05/07/2022,DR DATA CTR UNIT 10,Keysource Ltd,Corporate Responsive Maintenance,"1,754.21",Residential - OP,,
05/07/2022,GUM,Leeds City Council,Public Health Contract Payments,758.00,Local Government,,
05/07/2022,GUM,Lewisham & Greenwich NHS Trust,Public Health Contract Payments,398.84,Sexual Health,,
05/07/2022,LD-AUT CNTR TM CARE,Linden House,Day Care,412.61,Day Care - PSD,,
05/07/2022,WAVERLEY CMHRS CARE,London Care Ltd,Home Base Care,300.96,Residential - PSD,,
05/07/2022,GUM,London North West University Health,Public Health Contract Payments,959.00,Sexual Health,,
05/07/2022,CORONER,Medilink Consulting,Inquest Exps.,347.55,Coroners Services,,
05/07/2022,CORONER,Medilink Consulting,Inquest Exps.,347.56,Coroners Services,,
05/07/2022,CORONER,Medilink Consulting,Inquest Exps.,347.55,Coroners Services,,
05/07/2022,CORONER,Medilink Consulting,Inquest Exps.,347.56,Coroners Services,,
05/07/2022,NE ALT PROV TRANS,Redacted Personnel Data ,Hire of Vehicles,"2,530.00",Invoicing Plan Req.,,
05/07/2022,LD-AUT CNTR TM CARE,Mental Aid Projects,Day Care,519.50,Day Care - PSD,,
05/07/2022,LD-AUT CNTR TM CARE,Mid Surey Mencap,Day Care,563.85,Residential - OP,,
05/07/2022,LD-AUT CNTR TM CARE,Mid Surey Mencap,Day Care,563.85,Residential - OP,,
05/07/2022,LD-AUT CNTR TM CARE,Mid Surey Mencap,Day Care,724.95,Residential - OP,,
05/07/2022,LD-AUT CNTR TM CARE,Mid Surey Mencap,Day Care,483.30,Residential - OP,,
05/07/2022,LD-AUT CNTR TM CARE,Mid Surey Mencap,Day Care,"1,864.80",Residential - OP,,
05/07/2022,LD-AUT CNTR TM CARE,Mid Surey Mencap,Day Care,644.40,Residential - OP,,
05/07/2022,NULL,Morgan Sindall Construction &,NULL,"5,529.23",Edu Establishments,,
05/07/2022,LD-AUT CNTR TM CARE,National Autistic Society Services,Day Care,"2,323.52",Residential - MH,,
05/07/2022,LD-AUT CNTR TM CARE,National Autistic Society Services,Day Care,606.40,Residential - MH,,
05/07/2022,LD-AUT CNTR TM CARE,National Autistic Society Services,Day Care,"2,293.80",Residential - MH,,
05/07/2022,LD-AUT CNTR TM CARE,Normandy Community Therapy Garden,Day Care,283.56,Grants-Member Allocs,,
05/07/2022,LD-AUT CNTR TM CARE,Oaktree Farm Care Centre Ltd,Day Care,594.24,Day Care - LD,,
05/07/2022,HR - ADULT SOCIAL CA,Pantiles Residential Care Home,Third Party Payments-Other Agencies,810.00,Residential - OP,,
05/07/2022,CORONER,Redacted personnel data,Inquest Exps.,350.00,Individual - NEC,,
05/07/2022,LANDLORD ACCOUNT,Records Management Girl Ltd,Records-Storage/Reproduction/Destruction/Photocopy,900.00,Residential - OP,,
05/07/2022,SEN TRANSPORT,Redacted Personal Data,Non-Staff Related Transport Costs,270.00,Childrens Indiv Tran,,
05/07/2022,SE CARE - LAC,Redacted Personal Data,Children Act Sec 24 Payments,300.00,Invoicing Plan Req.,,
05/07/2022,CWD CONTRACTS/SLA'S,Redacted Personal Data,Direct Payments - Carers of Disabled Children,300.00,Invoicing Plan Req.,,
05/07/2022,CORONER,Redacted Personal Data,Inquest Exps.,250.00,Non-Staff Expenses,,
05/07/2022,SE ALT SEN POST 16,Redacted Personal Data,Agency Placement Expenditure,490.00,Invoicing Plan Req.,,
05/07/2022,CORONER,Redacted Personal Data,Inquest Exps.,250.00,Non-Staff Expenses,,
05/07/2022,PERSONAL BUDGET (SW),Redacted Personal Data,Agency Placement Expenditure,"2,100.00",Invoicing Plan Req.,,
05/07/2022,CORONER,Redacted Personal Data,Inquest Exps.,250.00,Non-Staff Expenses,,
05/07/2022,CORONER,Redacted Personal Data,Inquest Exps.,250.00,Non-Staff Expenses,,
05/07/2022,NE CARE - CPCRT LAC,Redacted Personal Data,Foster Care Placements,"1,170.36",Invoicing Plan Req.,,
05/07/2022,NE FOSTERING CARE,Redacted Personal Data,Payments to F&F Foster Carers,"1,057.78",CYP Indiv Foster Car,,
05/07/2022,NE FOSTERING CARE,Redacted Personal Data,Children Act Sec 24 Payments,430.76,CYP Indiv Foster Car,,
05/07/2022,CWD CONTRACTS/SLA'S,Redacted Personal Data,Direct Payments - Carers of Disabled Children,300.00,Invoicing Plan Req.,,
05/07/2022,CORONER,Redacted Personal Data,Inquest Exps.,250.00,Non-Staff Expenses,,
05/07/2022,SEN TRANSPORT,Redacted Personal Data,Non-Staff Related Transport Costs,270.00,Childrens Indiv Tran,,
05/07/2022,CWD CONTRACTS/SLA'S,Redacted Personal Data,Direct Payments - Carers of Disabled Children,300.00,Invoicing Plan Req.,,
05/07/2022,CORONER,Redacted Personal Data,Inquest Exps.,250.00,Non-Staff Expenses,,
05/07/2022,CORONER,Redacted Personal Data,Inquest Exps.,250.00,Non-Staff Expenses,,
05/07/2022,CORONER,Redacted Personal Data,Inquest Exps.,250.00,Non-Staff Expenses,,
05/07/2022,SEN TRANSPORT,Redacted Personal Data,Non-Staff Related Transport Costs,270.00,Childrens Indiv Tran,,
05/07/2022,CORONER,Redacted Personal Data,Inquest Exps.,250.00,Non-Staff Expenses,,
05/07/2022,CORONER,Redacted Personal Data,Inquest Exps.,250.00,Non-Staff Expenses,,
05/07/2022,CORONER,Redacted Personal Data,Inquest Exps.,250.00,Non-Staff Expenses,,
05/07/2022,CORONER,Redacted Personal Data,Inquest Exps.,250.00,Non-Staff Expenses,,
05/07/2022,NE UASC NRPF 18+ CRE,Redacted Personal Data,Third Party Payments-Other Agencies,429.32,Invoicing Plan Req.,,
05/07/2022,CORONER,Redacted Personal Data,Inquest Exps.,250.00,Non-Staff Expenses,,
05/07/2022,SE CWD NON-LAC CARE,Redacted Personal Data,Direct Payments - Carers of Disabled Children,"2,624.80",Adult direct payment,,
05/07/2022,SE CWD NON-LAC CARE,Redacted Personal Data,Direct Payments - Carers of Disabled Children,"3,586.80",Adult direct payment,,
05/07/2022,SEN TRANSPORT,Redacted Personal Data,Non-Staff Related Transport Costs,270.00,Childrens Indiv Tran,,
05/07/2022,CWD CONTRACTS/SLA'S,Redacted Personal Data,Direct Payments - Carers of Disabled Children,300.00,Invoicing Plan Req.,,
05/07/2022,SEN TRANSPORT,Redacted Personal Data,Non-Staff Related Transport Costs,270.00,Childrens Indiv Tran,,
05/07/2022,SW CARE - CARE LVRS,Redacted Personal Data,Children Act Sec 24 Payments,"1,772.12",Invoicing Plan Req.,,
05/07/2022,CWD CONTRACTS/SLA'S,Redacted Personal Data,Direct Payments - Carers of Disabled Children,300.00,Invoicing Plan Req.,,
05/07/2022,CORONER,Redacted Personal Data,Inquest Exps.,250.00,Non-Staff Expenses,,
05/07/2022,SEN TRANSPORT,Redacted Personal Data,Non-Staff Related Transport Costs,270.00,Childrens Indiv Tran,,
05/07/2022,SEN TRANSPORT,Redacted Personal Data,Non-Staff Related Transport Costs,270.00,Childrens Indiv Tran,,
05/07/2022,SEN TRANSPORT,Redacted Personal Data,Non-Staff Related Transport Costs,270.00,Childrens Indiv Tran,,
05/07/2022,SE CWD NON-LAC CARE,Redacted Personal Data,Direct Payments - Carers of Disabled Children,300.00,Adult direct payment,,
05/07/2022,CWD CONTRACTS/SLA'S,Redacted Personal Data,Direct Payments - Carers of Disabled Children,300.00,Invoicing Plan Req.,,
05/07/2022,NULL,Redacted Personal Data,NULL,325.12,Individual - NEC,,
05/07/2022,NE CARE - CARE LVRS,Redacted Personal Data,Furniture,500.00,Adult direct payment,,
05/07/2022,SEN TRANSPORT,Redacted Personal Data,Non-Staff Related Transport Costs,270.00,Childrens Indiv Tran,,
05/07/2022,SE CARE - LAC,Redacted Personal Data,Children Act Sec 24 Payments,300.00,Invoicing Plan Req.,,
05/07/2022,CORONER,Redacted Personal Data,Inquest Exps.,250.00,Non-Staff Expenses,,
05/07/2022,SEN TRANSPORT,Redacted Personal Data,Non-Staff Related Transport Costs,270.00,Childrens Indiv Tran,,
05/07/2022,CWD CONTRACTS/SLA'S,Redacted Personal Data,Direct Payments - Carers of Disabled Children,300.00,Invoicing Plan Req.,,
05/07/2022,NW S17 CARE,Redacted Personal Data,Children Act Sec 24 Payments,450.00,Invoicing Plan Req.,,
05/07/2022,CORONER,Redacted Personal Data,Inquest Exps.,250.00,Non-Staff Expenses,,
05/07/2022,CORONER,Redacted Personal Data,Inquest Exps.,250.00,Non-Staff Expenses,,
05/07/2022,CORONER,Redacted Personal Data,Inquest Exps.,250.00,Non-Staff Expenses,,
05/07/2022,CORONER,Redacted Personal Data,Inquest Exps.,250.00,Non-Staff Expenses,,
05/07/2022,WOKING CARE OP,Rosetrees,Respite Residential,"1,517.25",Residential - OP,,
05/07/2022,SPELTHORNE CARE PD,Royal Association For Deaf People,Other Community Care,528.00,Advocacy,,
05/07/2022,SPELTHORNE CARE PD,Royal Association For Deaf People,Other Community Care,393.02,Advocacy,,
05/07/2022,NE UASC NRPF 18+ CRE,Redacted Personal Data,Furniture,"1,200.00",Asylum,,
05/07/2022,LD-AUT CNTR TM CARE,Sans Soucie Home Care Ltd,Home Base Care,697.32,Day Services,,
05/07/2022,LD-AUT CNTR TM CARE,Sans Soucie Home Care Ltd,Home Base Care,348.66,Day Services,,
05/07/2022,LD-AUT CNTR TM CARE,Sans Soucie Home Care Ltd,Home Base Care,357.60,Day Services,,
05/07/2022,LD-AUT CNTR TM CARE,Sans Soucie Home Care Ltd,Home Base Care,"1,788.00",Day Services,,
05/07/2022,LD-AUT CNTR TM CARE,Sans Soucie Home Care Ltd,Home Base Care,536.40,Day Services,,
05/07/2022,NULL,SCC St Joseph's Catholic Primary Sc,NULL,495.00,Schools,,
05/07/2022,NULL,SCC St Joseph's Catholic Primary Sc,NULL,"3,048.20",Schools,,
05/07/2022,GREENLANDS GRT,Sicuro UK Ltd,Security Alarm Maintenance,465.70,Surveys - Ecological,,
05/07/2022,LD-AUT CNTR TM CARE,Spelthorne Borough Council,Day Care,280.00,Local Government,,
05/07/2022,SPELTHORNE CARE OP,Spelthorne Borough Council,Day Care,480.00,Local Government,,
05/07/2022,SPELTHORNE CARE OP,Spelthorne Borough Council,Day Care,280.00,Local Government,,
05/07/2022,SPELTHORNE CARE OP,Spelthorne Borough Council,Day Care,360.00,Local Government,,
05/07/2022,LD-AUT CNTR TM CARE,Spelthorne Borough Council,Day Care,320.00,Local Government,,
05/07/2022,SPELTHORNE CARE OP,Spelthorne Borough Council,Day Care,280.00,Local Government,,
05/07/2022,SPELTHORNE CARE OP,Spelthorne Borough Council,Day Care,320.00,Local Government,,
05/07/2022,SPELTHORNE CARE OP,Spelthorne Borough Council,Day Care,320.00,Local Government,,
05/07/2022,SPELTHORNE CARE OP,Spelthorne Borough Council,Day Care,360.00,Local Government,,
05/07/2022,SPELTHORNE CARE OP,Spelthorne Borough Council,Day Care,400.00,Local Government,,
05/07/2022,SPELTHORNE CARE OP,Spelthorne Borough Council,Day Care,760.00,Local Government,,
05/07/2022,SPELTHORNE CARE OP,Spelthorne Borough Council,Day Care,360.00,Local Government,,
05/07/2022,SPELTHORNE CARE OP,Spelthorne Borough Council,Day Care,600.00,Local Government,,
05/07/2022,SPELTHORNE CARE OP,Spelthorne Borough Council,Day Care,560.00,Local Government,,
05/07/2022,SPELTHORNE CARE OP,Spelthorne Borough Council,Day Care,400.00,Local Government,,
05/07/2022,REIGATE & BD CARE OP,Supreme Care Services Ltd,Home Base Care,505.56,Dom Care - Adults,,
05/07/2022,REIGATE & BD CARE OP,Supreme Care Services Ltd,Home Base Care,708.00,Dom Care - Adults,,
05/07/2022,SPELTHORNE CARE OP,Supreme Care Services Ltd,Home Base Care,"1,361.08",Dom Care - Adults,,
05/07/2022,SPELTHORNE CARE OP,Supreme Care Services Ltd,Home Base Care,680.54,Dom Care - Adults,,
05/07/2022,TANDRIDGE CARE OP,Supreme Care Services Ltd,Home Base Care,328.44,Dom Care - Adults,,
05/07/2022,MOLE VALLEY CARE OP,Supreme Care Services Ltd,Home Base Care,330.40,Dom Care - Adults,,
05/07/2022,WOKING CARE OP,Supreme Care Services Ltd,Home Base Care,858.81,Dom Care - Adults,,
05/07/2022,RUNNYMEDE CARE OP,Supreme Care Services Ltd,Home Base Care,353.64,Dom Care - Adults,,
05/07/2022,SPELTHORNE CARE OP,Supreme Care Services Ltd,Home Base Care,"1,079.96",Dom Care - Adults,,
05/07/2022,SPELTHORNE CARE OP,Supreme Care Services Ltd,Home Base Care,"1,361.08",Dom Care - Adults,,
05/07/2022,RUNNYMEDE CARE OP,Supreme Care Services Ltd,Home Base Care,707.28,Dom Care - Adults,,
05/07/2022,SPELTHORNE CARE OP,Supreme Care Services Ltd,Home Base Care,492.66,Dom Care - Adults,,
05/07/2022,MOLE VALLEY CARE OP,Supreme Care Services Ltd,Home Base Care,680.54,Dom Care - Adults,,
05/07/2022,TANDRIDGE CARE OP,Supreme Care Services Ltd,Home Base Care,"1,032.64",Dom Care - Adults,,
05/07/2022,MOLE VALLEY CARE OP,Supreme Care Services Ltd,Home Base Care,828.26,Dom Care - Adults,,
05/07/2022,SPELTHORNE CARE OP,Supreme Care Services Ltd,Home Base Care,747.66,Dom Care - Adults,,
05/07/2022,ELMBRIDGE CARE OP,Supreme Care Services Ltd,Home Base Care,565.32,Dom Care - Adults,,
05/07/2022,TANDRIDGE CARE PD,Supreme Care Services Ltd,Home Base Care,"1,005.52",Dom Care - Adults,,
05/07/2022,WOKING CARE OP,Supreme Care Services Ltd,Home Base Care,328.44,Dom Care - Adults,,
05/07/2022,WOKING CARE OP,Supreme Care Services Ltd,Home Base Care,"1,123.22",Dom Care - Adults,,
05/07/2022,MOLE VALLEY CARE OP,Supreme Care Services Ltd,Home Base Care,330.40,Dom Care - Adults,,
05/07/2022,SPELTHORNE CARE OP,Supreme Care Services Ltd,Home Base Care,330.40,Dom Care - Adults,,
05/07/2022,MOLE VALLEY CARE OP,Supreme Care Services Ltd,Home Base Care,363.90,Dom Care - Adults,,
05/07/2022,REIGATE & BD CARE OP,Supreme Care Services Ltd,Home Base Care,"1,488.72",Dom Care - Adults,,
05/07/2022,SPELTHORNE CARE PD,Supreme Care Services Ltd,Home Base Care,365.58,Dom Care - Adults,,
05/07/2022,TANDRIDGE CARE OP,Supreme Care Services Ltd,Home Base Care,751.04,Dom Care - Adults,,
05/07/2022,TANDRIDGE CARE OP,Supreme Care Services Ltd,Home Base Care,"1,079.96",Dom Care - Adults,,
05/07/2022,MOLE VALLEY CARE PD,Supreme Care Services Ltd,Home Base Care,704.20,Dom Care - Adults,,
05/07/2022,TANDRIDGE CARE PD,Supreme Care Services Ltd,Home Base Care,290.15,Dom Care - Adults,,
05/07/2022,RUNNYMEDE CARE OP,Supreme Care Services Ltd,Home Base Care,"1,361.08",Dom Care - Adults,,
05/07/2022,RUNNYMEDE CARE OP,Supreme Care Services Ltd,Home Base Care,330.40,Dom Care - Adults,,
05/07/2022,SPELTHORNE CARE PD,Supreme Care Services Ltd,Home Base Care,305.20,Dom Care - Adults,,
05/07/2022,SPELTHORNE CARE PD,Supreme Care Services Ltd,Home Base Care,707.28,Dom Care - Adults,,
05/07/2022,MOLE VALLEY CARE OP,Supreme Care Services Ltd,Home Base Care,516.32,Dom Care - Adults,,
05/07/2022,LD-AUT CNTR TM CARE,Swan School Services Ltd,Hire of Vehicles,"2,352.00",Multi-purpose Veh,,
05/07/2022,LD-AUT CNTR TM CARE,Swan School Services Ltd,Hire of Vehicles,640.42,Multi-purpose Veh,,
05/07/2022,LD-AUT CNTR TM CARE,Swan School Services Ltd,Day Care Cases,588.00,Multi-purpose Veh,,
05/07/2022,LD-AUT CNTR TM CARE,Swan School Services Ltd,Hire of Vehicles,336.00,Multi-purpose Veh,,
05/07/2022,PLD TRANSITION,Swan School Services Ltd,Hire of Vehicles,271.20,Multi-purpose Veh,,
05/07/2022,PLD TRANSITION,Swan School Services Ltd,Coach Escorts Contracted,680.00,Multi-purpose Veh,,
05/07/2022,LD-AUT CNTR TM CARE,Swan School Services Ltd,Hire of Vehicles,"1,632.00",Multi-purpose Veh,,
05/07/2022,LD-AUT CNTR TM CARE,Swan School Services Ltd,Coach Escorts Contracted,340.00,Multi-purpose Veh,,
05/07/2022,LD-AUT CNTR TM CARE,Swan School Services Ltd,Hire of Vehicles,710.40,Multi-purpose Veh,,
05/07/2022,PLD TRANSITION,Swan School Services Ltd,Hire of Vehicles,"1,844.78",Multi-purpose Veh,,
05/07/2022,PINEHURST,Tetra Tech Environment Planning,Corporate Responsive Maintenance,721.19,Env Consultancy,,
05/07/2022,LD-AUT CNTR TM CARE,The Club House Project Ltd,Day Care,"1,817.64",Residential - LD,,
05/07/2022,LD-AUT CNTR TM CARE,The Grange Centre,Day Care,999.24,PR & Image,,
05/07/2022,LD-AUT CNTR TM CARE,The Grange Centre,Day Care,961.16,PR & Image,,
05/07/2022,LD-AUT CNTR TM CARE,The Grange Centre,Day Care,666.16,PR & Image,,
05/07/2022,LD-AUT CNTR TM CARE,The Grange Centre,Day Care,832.72,PR & Image,,
05/07/2022,LD-AUT CNTR TM CARE,The Grange Centre,Day Care,"1,294.24",PR & Image,,
05/07/2022,LD-AUT CNTR TM CARE,The Grange Centre,Day Care,999.24,PR & Image,,
05/07/2022,MOLE VALLEY CARE PD,The Grange Centre,Day Care,333.08,PR & Image,,
05/07/2022,WAVERLEY CARE PD,The Grange Centre,Day Care,"1,332.32",PR & Image,,
05/07/2022,LD-AUT CNTR TM CARE,The Grange Centre,Day Care,975.28,PR & Image,,
05/07/2022,LD-AUT CNTR TM CARE,The Grange Centre,Day Care,666.16,PR & Image,,
05/07/2022,LD-AUT CNTR TM CARE,The Grange Centre,Day Care,794.60,PR & Image,,
05/07/2022,LD-AUT CNTR TM CARE,The Grange Centre,Day Care,"1,165.80",PR & Image,,
05/07/2022,LD-AUT CNTR TM CARE,The Grange Centre,Day Care,999.24,PR & Image,,
05/07/2022,LD-AUT CNTR TM CARE,The Grange Centre,Day Care,666.16,PR & Image,,
05/07/2022,LD-AUT CNTR TM CARE,The Grange Centre,Day Care,666.16,PR & Image,,
05/07/2022,LD-AUT CNTR TM CARE,The Laurels,Supported Living,"10,600.80",Residential - OP,,
05/07/2022,LD-AUT CNTR TM CARE,The Laurels,Supported Living,"10,600.80",Residential - OP,,
05/07/2022,ACTIVE SURREY,The Matthew Arnold School,Grants-Public Bodies and Statutory Partnerships,335.00,Schools,,
05/07/2022,LD-AUT CNTR TM CARE,The Meath,Supported Living,"3,500.00",Residential - MH,,
05/07/2022,LD-AUT CNTR TM CARE,The Meath,Supported Living,"3,640.00",Residential - MH,,
05/07/2022,LD-AUT CNTR TM CARE,The Meath,Supported Living,"3,500.00",Residential - MH,,
05/07/2022,LD-AUT CNTR TM CARE,The Meath,Supported Living,"3,102.00",Residential - MH,,
05/07/2022,RUNNYMEDE CARE OP,The Orchard Dementia Centre,Day Care,445.44,Dom Care - Adults,,
05/07/2022,RUNNYMEDE CARE OP,The Orchard Dementia Centre,Day Care,445.44,Dom Care - Adults,,
05/07/2022,RUNNYMEDE CARE OP,The Orchard Dementia Centre,Day Care,334.08,Dom Care - Adults,,
05/07/2022,LD-AUT CNTR TM CARE,THF Care Estates Ltd,Day Care,927.95,Residential - MH,,
05/07/2022,WRAY PARK COMPLEX,Thomas Door & Window Controls,Corporate Responsive Maintenance,266.42,General Build Maint,,
05/07/2022,BANSTEAD FIRE STN,Thomas Door & Window Controls,Corporate Responsive Maintenance,327.02,General Build Maint,,
05/07/2022,WOODHATCH,Thomas Door & Window Controls,Corporate Responsive Maintenance,364.39,General Build Maint,,
05/07/2022,BIRCHLANDS,Thomas Door & Window Controls,Corporate Responsive Maintenance,425.86,General Build Maint,,
05/07/2022,LINDEN FARM,Thomas Door & Window Controls,Corporate Responsive Maintenance,"5,850.74",General Build Maint,,
05/07/2022,LINDEN FARM,Thomas Door & Window Controls,Corporate Responsive Maintenance,260.28,General Build Maint,,
05/07/2022,PRU KINGSWAY WOKING,Thomas Door & Window Controls,Buyback Works Responsive,903.89,General Build Maint,,
05/07/2022,LD-AUT CNTR TM CARE,Thrive,Day Care,423.28,Day Care - PSD,,
05/07/2022,LD-AUT CNTR TM CARE,Total Transport Solutions Ltd,Hire of Vehicles,288.00,Multi-purpose Veh,,
05/07/2022,LD-AUT CNTR TM CARE,Transparent Care Ltd,Supported Living,"6,145.50",Residential - OP,,
05/07/2022,LD-AUT CNTR TM CARE,Us in a Bus,Day Care,334.24,Grants-Member Allocs,,
05/07/2022,LD-AUT CNTR TM CARE,Us in a Bus,Day Care,334.24,Grants-Member Allocs,,
05/07/2022,LD-AUT CNTR TM CARE,Us in a Bus,Day Care,334.24,Grants-Member Allocs,,
05/07/2022,NULL,Wingham Court Care Centre,NULL,840.69,Residential - LD,,
05/07/2022,LD-AUT CNTR TM CARE,Woking Community Transport Ltd (BUS,Non-Staff Related Transport Costs,265.20,Multi-purpose Veh,,
05/07/2022,WOKING CARE PD,Woking Community Transport Ltd (BUS,Day Care Cases,265.20,Multi-purpose Veh,,
05/07/2022,GUILDFORD CARE OP,Woodleigh Healthcare Ltd,Home Base Care,928.20,Fostering IFA,,
05/07/2022,WOKING CARE OP,Woodleigh Healthcare Ltd,Home Base Care,"1,031.00",Fostering IFA,,
05/07/2022,NULL,Yattendon Junior School,NULL,930.00,Schools,,
05/07/2022,NULL,Yattendon Junior School,NULL,"25,069.78",Schools,,
05/07/2022,GUM,Your Healthcare CIC,Public Health Contract Payments,"5,857.83",Residential - LD,,
06/07/2022,LEGAL EXPS CH AD ED,39 Essex Chambers LLP,Legal Expenses,"2,160.00",General Support,,
06/07/2022,LD-AUT CNTR TM CARE,Active Prospects,Respite Residential,"7,247.06",Specialist Serv,,
06/07/2022,LD-AUT CNTR TM CARE,Ajustar24 Care Ltd,Home Base Care,"8,175.61",Dom Care - Adults,,
06/07/2022,GUILDFORD CARE OP,Ajustar24 Care Ltd,Home Base Care,"1,172.08",Dom Care - Adults,,
06/07/2022,GUILDFORD CARE OP,Ajustar24 Care Ltd,Home Base Care,350.00,Dom Care - Adults,,
06/07/2022,GUILDFORD CARE PD,Alde Care Ltd t/a Right at Home,Home Base Care,"2,265.95",Grants-Member Allocs,,
06/07/2022,WAVERLEY CARE OP,Alde Care Ltd t/a Right at Home,Home Base Care,729.00,Grants-Member Allocs,,
06/07/2022,LD-AUT CNTR TM CARE,Angel Cars Ltd,Day Care Cases,"1,574.40",Multi-purpose Veh,,
06/07/2022,PLD TRANSITION,Angel Cars Ltd,Day Care Cases,336.00,Multi-purpose Veh,,
06/07/2022,PLD TRANSITION,Angel Cars Ltd,Day Care Cases,252.00,Multi-purpose Veh,,
06/07/2022,EPS & EW CMHRS CARE,AnsaCare Ltd,Home Base Care,663.00,Other Care,,
06/07/2022,EPS & EW CMHRS CARE,AnsaCare Ltd,Home Base Care,"1,028.50",Other Care,,
06/07/2022,GROWTH ACADS PR AA,Ashley COE (A) Primary School,Agency Placement Expenditure,"8,921.80",Schools,,
06/07/2022,SEN Centres,Auriol Junior School,Agency Placement Expenditure,"6,073.24",Schools,,
06/07/2022,PRI GROWING SCHS,Aurora Academies Trust,Agency Placement Expenditure,"5,625.00",Schools,,
06/07/2022,PRI GROWING SCHS,Aurora Academies Trust,Agency Placement Expenditure,"3,097.18",Schools,,
06/07/2022,NURSERY CLASS CTGCY,Aurora Academies Trust,Agency Placement Expenditure,"13,099.90",Schools,,
06/07/2022,LD-AUT CNTR TM CARE,Avenues South,Other Community Care,328.84,Residential - MH,,
06/07/2022,LD-AUT CNTR TM CARE,Avenues South,Other Community Care,366.29,Residential - MH,,
06/07/2022,NURSERY CLASS CTGCY,Barnsbury Primary School Academy,Agency Placement Expenditure,"8,411.82",Schools,,
06/07/2022,NURSERY CLASS CTGCY,Beaufort Primary School,Agency Placement Expenditure,"14,063.45",Grants-Member Allocs,,
06/07/2022,SEN Centres,Bletchingley Village Primary School,Agency Placement Expenditure,"6,572.04",Schools,,
06/07/2022,NURSERY CLASS CTGCY,Bletchingley Village Primary School,Agency Placement Expenditure,"10,189.51",Schools,,
06/07/2022,SPEC SCH TEACHERS,Bramley Oak Academy,Agency Placement Expenditure,"3,205.65",Schools,,
06/07/2022,SPECIAL SCHOOLS CORE,Bramley Oak Academy,Agency Placement Expenditure,"136,303.94",Schools,,
06/07/2022,SPEC SCH TEACHERS,Bramley Oak Academy,Agency Placement Expenditure,"5,000.00",Schools,,
06/07/2022,NURSERY CLASS CTGCY,Broadmere Primary Academy,Agency Placement Expenditure,"7,572.85",Schools,,
06/07/2022,SEN Centres,Broadwater School,Agency Placement Expenditure,"4,771.12",Schools,,
06/07/2022,GROWTH ACADS SEC AA,Broadwater School,Agency Placement Expenditure,"15,280.60",Schools,,
06/07/2022,FIN TM-CENT RECHGS,BT Global Services,Telecommunication Charges,"31,893.96",Networking - WAN,,
06/07/2022,FEASIBILITY FUNDING,Built Environment Communications,Fees,"11,789.56",M-D (Property),,
06/07/2022,EIF 2 YR OLD,Burpham Pre-School,Third Party Payments-Other Agencies,707.00,Schools,,
06/07/2022,TANDRIDGE CARE OP,Care Options,Home Base Care,610.54,Dom Care - Adults,,
06/07/2022,TANDRIDGE CARE OP,Care Options,Home Base Care,261.66,Dom Care - Adults,,
06/07/2022,TANDRIDGE CARE OP,Care Options,Home Base Care,411.06,Dom Care - Adults,,
06/07/2022,TANDRIDGE CARE OP,Care Options,Home Base Care,425.74,Dom Care - Adults,,
06/07/2022,TANDRIDGE CARE OP,Care Options,Home Base Care,501.60,Dom Care - Adults,,
06/07/2022,TANDRIDGE CARE OP,Care Options,Home Base Care,411.06,Dom Care - Adults,,
06/07/2022,TANDRIDGE CARE OP,Care Options,Home Base Care,385.64,Dom Care - Adults,,
06/07/2022,TANDRIDGE CARE OP,Care Options,Home Base Care,369.60,Dom Care - Adults,,
06/07/2022,TANDRIDGE CARE OP,Care Options,Home Base Care,501.60,Dom Care - Adults,,
06/07/2022,TANDRIDGE CARE OP,Care Options,Home Base Care,369.60,Dom Care - Adults,,
06/07/2022,TANDRIDGE CARE OP,Care Options,Home Base Care,287.84,Dom Care - Adults,,
06/07/2022,TANDRIDGE CARE OP,Care Options,Home Base Care,425.74,Dom Care - Adults,,
06/07/2022,TANDRIDGE CARE PD,Care Options,Home Base Care,367.47,Dom Care - Adults,,
06/07/2022,TANDRIDGE CARE OP,Care Options,Home Base Care,287.84,Dom Care - Adults,,
06/07/2022,TANDRIDGE CARE PD,Care Options,Home Base Care,283.06,Dom Care - Adults,,
06/07/2022,TANDRIDGE CARE OP,Care Options,Home Base Care,431.76,Dom Care - Adults,,
06/07/2022,TANDRIDGE CARE OP,Care Options,Home Base Care,739.20,Dom Care - Adults,,
06/07/2022,TANDRIDGE CARE OP,Care Options,Home Base Care,739.20,Dom Care - Adults,,
06/07/2022,SPEC SCH TEACHERS,Carwarden House Community School,Agency Placement Expenditure,"7,503.74",Schools,,
06/07/2022,SPECIAL SCHOOLS CORE,Carwarden House Community School,Agency Placement Expenditure,"65,741.63",Schools,,
06/07/2022,CONSORT HOUSE,CFH Total Document Management Ltd,Printing,"1,228.10",Printing & Repro,,
06/07/2022,P16 MSTRM SEND PLACE,Cobham Free School,Agency Placement Expenditure,"1,500.00",Grants-Member Allocs,,
06/07/2022,LD-AUT CNTR TM CARE,Coghlan Lodges Ltd,Supported Living,824.29,Dom Care - Adults,,
06/07/2022,P16 MSTRM SEND PLACE,Collingwood College,Agency Placement Expenditure,500.00,Schools,,
06/07/2022,NULL,Colours Decorating Ltd,NULL,"63,403.75","Comm, Res & Inv Prop",,
06/07/2022,WOKING CARE PD,Comprehensive Care Services Ltd,Home Base Care,338.40,Other Care,,
06/07/2022,LD-AUT CNTR TM CARE,County Care Independent Living Ltd,Other Community Care,253.41,Dom Care - Adults,,
06/07/2022,LD-AUT CNTR TM CARE,County Care Independent Living Ltd,Day Care,530.40,Dom Care - Adults,,
06/07/2022,LD-AUT CNTR TM CARE,County Care Independent Living Ltd,Other Community Care,668.46,Dom Care - Adults,,
06/07/2022,LD-AUT CNTR TM CARE,County Care Independent Living Ltd,Home Base Care,450.58,Dom Care - Adults,,
06/07/2022,LD-AUT CNTR TM CARE,County Care Independent Living Ltd,Home Base Care,353.41,Dom Care - Adults,,
06/07/2022,LD-AUT CNTR TM CARE,County Care Independent Living Ltd,Other Community Care,257.10,Dom Care - Adults,,
06/07/2022,LD-AUT CNTR TM CARE,County Care Independent Living Ltd,Day Care,530.40,Dom Care - Adults,,
06/07/2022,LD-AUT CNTR TM CARE,County Care Independent Living Ltd,Other Community Care,253.40,Dom Care - Adults,,
06/07/2022,LD-AUT CNTR TM CARE,County Care Independent Living Ltd,Home Base Care,326.89,Dom Care - Adults,,
06/07/2022,LD-AUT CNTR TM CARE,County Care Independent Living Ltd,Other Community Care,299.95,Dom Care - Adults,,
06/07/2022,LD-AUT CNTR TM CARE,County Care Independent Living Ltd,Home Base Care,485.93,Dom Care - Adults,,
06/07/2022,SEN TRANSPORT,Courtesy Cars Redhill,Hire of Vehicles,"2,881.92",Multi-purpose Veh,,
06/07/2022,SEN TRANSPORT,Courtesy Cars Redhill,Coach Escorts Contracted,"1,555.20",Multi-purpose Veh,,
06/07/2022,LD-AUT CNTR TM CARE,Courtesy Cars Redhill,Hire of Vehicles,"3,832.20",Multi-purpose Veh,,
06/07/2022,SEN TRANSPORT,Courtesy Cars Redhill,Coach Escorts Contracted,999.00,Multi-purpose Veh,,
06/07/2022,SEN TRANSPORT,Courtesy Cars Redhill,Coach Escorts Contracted,854.40,Multi-purpose Veh,,
06/07/2022,TRANSPT M/STRM-PRIM,Courtesy Cars Redhill,Hire of Vehicles,582.23,Multi-purpose Veh,,
06/07/2022,SEN TRANSPORT,Courtesy Cars Redhill,Hire of Vehicles,"2,859.12",Multi-purpose Veh,,
06/07/2022,SEN TRANSPORT,Courtesy Cars Redhill,Hire of Vehicles,"2,302.80",Multi-purpose Veh,,
06/07/2022,SEN TRANSPORT,Courtesy Cars Redhill,Hire of Vehicles,"3,705.00",Multi-purpose Veh,,
06/07/2022,SEN TRANSPORT,Courtesy Cars Redhill,Coach Escorts Contracted,993.60,Multi-purpose Veh,,
06/07/2022,SEN TRANSPORT,Courtesy Cars Redhill,Hire of Vehicles,"3,090.00",Multi-purpose Veh,,
06/07/2022,SEN TRANSPORT,Courtesy Cars Redhill,Hire of Vehicles,"2,952.60",Multi-purpose Veh,,
06/07/2022,SEN TRANSPORT,Courtesy Cars Redhill,Hire of Vehicles,"3,619.81",Multi-purpose Veh,,
06/07/2022,SEN TRANSPORT,Courtesy Cars Redhill,Hire of Vehicles,"2,659.20",Multi-purpose Veh,,
06/07/2022,SEN TRANSPORT,Courtesy Cars Redhill,Hire of Vehicles,"1,801.20",Multi-purpose Veh,,
06/07/2022,SEN TRANSPORT,Courtesy Cars Redhill,Hire of Vehicles,"1,951.80",Multi-purpose Veh,,
06/07/2022,SEN TRANSPORT,Courtesy Cars Redhill,Hire of Vehicles,"3,189.72",Multi-purpose Veh,,
06/07/2022,SEN TRANSPORT,Courtesy Cars Redhill,Hire of Vehicles,"3,151.44",Multi-purpose Veh,,
06/07/2022,SEN TRANSPORT,Courtesy Cars Redhill,Coach Escorts Contracted,"2,827.44",Multi-purpose Veh,,
06/07/2022,SEN TRANSPORT,Courtesy Cars Redhill,Coach Escorts Contracted,582.00,Multi-purpose Veh,,
06/07/2022,SEN TRANSPORT,Courtesy Cars Redhill,Coach Escorts Contracted,889.20,Multi-purpose Veh,,
06/07/2022,SEN TRANSPORT,Courtesy Cars Redhill,Hire of Vehicles,"2,040.60",Multi-purpose Veh,,
06/07/2022,SEN TRANSPORT,Courtesy Cars Redhill,Hire of Vehicles,"5,756.40",Multi-purpose Veh,,
06/07/2022,SEN TRANSPORT,Courtesy Cars Redhill,Hire of Vehicles,"3,974.40",Multi-purpose Veh,,
06/07/2022,SEN TRANSPORT,Courtesy Cars Redhill,Coach Escorts Contracted,459.84,Multi-purpose Veh,,
06/07/2022,SEN TRANSPORT,Courtesy Cars Redhill,Coach Escorts Contracted,"1,197.00",Multi-purpose Veh,,
06/07/2022,SEN TRANSPORT,Courtesy Cars Redhill,Hire of Vehicles,"5,841.00",Multi-purpose Veh,,
06/07/2022,LD-AUT CNTR TM CARE,Courtesy Cars Redhill,Coach Escorts Contracted,"1,323.00",Multi-purpose Veh,,
06/07/2022,SEN TRANSPORT,Courtesy Cars Redhill,Hire of Vehicles,"3,602.40",Multi-purpose Veh,,
06/07/2022,SEN TRANSPORT,Courtesy Cars Redhill,Hire of Vehicles,"1,560.00",Multi-purpose Veh,,
06/07/2022,SEN TRANSPORT,Courtesy Cars Redhill,Hire of Vehicles,"3,921.60",Multi-purpose Veh,,
06/07/2022,SEN TRANSPORT,Courtesy Cars Redhill,Coach Escorts Contracted,"1,609.20",Multi-purpose Veh,,
06/07/2022,SEN TRANSPORT,Courtesy Cars Redhill,Coach Escorts Contracted,912.00,Multi-purpose Veh,,
06/07/2022,SEN TRANSPORT,Courtesy Cars Redhill,Hire of Vehicles,"3,734.64",Multi-purpose Veh,,
06/07/2022,SEN TRANSPORT,Courtesy Cars Redhill,Hire of Vehicles,"3,545.40",Multi-purpose Veh,,
06/07/2022,SEN TRANSPORT,Courtesy Cars Redhill,Coach Escorts Contracted,784.80,Multi-purpose Veh,,
06/07/2022,SEN TRANSPORT,Courtesy Cars Redhill,Hire of Vehicles,"5,594.40",Multi-purpose Veh,,
06/07/2022,SEN TRANSPORT,Courtesy Cars Redhill,Hire of Vehicles,"3,253.80",Multi-purpose Veh,,
06/07/2022,SEN TRANSPORT,Courtesy Cars Redhill,Hire of Vehicles,"3,115.62",Multi-purpose Veh,,
06/07/2022,SEN TRANSPORT,Courtesy Cars Redhill,Hire of Vehicles,"3,374.40",Multi-purpose Veh,,
06/07/2022,SEN TRANSPORT,Courtesy Cars Redhill,Hire of Vehicles,"2,109.00",Multi-purpose Veh,,
06/07/2022,SEN TRANSPORT,Courtesy Cars Redhill,Hire of Vehicles,"3,648.00",Multi-purpose Veh,,
06/07/2022,SEN TRANSPORT,Courtesy Cars Redhill,Hire of Vehicles,"2,266.32",Multi-purpose Veh,,
06/07/2022,SEN TRANSPORT,Courtesy Cars Redhill,Hire of Vehicles,"2,316.61",Multi-purpose Veh,,
06/07/2022,SEN TRANSPORT,Courtesy Cars Redhill,Hire of Vehicles,"2,895.60",Multi-purpose Veh,,
06/07/2022,SEN TRANSPORT,Courtesy Cars Redhill,Hire of Vehicles,"1,746.00",Multi-purpose Veh,,
06/07/2022,SEN TRANSPORT,Courtesy Cars Redhill,Coach Escorts Contracted,"1,173.00",Multi-purpose Veh,,
06/07/2022,SEN TRANSPORT,Courtesy Cars Redhill,Hire of Vehicles,"3,823.20",Multi-purpose Veh,,
06/07/2022,SEN TRANSPORT,Courtesy Cars Redhill,Coach Escorts Contracted,"1,047.60",Multi-purpose Veh,,
06/07/2022,NURSERY CLASS CTGCY,Cuddington Community Primary School,Agency Placement Expenditure,"4,955.22",Schools,,
06/07/2022,SEN Centres,Cuddington Community Primary School,Agency Placement Expenditure,"8,800.01",Schools,,
06/07/2022,NURSERY CLASS CTGCY,Cuddington Croft Primary School,Agency Placement Expenditure,"9,125.16",Schools,,
06/07/2022,GROWTH ACADS PR AA,Danetree Junior School,Agency Placement Expenditure,"29,490.40",Schools,,
06/07/2022,NURSERY CLASS CTGCY,Danetree Junior School,Agency Placement Expenditure,"28,623.42",Schools,,
06/07/2022,NURSERY CLASS CTGCY,Darley Dene Primary School,Agency Placement Expenditure,"7,603.29",Schools,,
06/07/2022,SEN Centres,Darley Dene Primary School,Agency Placement Expenditure,"6,775.96",Schools,,
06/07/2022,LD-AUT CNTR TM CARE,Dayspace,Day Care,401.70,Day Care - PSD,,
06/07/2022,GROWTH ACADS SEC AA,De Stafford School,Agency Placement Expenditure,"2,860.00",Schools,,
06/07/2022,SEN Centres,De Stafford School,Agency Placement Expenditure,"1,717.60",Schools,,
06/07/2022,SEN Centres,Dovers Green School,Agency Placement Expenditure,"9,855.94",Schools,,
06/07/2022,SEN TRANSPORT,East Sussex County Council,Hire of Vehicles,"1,422.72",Local Government,,
06/07/2022,LD-AUT CNTR TM CARE,Elmbridge Borough Council,Day Care,440.00,Local Government,,
06/07/2022,LD-AUT CNTR TM CARE,Elmbridge Borough Council,Day Care,350.00,Local Government,,
06/07/2022,LD-AUT CNTR TM CARE,Elmbridge Borough Council,Day Care,350.00,Local Government,,
06/07/2022,LD-AUT CNTR TM CARE,Elmbridge Borough Council,Day Care,660.00,Local Government,,
06/07/2022,LD-AUT CNTR TM CARE,Elmbridge Borough Council,Day Care,600.00,Local Government,,
06/07/2022,LD-AUT CNTR TM CARE,Elmbridge Borough Council,Day Care,660.00,Local Government,,
06/07/2022,LD-AUT CNTR TM CARE,Elmbridge Borough Council,Day Care,550.00,Local Government,,
06/07/2022,LD-AUT CNTR TM CARE,Elmbridge Borough Council,Day Care Cases,682.00,Local Government,,
06/07/2022,P16 MSTRM SEND PLACE,ElmWey Learning Trust,Agency Placement Expenditure,500.00,Schools,,
06/07/2022,RUNNYMEDE CARE OP,Enterprise Care Support Ltd,Home Base Care,"1,236.94",Dom Care - Adults,,
06/07/2022,RUNNYMEDE CARE OP,Enterprise Care Support Ltd,Home Base Care,"1,236.94",Dom Care - Adults,,
06/07/2022,SEN Centres,Epsom & Ewell High School,Agency Placement Expenditure,"4,284.42",Staff Training,,
06/07/2022,LD-AUT CNTR TM CARE,Ethan Care Services,Home Base Care,392.04,Dom Care - Adults,,
06/07/2022,RUNNYMEDE CARE OP,Ethan Care Services,Home Base Care,652.68,Dom Care - Adults,,
06/07/2022,FAIRMOUNT HOUSE,Evac & Chair International Ltd,Equipment,324.00,H & S Maint,,
06/07/2022,GROWTH ACADS SEC AA,Farnham Heath End School,Agency Placement Expenditure,"13,833.60",Schools,,
06/07/2022,LD-AUT CNTR TM CARE,Focus Care Agency Ltd,Supported Living,"15,540.00",Supp Living - MH,,
06/07/2022,SPEC SCH TEACHERS,Fordway Centre,Agency Placement Expenditure,"1,577.50",Schools,,
06/07/2022,PRUs,Fordway Centre,Agency Placement Expenditure,"22,217.00",Schools,,
06/07/2022,SPEC SCH TEACHERS,Fordway Centre,Agency Placement Expenditure,833.40,Schools,,
06/07/2022,SPEC SCH TEACHERS,Fox Grove School,Agency Placement Expenditure,"4,007.17",Schools,,
06/07/2022,SPECIAL SCHOOLS CORE,Fox Grove School,Agency Placement Expenditure,"69,812.00",Schools,,
06/07/2022,LEGAL EXPS CH AD ED,Gatehouse Chambers Ltd,Legal Expenses,"1,800.00",Legal Spec Supp NEC,,
06/07/2022,SEN Centres,George Abbot School -Academy,Agency Placement Expenditure,"3,224.30",Schools,,
06/07/2022,P16 MSTRM SEND PLACE,George Abbot School -Academy,Agency Placement Expenditure,"1,000.00",Schools,,
06/07/2022,P16 MSTRM SEND PLACE,Glyn School,Agency Placement Expenditure,"1,500.00",Info Advice Guidance,,
06/07/2022,WOKING CARE PD,Grassroots Project,Day Care,257.76,Day Care - PSD,,
06/07/2022,LD-AUT CNTR TM CARE,Grassroots Project,Day Care,257.76,Day Care - PSD,,
06/07/2022,LD-AUT CNTR TM CARE,Grassroots Project,Day Care,322.20,Day Care - PSD,,
06/07/2022,LD-AUT CNTR TM CARE,Grassroots Project,Day Care,322.20,Day Care - PSD,,
06/07/2022,LD-AUT CNTR TM CARE,Grassroots Project,Day Care,322.20,Day Care - PSD,,
06/07/2022,LD-AUT CNTR TM CARE,Grassroots Project,Day Care,322.20,Day Care - PSD,,
06/07/2022,LD-AUT CNTR TM CARE,Grassroots Project,Day Care,257.76,Day Care - PSD,,
06/07/2022,LD-AUT CNTR TM CARE,Greenways,Supported Living,"4,956.00",Residential - OP,,
06/07/2022,P16 MSTRM SEND PLACE,Guildford County School,Agency Placement Expenditure,"2,000.00",Schools,,
06/07/2022,GROWTH ACADS SEC AA,Guildford County School,Agency Placement Expenditure,"8,965.80",Schools,,
06/07/2022,SEN Centres,Guildford Grove Primary School,Agency Placement Expenditure,"22,842.84",Schools,,
06/07/2022,EIF 3 & 4 YR OLD,Guildford Grove Primary School,Third Party Payments-Other Agencies,"1,000.00",Schools,,
06/07/2022,NURSERY CLASS CTGCY,Guildford Grove Primary School,Agency Placement Expenditure,"6,542.95",Schools,,
06/07/2022,NURSERY CLASS CTGCY,Hale Primary School,Agency Placement Expenditure,"6,002.27",Schools,,
06/07/2022,LD-AUT CNTR TM CARE,Halow Project,Other Community Care,260.00,Grants-Member Allocs,,
06/07/2022,LD-AUT CNTR TM CARE,Halow Project,Other Community Care,612.50,Grants-Member Allocs,,
06/07/2022,LD-AUT CNTR TM CARE,Halow Project,Other Community Care,816.67,Grants-Member Allocs,,
06/07/2022,LD-AUT CNTR TM CARE,Halow Project,Other Community Care,927.36,Grants-Member Allocs,,
06/07/2022,NURSERY CLASS CTGCY,Hamsey Green Primary School,Agency Placement Expenditure,"9,255.43",Schools,,
06/07/2022,NURSERY CLASS CTGCY,Highfield South Farnham Primary Sch,Agency Placement Expenditure,"13,985.42",Schools,,
06/07/2022,NURSERY CLASS CTGCY,Hillcroft Primary School,Agency Placement Expenditure,"12,053.25",Schools,,
06/07/2022,SEN Centres,Hinchley Wood School,Agency Placement Expenditure,"33,356.00",Grants-Member Allocs,,
06/07/2022,GROWTH ACADS SEC AA,Hoe Valley School,Agency Placement Expenditure,"14,233.40",Pensions,,
06/07/2022,NURSERY CLASS CTGCY,Holmesdale Community Infant School,Agency Placement Expenditure,"9,545.20",Schools,,
06/07/2022,P16 MSTRM SEND PLACE,Howard of Effingham School,Agency Placement Expenditure,500.00,Educ Finance Serv,,
06/07/2022,DOLS,Redacted Personnel Data ,New GR/IR Account,255.85,Non-Staff Expenses,,
06/07/2022,DOLS,Redacted Personnel Data ,New GR/IR Account,253.33,Non-Staff Expenses,,
06/07/2022,DOLS,Redacted Personnel Data ,New GR/IR Account,256.12,Non-Staff Expenses,,
06/07/2022,DOLS,Redacted Personnel Data ,New GR/IR Account,253.33,Non-Staff Expenses,,
06/07/2022,SEN Centres,Jubilee High Academy,Agency Placement Expenditure,"1,335.91",Schools,,
06/07/2022,LD-AUT CNTR TM CARE,Karens Angels,Day Care Cases,"1,320.00",Taxi Hire (SEN Only),,
06/07/2022,NURSERY CLASS CTGCY,Kenyngton Manor Primary School,Agency Placement Expenditure,"15,655.94",Schools,,
06/07/2022,DR DATA CTR UNIT 10,Keysource Ltd,Term Contract Inspections,"8,136.97",Residential - OP,,
06/07/2022,DR DATA CTR UNIT 10,Keysource Ltd,Term Contract Inspections,"8,136.97",Residential - OP,,
06/07/2022,PRIMARY DATA CENTRE,Keysource Ltd,Term Contract Inspections,"9,811.73",Residential - OP,,
06/07/2022,PRIMARY DATA CENTRE,Keysource Ltd,Term Contract Inspections,"9,811.73",Residential - OP,,
06/07/2022,NURSERY CLASS CTGCY,Kingfield Primary School & Nursery,Agency Placement Expenditure,"9,263.96",Schools,,
06/07/2022,COV-19 HOUSEHOLDGRNT,Kingfield Primary School & Nursery,Agency Placement Expenditure,840.00,Schools,,
06/07/2022,NURSERY CLASS CTGCY,Knaphill Lower School,Agency Placement Expenditure,"11,869.96",Schools,,
06/07/2022,NURSERY CLASS CTGCY,Lakeside Primary School,Agency Placement Expenditure,"8,095.27",Schools,,
06/07/2022,NURSERY CLASS CTGCY,Lime Tree Primary,Agency Placement Expenditure,"10,208.74",Schools,,
06/07/2022,SPECIAL SCHOOLS CORE,Linden Bridge School,Agency Placement Expenditure,"143,001.45",Grants-Member Allocs,,
06/07/2022,SPEC SCH TEACHERS,Linden Bridge School,Agency Placement Expenditure,"9,544.72",Grants-Member Allocs,,
06/07/2022,SPECIAL SCHOOLS OUTR,Linden Bridge School,Agency Placement Expenditure,"44,147.08",Grants-Member Allocs,,
06/07/2022,SPECIAL SCHOOLS RESI,Linden Bridge School,Agency Placement Expenditure,"31,638.38",Grants-Member Allocs,,
06/07/2022,COPPICE PRIMARY-OLA,London Borough of Redbridge,Rents,297.71,Court Fees,,
06/07/2022,PRI GROWING SCHS,Loseley Fields Primary School,Agency Placement Expenditure,"4,307.92",Schools,,
06/07/2022,PRI GROWING SCHS,Loseley Fields Primary School,Agency Placement Expenditure,"1,689.29",Schools,,
06/07/2022,SEN Centres,Loseley Fields Primary School,Agency Placement Expenditure,"5,714.50",Schools,,
06/07/2022,NURSERY CLASS CTGCY,Marden Lodge Primary School,Agency Placement Expenditure,"8,926.71",Schools,,
06/07/2022,PRI GROWING SCHS,Marden Lodge Primary School,Agency Placement Expenditure,"4,012.25",Schools,,
06/07/2022,NURSERY CLASS CTGCY,Maybury Primary School,Agency Placement Expenditure,"13,244.19",Schools,,
06/07/2022,NURSERY CLASS CTGCY,Meadhurst Primary School,Agency Placement Expenditure,"18,979.72",Grants-Member Allocs,,
06/07/2022,SEN Centres,Meadhurst Primary School,Agency Placement Expenditure,"6,347.46",Grants-Member Allocs,,
06/07/2022,NURSERY CLASS CTGCY,Merstham Primary School,Agency Placement Expenditure,"6,708.42",Schools,,
06/07/2022,NURSERY CLASS CTGCY,Mytchett Primary School,Agency Placement Expenditure,"10,884.45",Schools,,
06/07/2022,NURSERY CLASS CTGCY,New Monument School,Agency Placement Expenditure,"9,740.00",Schools,,
06/07/2022,SEN Centres,Northmead Junior School,Agency Placement Expenditure,"4,480.93",Schools,,
06/07/2022,LD-AUT CNTR TM CARE,Oaktree Farm Care Centre Ltd,Day Care,"1,384.59",Day Care - LD,,
06/07/2022,ASSET DATA MANAGER,OccupEye Ltd,Fees,256.03,M-D (Property),,
06/07/2022,ASSET DATA MANAGER,OccupEye Ltd,Fees,"1,896.29",M-D (Property),,
06/07/2022,ASSET DATA MANAGER,OccupEye Ltd,Fees,"1,018.56",M-D (Property),,
06/07/2022,NURSERY CLASS CTGCY,Ottershaw COE School,Agency Placement Expenditure,"12,028.90",Non-Staff Expenses,,
06/07/2022,P16 MSTRM SEND PLACE,Oxted School,Agency Placement Expenditure,500.00,Schools,,
06/07/2022,SEN Centres,Oxted School,Agency Placement Expenditure,"22,054.94",Schools,,
06/07/2022,NULL,P D Harris Henfield Ltd,NULL,"57,000.00",General Build Maint,,
06/07/2022,LD-AUT CNTR TM CARE,Paradise House Association,Residential,"17,983.24",Residential - MH,,
06/07/2022,SPEC SCH TEACHERS,Pond Meadow School,Agency Placement Expenditure,"8,313.58",Short break,,
06/07/2022,SPECIAL SCHOOLS CORE,Pond Meadow School,Agency Placement Expenditure,"154,982.42",Short break,,
06/07/2022,WOKING CARE OP,Proxy Care Personnel Ltd,Home Base Care,406.00,Dom Care - Adults,,
06/07/2022,SPELTHORNE CARE OP,Proxy Care Personnel Ltd,Home Base Care,568.00,Dom Care - Adults,,
06/07/2022,WOKING CARE OP,Proxy Care Personnel Ltd,Home Base Care,644.00,Dom Care - Adults,,
06/07/2022,SPELTHORNE CARE OP,Proxy Care Personnel Ltd,Home Base Care,"1,064.00",Dom Care - Adults,,
06/07/2022,WOKING CARE OP,Proxy Care Personnel Ltd,Home Base Care,574.00,Dom Care - Adults,,
06/07/2022,WOKING CARE OP,Proxy Care Personnel Ltd,Home Base Care,336.00,Dom Care - Adults,,
06/07/2022,WOKING CARE OP,Proxy Care Personnel Ltd,Home Base Care,"2,689.00",Dom Care - Adults,,
06/07/2022,SURREY HEATH CARE OP,Proxy Care Personnel Ltd,Home Base Care,630.00,Dom Care - Adults,,
06/07/2022,SPELTHORNE CARE OP,Proxy Care Personnel Ltd,Home Base Care,"1,239.00",Dom Care - Adults,,
06/07/2022,SPELTHORNE CARE OP,Proxy Care Personnel Ltd,Home Base Care,"1,120.00",Dom Care - Adults,,
06/07/2022,RUNNYMEDE CARE OP,Proxy Care Personnel Ltd,Home Base Care,"1,344.00",Dom Care - Adults,,
06/07/2022,SY HEATH CMHRS CARE,Proxy Care Personnel Ltd,Home Base Care,"1,040.00",Dom Care - Adults,,
06/07/2022,SPELTHORNE CARE OP,Proxy Care Personnel Ltd,Home Base Care,"1,372.00",Dom Care - Adults,,
06/07/2022,WOKING CMHRS CARE,Proxy Care Personnel Ltd,Home Base Care,437.00,Dom Care - Adults,,
06/07/2022,SUB MISUSE CARE PCKG,Proxy Care Personnel Ltd,Home Base Care,336.00,Dom Care - Adults,,
06/07/2022,SPELTHORNE CARE OP,Proxy Care Personnel Ltd,Home Base Care,483.00,Dom Care - Adults,,
06/07/2022,SPELTHORNE CARE OP,Proxy Care Personnel Ltd,Home Base Care,"1,512.00",Dom Care - Adults,,
06/07/2022,EPSOM & EWELL CARE O,Proxy Care Personnel Ltd,Home Base Care,"1,848.00",Dom Care - Adults,,
06/07/2022,EPSOM & EWELL CARE O,Proxy Care Personnel Ltd,Home Base Care,637.00,Dom Care - Adults,,
06/07/2022,SURREY HEATH CARE OP,Proxy Care Personnel Ltd,Home Base Care,"1,260.00",Dom Care - Adults,,
06/07/2022,SURREY HEATH CARE OP,Proxy Care Personnel Ltd,Home Base Care,812.00,Dom Care - Adults,,
06/07/2022,WOKING CARE OP,Proxy Care Personnel Ltd,Home Base Care,336.00,Dom Care - Adults,,
06/07/2022,SURREY HEATH CARE OP,Proxy Care Personnel Ltd,Home Base Care,364.00,Dom Care - Adults,,
06/07/2022,NULL,Prudential Assurance Co Ltd,NULL,"70,964.26",Insurance Services,,
06/07/2022,NULL,Prudential Assurance Co Ltd,NULL,"1,287.86",Insurance Services,,
06/07/2022,NULL,Prudential Assurance Co Ltd,NULL,"1,215.00",Insurance Services,,
06/07/2022,NULL,Prudential Assurance Co Ltd,NULL,"38,023.58",Insurance Services,,
06/07/2022,SEN Centres,Pyrcroft Grange Primary School,Agency Placement Expenditure,"12,319.92",Schools,,
06/07/2022,NURSERY CLASS CTGCY,Pyrcroft Grange Primary School,Agency Placement Expenditure,"9,958.04",Schools,,
06/07/2022,NURSERY CLASS CTGCY,Pyrford COE (A) Primary School,Agency Placement Expenditure,"10,477.80",Schools,,
06/07/2022,ELMBRIDGE CMHRS CARE,R A Homecare Ltd,Home Base Care,"4,588.50",Dom Care - Adults,,
06/07/2022,ELMBRIDGE CMHRS CARE,R A Homecare Ltd,Home Base Care,"1,920.00",Dom Care - Adults,,
06/07/2022,SW UASC NRPF 18+ CRE,Redacted Personal Data,Furniture,496.50,Invoicing Plan Req.,,
06/07/2022,CWD CONTRACTS/SLA'S,Redacted Personal Data,Direct Payments - Carers of Disabled Children,300.00,Childrens Indiv Tran,,
06/07/2022,CWD CONTRACTS/SLA'S,Redacted Personal Data,Direct Payments - Carers of Disabled Children,300.00,Invoicing Plan Req.,,
06/07/2022,CWD CONTRACTS/SLA'S,Redacted Personal Data,Direct Payments - Carers of Disabled Children,300.00,Invoicing Plan Req.,,
06/07/2022,CWD CONTRACTS/SLA'S,Redacted Personal Data,Direct Payments - Carers of Disabled Children,300.00,Invoicing Plan Req.,,
06/07/2022,CWD CONTRACTS/SLA'S,Redacted Personal Data,Direct Payments - Carers of Disabled Children,300.00,Invoicing Plan Req.,,
06/07/2022,LAC CELEB & BURSARY,Redacted Personal Data,Children Act Sec 24 Payments,260.40,Invoicing Plan Req.,,
06/07/2022,CWD CONTRACTS/SLA'S,Redacted Personal Data,Direct Payments - Carers of Disabled Children,288.00,Childrens Indiv Tran,,
06/07/2022,GUILDFORD CARE PD,Redacted Personal Data,Non-Staff Related Transport Costs,452.80,Dom Care - Adults,,
06/07/2022,CWD CONTRACTS/SLA'S,Redacted Personal Data,Direct Payments - Carers of Disabled Children,297.00,Invoicing Plan Req.,,
06/07/2022,CWD CONTRACTS/SLA'S,Redacted Personal Data,Direct Payments - Carers of Disabled Children,300.00,Invoicing Plan Req.,,
06/07/2022,SPELTHORNE CARE OP,Redacted Personal Data,Direct Payments - Independent Sector,400.62,Adult direct payment,,
06/07/2022,SE S17 CARE,Redacted Personal Data,Children Act Sec 24 Payments,"3,926.89",Individual - NEC,,
06/07/2022,LEGAL EXPS CH AD ED,Redacted Personal Data,Legal Expenses,420.00,Complexity,,
06/07/2022,CWD CONTRACTS/SLA'S,Redacted Personal Data,Direct Payments - Carers of Disabled Children,300.00,Invoicing Plan Req.,,
06/07/2022,CWD CONTRACTS/SLA'S,Redacted Personal Data,Direct Payments - Carers of Disabled Children,300.00,Invoicing Plan Req.,,
06/07/2022,NW CARE - CPCRT LAC,Redacted Personal Data,Children Act Sec 24 Payments,370.00,Invoicing Plan Req.,,
06/07/2022,SE CARE - CPCRT LAC,Redacted Personal Data,Direct Payments - Carers of Disabled Children,493.02,Adult direct payment,,
06/07/2022,SE CARE - CPCRT LAC,Redacted Personal Data,Direct Payments - Carers of Disabled Children,300.00,Adult direct payment,,
06/07/2022,PRUs,Reigate Valley College,Agency Placement Expenditure,"66,651.00",Schools,,
06/07/2022,SPEC SCH TEACHERS,Reigate Valley College,Agency Placement Expenditure,"5,397.30",Schools,,
06/07/2022,NURSERY CLASS CTGCY,Riverbridge Primary School,Agency Placement Expenditure,"13,709.60",Schools,,
06/07/2022,SEN Centres,Rodborough School Academy,Agency Placement Expenditure,"27,918.01",Schools,,
06/07/2022,GROWTH ACADS SEC AA,Salesian School,Agency Placement Expenditure,"15,499.00",Schools,,
06/07/2022,SEN Centres,Salesian School,Agency Placement Expenditure,"30,748.39",Schools,,
06/07/2022,P16 MSTRM SEND PLACE,Salesian School,Agency Placement Expenditure,"2,500.00",Schools,,
06/07/2022,NURSERY CLASS CTGCY,Salfords Primary School,Agency Placement Expenditure,"7,835.83",Nursery,,
06/07/2022,PRI GROWING SCHS,Sandcross Primary School,Agency Placement Expenditure,"2,534.12",Schools,,
06/07/2022,NURSERY CLASS CTGCY,Sandcross Primary School,Agency Placement Expenditure,"9,715.65",Schools,,
06/07/2022,PRI GROWING SCHS,Sandcross Primary School,Agency Placement Expenditure,"2,815.58",Schools,,
06/07/2022,NURSERY CLASS CTGCY,Sandringham School & Little Badgers,Agency Placement Expenditure,"9,350.40",Schools,,
06/07/2022,NURSERY CLASS CTGCY,Sayes Court School,Agency Placement Expenditure,"10,105.25",Schools,,
06/07/2022,SEN TRANSPORT,SCC Freemantles School,Coach Escorts Contracted,850.00,Schools,,
